{"text_format":"1","workbook":"xlsx","n_sheets":36,"sheets":["A01","A02","A03","A04","A05","B01","B02","B03","B04","B05","C01","C02","C03","D01","D02","D03","D04","D05","E01","E02","E03","E04","F01","F02","Echelles","Thèmes Modules","Thèmes","Modules","Liste des risques","CQI saisie","Compte Qualité","Saisie SARA","Synoptique","Tables","Param","Mise en forme"],"not_rendered":{"charts":0,"images":14,"macros":1,"external_links":1,"defined_names":164,"comments":25,"pivot_tables":0},"unopened":[],"bounds":{"document_bytes":16777216,"sheet_cells":100000,"rows_first":2000,"rows_last":500,"rows_between":2000,"halvings":0,"cell_chars":16384,"cell_head_chars":4096},"cells_cut":0,"cells_raw":0,"read":"whole","date_system":"1900"}

{"sheet":"A01","index":0,"n_rows":17,"n_cols":26,"rows_kept":17,"cut":false,"hidden":false,"merged":[]}
[null,null,null,null,null,"A1 LIÉS AU PROCESSUS DE SOINS 1/3 >> Infections urinaires"]
[null,"Etapes",null,null,"Analyse des risques",null,null,null,null,null,null,null,null,null,null,null,"Plan d'actions"]
["Id","Quoi","Comment","Qui","CQ","Nature du risque","Situation dangereuse","Effet Dommage","Cause(s) de la situation dangereuse ","Dispositif(s) de maitrise en place","Fréquence","Gravité","Criticité","Niveau de maîtrise","C avec niveau de maîtrise","Actions suggérées","Actions d'amélioration","Responsable(s)","Début prévu","Échéance prévue","Modalités d'évaluation / indicateurs de suivi","Etat d’avancement","Fréquence résiduelle","Gravité résiduelle","Criticité résiduelle","Gestion du risque résiduel"]
["R01P01",null,null,null,null,"1- Infections urinaires sur sonde à demeure, sondage évacuateur, hétérosondage itératif","Pose  de la sonde non pertinente","Porte d'entrée d'une infection iatrogène ","Défaut de réflexion bénéfice-risque / dispositifs invasifs\nIndications non actualisées\nEvolution des actes chirurgicaux..\n","Organisation de la réflexion bénéfice-risque / dispositifs invasifs\nProcédure, traçabilité, formation, audit  / indications et alternatives  (étui pénien, protections absorbantes, sondages itératifs) EPP pertinence",null,null,{"$f":"Criticité","v":""},null,{"$f":"Criticité","v":""},null,null,null,null,null,null,null,null,null,{"$f":"Criticité","v":""}]
["R01P02",null,null,null,null,"1- Infections urinaires sur sonde à demeure, sondage évacuateur, hétérosondage itératif","Maintien de la sonde ou périodicité de sondage non pertinent","Porte d'entrée d'une infection iatrogène","Défaut de de réévaluation bénéfice-risque/ dispositifs invasifs","EPP pertinence",null,null,{"$f":"Criticité","v":""},null,{"$f":"Criticité","v":""},null,null,null,null,null,null,null,null,null,{"$f":"Criticité","v":""}]
["R01P03",null,null,null,null,"1- Infections urinaires sur sonde à demeure, sondage évacuateur, hétérosondage itératif","Blessures de l'urêtre","Augmentation du risque d'infection urinaire par colonisation de la blessure","Pose traumatique\nDiamètre de sonde inadapté\nAbsence de fixation de la sonde","Procédure\nFormation\nAudit\nSonde auto ou prélubrifiée  (sondage évacuateur ou itératif)",null,null,{"$f":"Criticité","v":""},null,{"$f":"Criticité","v":""},null,null,null,null,null,null,null,null,null,{"$f":"Criticité","v":""}]
["R01P04",null,null,null,null,"1- Infections urinaires sur sonde à demeure, sondage évacuateur, hétérosondage itératif","Défaut de mesures d'hygiène  au moment de la pose, de l'entretien  ou de la manipulation  de la sonde urinaire (vidange, ECBU)","Contamination à partir d'un lubrifiant ou anesthésiant \nContamination de la sonde a partir de la flore périnéale du patient \nContamination  intraluminale lors des manipulations ou rupture du système clos","Absence de procédure ou méconnaissance des recommandations \nLubrifiant ou anesthésiant non stérile, non unitaire\n","Procédure\nFormation\nAudit\nConditionnement unitaire du lubrifiant ou anesthésiant stérile\nsonde avec sac collecteur intégré,système clos",null,null,{"$f":"Criticité","v":""},null,{"$f":"Criticité","v":""},null,null,null,null,null,null,null,null,null,{"$f":"Criticité","v":""}]
["R01P05",null,null,null,null,"1- Infections urinaires sur sonde à demeure, sondage évacuateur, hétérosondage itératif","Défaut de matériel ","Augmentation du risque de contamination","Choix de matériel par centrale d'achat, sans association de l'EOH et des équipes\nMéconnaissance des recommandations","Choix de matériel en collaboration avec l'EOH et les équipes  (urologue si présent)\nrédaction et prise de connaissance de procédure\nFormation",null,null,{"$f":"Criticité","v":""},null,{"$f":"Criticité","v":""},null,null,null,null,null,null,null,null,null,{"$f":"Criticité","v":""}]
["R01P06",null,null,null,null,"1- Infections urinaires sur sonde à demeure, sondage évacuateur, hétérosondage itératif","Défaut de positionnement du sac collecteur","Contamination des urines vésicales par reflux","Collecteur non déclive","Procédure\nFormation\nAudit\nSystème d'accrochage du sac en dessous du niveau du patient.",null,null,{"$f":"Criticité","v":""},null,{"$f":"Criticité","v":""},null,null,null,null,null,null,null,null,null,{"$f":"Criticité","v":""}]
["R02P01",null,null,null,null,"2- Infections urinaires liées au sondage  itératif (autosondage)","Périodicité non pertinente","Augmentation du risque d'infection urinaire","Défaut d'évaluation du contenu vésical\nDéfaut d'éducation du patient ou de sa famille","Exploration échographique du contenu vésical pour définir la périodicité des sondages\nEducation du patient ou de sa famille",null,null,{"$f":"Criticité","v":""},null,{"$f":"Criticité","v":""},null,null,null,null,null,null,null,null,null,{"$f":"Criticité","v":""}]
["R02P02",null,null,null,null,"2- Infections urinaires liées au sondage  itératif (autosondage)","Blessures de l'urêtre","Augmentation du risque d'infection urinaire par colonisation de la blessure, prostatite","Défaut d'éducation du patient ou de sa famille\nPose traumatique\nDiamètre de sonde inadapté","Education du patient ou de sa famille\nUtilisation de kits avec sondes lubrifiées",null,null,{"$f":"Criticité","v":""},null,{"$f":"Criticité","v":""},null,null,null,null,null,null,null,null,null,{"$f":"Criticité","v":""}]
["R02P03",null,null,null,null,"2- Infections urinaires liées au sondage  itératif (autosondage)","Matériel contaminé","Augmentation du risque d'infection urinaire","Défaut d'éducation du patient ou de sa famille\nDéfaut d'entretien et de stockage pour matériel réutilisé","Education du patient ou de sa famille\nUtilisation de matériel à usage unique",null,null,{"$f":"Criticité","v":""},null,{"$f":"Criticité","v":""},null,null,null,null,null,null,null,null,null,{"$f":"Criticité","v":""}]
["R03P01",null,null,null,null,"3- Infections urinaires sur cathérer sus-pubien (spécificité)","Défaut des conditions d'asepsie chirurgicale lors de la pose","Infection du site opératoire","Opérateur non expérimenté\nméconnaissance ou non respect  des recommandations","Organisation du circuit du patient\nProcédure\nTraçabilité\nFormation\nAudit",null,null,{"$f":"Criticité","v":""},null,{"$f":"Criticité","v":""},null,null,null,null,null,null,null,null,null,{"$f":"Criticité","v":""}]
["R04P01",null,null,null,null,"4- Infections urinaires en chirurgie urologique (hors risque infection du site opératoire)","Défaut d'évacuation des caillots","Augmentation du risque d'infection urinaire","Diamètre de sonde trop petit\nIrrigation  vésicale insuffisante  Insuffisance ou absence de surveillance\nCaillottage trop important dû à un problème d'hémostase","Procédure, traçabilité, formation, audit\nIrrigation vésicale continue par sonde double voie, recours à l'urologue facilité",null,null,{"$f":"Criticité","v":""},null,{"$f":"Criticité","v":""},null,null,null,null,null,null,null,null,null,{"$f":"Criticité","v":""}]
["R05P01",null,null,null,null,"5- Infections urinaires en l'absence de sondage","Défaut d'hydratation","Augmentation du risque d'infection urinaire par diminution du drainage vésical ","Défaut d'évaluation des besoins selon saison, âge et pathologies\nDéfaut de surveillance\nMéconnaissance du risque ","Procédure\nFormation\nAudit\nTraçabilité",null,null,{"$f":"Criticité","v":""},null,{"$f":"Criticité","v":""},null,null,null,null,null,null,null,null,null,{"$f":"Criticité","v":""}]
["R06P01",null,null,null,null,"6- Infections urinaires (toutes)","Défaut de prise en charge diagnostique et thérapeutique","Pyélonéphrite\nProstatite\nBactériémie\nDécès","Défaut de surveillance des signes cliniques évocateurs (fièvre, hypothermie, hypotension, troubles cognitifs .. si sonde, signes cutanés pour cathéter sus-pubien)\nDéfaut de connaissance des recommandations","Organisation de l'avis infectieux, référent antibiotique (ATB) infectiologue\nRecommandations diagnostiques et thérapeutiques (COMAI-CAI)  Organisation d'un avis urologue",null,null,{"$f":"Criticité","v":""},null,{"$f":"Criticité","v":""},null,null,null,null,null,null,null,null,null,{"$f":"Criticité","v":""}]
["R06P02",null,null,null,null,"6- Infections urinaires (toutes)","Méconnaissance du risque infections urinaires nosocomiales (IUN)","Absence d'alerte et d'évaluation de la politique de prévention des IUN","Défaut de recueil de données sur  IUN\nDéfaut de rétroinformation aux équipes ","Organisation de la surveillance des IUN (continue, discontinue, secteurs à risque)",null,null,{"$f":"Criticité","v":""},null,{"$f":"Criticité","v":""},null,null,null,null,null,null,null,null,null,{"$f":"Criticité","v":""}]

{"sheet":"A02","index":1,"n_rows":14,"n_cols":26,"rows_kept":14,"cut":false,"hidden":false,"merged":[]}
[null,null,null,null,null,"A2 LIÉS AU PROCESSUS DE SOINS 1/3 >> Infections respiratoires "]
[null,"Etapes",null,null,"Analyse des risques",null,null,null,null,null,null,null,null,null,null,null,"Plan d'actions"]
["Id","Quoi","Comment","Qui","CQ","Nature du risque","Situation dangereuse","Effet Dommage","Cause(s) de la situation dangereuse ","Dispositif(s) de maitrise en place","Fréquence","Gravité","Criticité","Niveau de maîtrise","C avec niveau de maîtrise","Actions suggérées","Actions d'amélioration","Responsable(s)","Début prévu","Échéance prévue","Modalités d'évaluation / indicateurs de suivi","Etat d’avancement","Fréquence résiduelle","Gravité résiduelle","Criticité résiduelle","Gestion du risque résiduel"]
["R01P01",null,null,null,null,"1- Infections respiratoires nosocomiales (bactérienne, virale) chez un patient","Défaut/absence d'identification du cas source (contagiosité)","Retard à la PEC thérapeutique\nRetard aux mesures d'hygiène\nProlongation de la durée de séjour\nCas secondaire\n","Méconnaissance des recommandations\nRetard à l'identification du microorganisme\nAbsence de signalement interne","Alerte laboratoire\nReferent ATB\nRepérage des risques émergents (reco, MAJ des connaissances, exemple du MersCov)\nFormation\nSignalement interne et externe\n\n",null,null,{"$f":"Criticité","v":""},null,{"$f":"Criticité","v":""},null,null,null,null,null,null,null,null,null,{"$f":"Criticité","v":""}]
["R01P02",null,null,null,null,"1- Infections respiratoires nosocomiales (bactérienne, virale) chez un patient","Défaut de respect des Précautions Standard (PS) (cas source=professionnel)","Transmission professionnel / patient","Méconnaissance des reco (port de masque si signes ORL)\nAbsence de vaccination/immunisation du professionnel pour la grippe,rougeole, coqueluche, BK\nRetard à l'identification du microorganisme ","Suivi des professionnels par le service de santé au travail Politique de vaccination antigrippale-coqueluche-rougeole-varicelle des professionnels",null,null,{"$f":"Criticité","v":""},null,{"$f":"Criticité","v":""},null,null,null,null,null,null,null,null,null,{"$f":"Criticité","v":""}]
["R01P03",null,null,null,null,"1- Infections respiratoires nosocomiales (bactérienne, virale) chez un patient","Défaut de mise en œuvre des mesures barrières (PCG/PCA) autour du cas contagieux par défaut d'utilisation du matériel de protection ou retard à la mise en place des PC","Cas secondaire\nEpidémie\nFermeture du service","Méconnaissance des recommandations\nRetard au diagnostic\nMéconnaissance du risque","EOH\nProtocoles\nFormations\nAudits\nLabo/radio\nMatériels de protection disponibles\nApprovisionnement\nProtocole de prophylaxie (ATB, antiviraux) pour contacts si coqueluche, tuberculose, grippe\nSignalement interne",null,null,{"$f":"Criticité","v":""},null,{"$f":"Criticité","v":""},null,null,null,null,null,null,null,null,null,{"$f":"Criticité","v":""}]
["R01P04",null,null,null,null,"1- Infections respiratoires nosocomiales (bactérienne, virale) chez un patient","Défaut de prise en charge diagnostique et thérapeutique","Cas secondaire\nEpidémie\nFermeture de service\nProlongation durée de séjour\nDécès du patient","Défaut de surveillance de signes cliniques évocateurs\nMéconnaissance des recommandations specifiques \nMéconnaissance du risque  Retard  à l'identification du microorganisme ","Disponibilité des tests diagnostiques rapides (Trod, Streptatest)\nLien avec le laboratoire, service d'imagerie médicale\nOrganisation de l'avis infectieux, référent antibiotique (ATB)\nRecommandations diagnostiques et thérapeutiques (COMAI-CAI)\nSignalement interne ",null,null,{"$f":"Criticité","v":""},null,{"$f":"Criticité","v":""},null,null,null,null,null,null,null,null,null,{"$f":"Criticité","v":""}]
["R01P05",null,null,null,null,"1- Infections respiratoires nosocomiales (bactérienne, virale) chez un patient","Défaut d'utilisation de matériel partagé (bronchoscope, matériel de reeduc...)","Cas secondaire\nEpidemie\nArrêt d'activité","Pas de matériel à UU (absence ou non mis à disposition)\nDysfonctionnement de désinfection","Protocole de désinfection (ex: cf. endoscope contaminé)\nMaintenance preventive et curative des LDE\nControles microbio\nAudit\nPolitique d'achat (UU)",null,null,{"$f":"Criticité","v":""},null,{"$f":"Criticité","v":""},null,null,null,null,null,null,null,null,null,{"$f":"Criticité","v":""}]
["R02P01",null,null,null,null,"2- Pneumopathie acquise sous ventilation (PAVM)","Défaut de respect des mesures préventives: décontamination nasale, nasopharyngée pluriquotidienne non faite\nPostition\nDécontamination digestive selective\nDéfaut de respect des PS et mesures préventives (soins de bouche, aspi trachéale)\nDéfaut de changement du filtre humidificateur du circuit externe du ventilateur","Augmentation du risque de PAVM","Méconnaissance du risque associé à la ventilation mécanique (dont non pertinence de la politique d'ATB)\nPratiques d'intubation au bloc opératoire (exemple des bains de bouche en preop pour diminuer le risque de PNP)","Protocoles\nFormation\nEOH\nMatériels disponibles\nApprovisionnement\nRéférent PAVM",null,null,{"$f":"Criticité","v":""},null,{"$f":"Criticité","v":""},null,null,null,null,null,null,null,null,null,{"$f":"Criticité","v":""}]
["R02P02",null,null,null,null,"2- Pneumopathie acquise sous ventilation (PAVM)","Défaut de prise en charge diagnostique et thérapeutique","\nProlongation de la durée de séjour\nPression de sélection ATB\nDécès","Méconnaissance des recommandations specifiques  Méconnaissance du risque ","Protocoles\nFormation\nRecommandations diagnostiques et thérapeutiques (COMAI-CAI)  \nRéférent antibiotique\nRéférent PAVM",null,null,{"$f":"Criticité","v":""},null,{"$f":"Criticité","v":""},null,null,null,null,null,null,null,null,null,{"$f":"Criticité","v":""}]
["R03P01",null,null,null,null,"3- Pneumopathie acquise sous ventilation (PAVM) à BMR","Défaut de respect des PCC pour les patients porteurs de BMR en réanimation","Contamination environnement\nAugmentation du risque PAVM BMR\nAugmentation pression de selection ","Défaut de connaissance de l'ecologie microbienne du service","Liens avec laboratoire/depistages systématiques\nEOH\nProcedures",null,null,{"$f":"Criticité","v":""},null,{"$f":"Criticité","v":""},null,null,null,null,null,null,null,null,null,{"$f":"Criticité","v":""}]
["R04P01",null,null,null,null,"4-Infections respiratoires nosocomiales à germe de l'eau (Pseudomonas aeruginosa, légionelle)","Défaut d'identification  de l'origine environnementale de l'infection\nAbsence de maitrise de l'environnement  (eau) et non identification d'un patient à haut risque (mucoviscidose…immunodéprimés)  présent dans l'unité","Augmentation et/ou persistance du risque lié au P. aeruginosa (par creation/persistance biofilm), Augmentation du risque de légionellose/cas groupés","Méconnaissances du risque lié aux installations\nMéconnaissance du carnet sanitaire","Carnet sanitaire\nPrélèvements microbiologiques\nApprovisionnement en produits détergents-désinfectants\nEOH\nMesures préventives (purges) /curatives\nProtocoles,\nIdentification des patients à risque (mucoviscidose…)\nFormations des professionnels et services techniques",null,null,{"$f":"Criticité","v":""},null,{"$f":"Criticité","v":""},null,null,null,null,null,null,null,null,null,{"$f":"Criticité","v":""}]
["R05P01",null,null,null,null,"5- Aspergillose pulmonaire","Défaut d'identification  de l'origine environnementale de l'infection\nAbsence de maitrise de l'environnement  (air) et non identification d'un patient à haut risque aspergillaire  présent dans l'unité","Augmentation du risque d'aspergillose invasive","Défaut info EOH en cas de travaux\nMéconnaissance des recommandations\nMéconnaissance des facteurs de risque\nOrganisation du service (manque de lits, financement insuffisant)","EOH\nProtocoles (fiches d'evaluation du risque aspergillaire)\nEquipes travaux\nTraitement d'air (type immunair), Formations des professionnels et services techniques",null,null,{"$f":"Criticité","v":""},null,{"$f":"Criticité","v":""},null,null,null,null,null,null,null,null,null,{"$f":"Criticité","v":""}]
["R05P02",null,null,null,null,"5- Aspergillose pulmonaire","Défaut de prise en charge diagnostique et thérapeutique","Prolongation durée séjour\nDécès\n","Méconnaissance du risque \nAbsence de politique de dépistage (antigénémie Aspergillaire) des patients à risque\nMéconnaissance des recommandations","Lien avec le laboratoire\n'Organisation de l'avis infectieux, Référent ATB,infectiologue\nRecommandations diagnostiques et thérapeutiques (COMAI-CAI)\n  ",null,null,{"$f":"Criticité","v":""},null,{"$f":"Criticité","v":""},null,null,null,null,null,null,null,null,null,{"$f":"Criticité","v":""}]

{"sheet":"A03","index":2,"n_rows":13,"n_cols":26,"rows_kept":13,"cut":false,"hidden":false,"merged":[]}
[null,null,null,null,null,"A3 LIÉS AU PROCESSUS DE SOINS 1/3 >> ISO"]
[null,"Etapes",null,null,"Analyse des risques",null,null,null,null,null,null,null,null,null,null,null,"Plan d'actions"]
["Id","Quoi","Comment","Qui","CQ","Nature du risque","Situation dangereuse","Effet Dommage","Cause(s) de la situation dangereuse ","Dispositif(s) de maitrise en place","Fréquence","Gravité","Criticité","Niveau de maîtrise","C avec niveau de maîtrise","Actions suggérées","Actions d'amélioration","Responsable(s)","Début prévu","Échéance prévue","Modalités d'évaluation / indicateurs de suivi","Etat d’avancement","Fréquence résiduelle","Gravité résiduelle","Criticité résiduelle","Gestion du risque résiduel"]
["R01P01",null,null,null,null,"1- Infection du site opératoire (ISO)","Non identification des facteurs de risque liés au patient :\ndénutrition (malnutrition) pré opératoire\nprésence de foyer infectieux \nhyperglycémie\ntabagisme\njeûne preop trop long","Augmentation du risque d'acquisition d'une ISO ","PEC en Urgence\nProgrammation trop rapide\nAbsence d'outils d'évaluation\nAbsence de contrôle de la glycémie per et post op \nAbsence de détection des foyers infectieux \n ","Diététicienne\nUTNC\nTraitement adapté\nTraçabilité IMC dossier patient\nFormation\nConsultation d'Addictologie\nProtocoles",null,null,{"$f":"Criticité","v":""},null,{"$f":"Criticité","v":""},null,null,null,null,null,null,null,null,null,{"$f":"Criticité","v":""}]
["R01P02",null,null,null,null,"1- Infection du site opératoire (ISO)","Défaut de mise en œuvre des mesures de prévention:\nHypothermie perop\nAntibioprophylaxie (ABP) absente ou inadaptée\nDéfaut de préparation cutanée\nChoix de la technique chirrurgicale\nTechnique peropératoire\nHemostase en peropératoire\nVoie d'abord trop invasive\nElévation du score de NNIS\nAugmentation du délai d'hospitalisation préopératoire\nJeûne préopératoire trop long\n","Augmentation du risque d'acquisition d'une ISO ","Absence de surveillance per et post opératoire (saignement, température)\nMéconnaissance du risque (gestion des anticoagulants...)\nAbsence de matériel (réchauffement,  surveillance) \nMéconnaissances des posologies, délais, réinjections ABP \nNon respect, méconnaissance du protocole de préparation cutanée\nPEC en urgence\nAbsence de matériel chirurgical adapté\nTechnique chirurgicale non adaptée\nIndisponibilité des salles d'intervention","Protocoles\nCheck list bloc\nTraçabilité\nFormation\nSurveillance qualité ATB\nSurveillance ISO\nAnalyse EI ISO\nAudits\nRetro information aux équipes (resultats audits, surveillances...)\nGestion du programme opératoire\nProtocole d'anticipation du jeûne preop\nTraçabilité IMC dossier\n\n\n",null,null,{"$f":"Criticité","v":""},null,{"$f":"Criticité","v":""},null,null,null,null,null,null,null,null,null,{"$f":"Criticité","v":""}]
["R01P03",null,null,null,null,"1- Infection du site opératoire (ISO)","Défaut de prévention / \ntransmission manuportée","Contamination du site opératoire  ","Non-conformité de la désinfection chirurgicale par friction (DCF) ou lavage chirurgical\nMauvaise gestion des gants\n ","Protocoles \nDisponibilité du matériel\nFormations\nAudit\nICSHA",null,null,{"$f":"Criticité","v":""},null,{"$f":"Criticité","v":""},null,null,null,null,null,null,null,null,null,{"$f":"Criticité","v":""}]
["R01P04",null,null,null,null,"1- Infection du site opératoire (ISO)","Défaut de maitrise de la qualité environnementale: Air","Aérobiocontamination","Tenues et comportements des professionnels inadaptés \nDéfaillance ou insuffisance du traitement d'air\nEncombrement des salles d'intervention\n","Protocoles \nFormations\nCharte de bloc\nDisponibilité des matériels et tenues\nConception locaux, équipement (sas de décartonnage..)\nSurveillance environnementale\nSuivi maintenance des installations (réunions avec les services techniques, carnet sanitaire AIR)",null,null,{"$f":"Criticité","v":""},null,{"$f":"Criticité","v":""},null,null,null,null,null,null,null,null,null,{"$f":"Criticité","v":""}]
["R01P05",null,null,null,null,"1- Infection du site opératoire (ISO)","Défaut de maitrise de la qualité environnementale: Eau","Contamination des mains des opérateurs","Défaut ou sous utilisation de la  DCF\nMauvaise gestion des filtres anti bactériens\nMéconnaissance de la contamination \n","Protocoles\nTraçabilité filtres\nFormations\nAudits\nDisponibilité des matériels \nSurveillance environnementale\nRéunions avec les services Techniques\nCarnet sanitaire Eau\nICSHA\n",null,null,{"$f":"Criticité","v":""},null,{"$f":"Criticité","v":""},null,null,null,null,null,null,null,null,null,{"$f":"Criticité","v":""}]
["R01P06",null,null,null,null,"1- Infection du site opératoire (ISO)","Défaut de maitrise de la qualité environnementale: Surfaces","Contaminations des surfaces ","Défaut de Bio nettoyage des SOP \nMéconnaissance des protocoles \nAbsence de matériels et de moyens humains\nSous estimation du risque ","Protocoles\nTraçabilité\nFormations\nAudit\nDisponibilité du matériel\nSurveillance environnementale",null,null,{"$f":"Criticité","v":""},null,{"$f":"Criticité","v":""},null,null,null,null,null,null,null,null,null,{"$f":"Criticité","v":""}]
["R01P07",null,null,null,null,"1- Infection du site opératoire (ISO)","Défaut de maitrise de la qualité de l'instrumentation chirurgicale","Contaminations du site opératoire  ","Vetusté du materiel\nPriorisation autre \nDéfaut de stérilisation  \nMéconnaissance de l'état de stérilité\nPrésence d'eau dans un container \n ","Assurance qualité en stérilisation\nDisponibilité du matériel\nFormations\nTraçabilité\nProtocole de conduite à tenir suivant le moment de la découverte de la non stérilité d'un matériel",null,null,{"$f":"Criticité","v":""},null,{"$f":"Criticité","v":""},null,null,null,null,null,null,null,null,null,{"$f":"Criticité","v":""}]
["R01P08",null,null,null,null,"1- Infection du site opératoire (ISO)","Défaut de PEC diagnostique et thérapeutique","Infection chronique\nDécès","Défaut de compétence en infectiologie\nDéfaut de connaissance des recommandations / Centre de Référence des Infections Ostéo-Articulaires Complexes (CRIOAC)","Lien avec le laboratoire\nOrganisation de l'avis infectieux, Référent ATB, infectiologue\nRecommandations diagnostiques et thérapeutiques (COMA-CAII)  Organisation d'un avis CRIOAC\n",null,null,{"$f":"Criticité","v":""},null,{"$f":"Criticité","v":""},null,null,null,null,null,null,null,null,null,{"$f":"Criticité","v":""}]
["R02P01",null,null,null,null,"2- ISO à Staphylococcus aureus dont le SARM (chir cadiaque, ortho prothétique)","Non identification facteurs de risque d'aquisition de SA dont  le SARM\nMéconnaissance du SA dont SARM","Morbidité\nMortalité (bactériéèmie à SA dont SARM, antibiothérapie)\nProlongation durée de séjour \nMajoration du risque Juridique ","PEC en urgence\nMéconnaissance des recommandations\nMéconnaissance du protocole de dépistage, de décolonisation\nIndisponibilité du Bactroban\nAbsence de transmission de l'information SARM ","Protocoles\nFormations\nAudit\nEPP\nDisponibilité du matériel\nPCR SARM\nICSHA",null,null,{"$f":"Criticité","v":""},null,{"$f":"Criticité","v":""},null,null,null,null,null,null,null,null,null,{"$f":"Criticité","v":""}]
["R03P01",null,null,null,null,"3- Epidémies ISO","Sous estimation des cas groupés d'ISO","Arrêt de l'activité","Absence de surveillance\nAbsence de signalement ","Surveillance prospective des ISO\nRetour information laboratoire \nSignalement interne des professionnels\nEtude des reprises chirurgicales\n",null,null,{"$f":"Criticité","v":""},null,{"$f":"Criticité","v":""},null,null,null,null,null,null,null,null,null,{"$f":"Criticité","v":""}]

{"sheet":"A04","index":3,"n_rows":13,"n_cols":26,"rows_kept":13,"cut":false,"hidden":false,"merged":[]}
[null,null,null,null,null,"A4 LIÉS AU PROCESSUS DE SOINS 1/3 >> Infections KT bactériémies "]
[null,"Etapes",null,null,"Analyse des risques",null,null,null,null,null,null,null,null,null,null,null,"Plan d'actions"]
["Id","Quoi","Comment","Qui","CQ","Nature du risque","Situation dangereuse","Effet Dommage","Cause(s) de la situation dangereuse ","Dispositif(s) de maitrise en place","Fréquence","Gravité","Criticité","Niveau de maîtrise","C avec niveau de maîtrise","Actions suggérées","Actions d'amélioration","Responsable(s)","Début prévu","Échéance prévue","Modalités d'évaluation / indicateurs de suivi","Etat d’avancement","Fréquence résiduelle","Gravité résiduelle","Criticité résiduelle","Gestion du risque résiduel"]
["R01P01",null,null,null,null,"1- Infection à point de départ dispositif intravasculaire (tous DIV)","Indication de pose ou de maintien du DIV non pertinente","Porte d'entrée d'une infection","Défaut de réflexion bénéfice-risque","Organisation de la réflexion bénéfice-risque / dispositifs invasifs\nProcédure\nTraçabilité\nFormation\nAudit\nIndications et alternatives  (alternative /voie orale, évaluation quotidienne du maintien) \nEPP pertinence",null,null,{"$f":"Criticité","v":""},null,{"$f":"Criticité","v":""},null,null,null,null,null,null,null,null,null,{"$f":"Criticité","v":""}]
["R01P02",null,null,null,null,"1- Infection à point de départ dispositif intravasculaire (tous DIV)","Défaut de mesures d'hygiène  lors de la pose, au moment de l'entretien ou de la manipulation  des lignes veineuses","Contamination du DIV à partir de la flore cutanée du patient\nContamination du DIV   lors de la réfection du pansement ou lors des manipulations\nProlifération intraluminale ","Absence de procédure ou méconnaissance des recommandations (changement de lignes, rinçage pulsé..)","Procédures (KTVP, KTC, PICC, CCI)\nTraçabilité\nFormation\nAudit",null,null,{"$f":"Criticité","v":""},null,{"$f":"Criticité","v":""},null,null,null,null,null,null,null,null,null,{"$f":"Criticité","v":""}]
["R01P03",null,null,null,null,"1- Infection à point de départ dispositif intravasculaire (tous DIV)","Défaut de matériel (pansement, prolongateur, valves..) ","Augmentation du risque de contamination du DIV","Choix de matériel par centrale d'achat, sans association de l'EOH et des équipes\nMéconnaissance des recommandations","Choix de matériel en collaboration avec l'EOH et les équipes\nProcédures (KTVP, KTC, PICC, CCI)\nTraçabilité\nFormation\nAudit",null,null,{"$f":"Criticité","v":""},null,{"$f":"Criticité","v":""},null,null,null,null,null,null,null,null,null,{"$f":"Criticité","v":""}]
["R01P04",null,null,null,null,"1- Infection à point de départ dispositif intravasculaire (tous DIV)","Défaut de montage  Branchement de nutrition parentérale à distance du DIV  Absence de changement de tubulure toutes les 24h en NP ternaire","Favorisation de la prolifération bactérienne intraluminale sur toute la longueur de ligne principale ","Absence de procédure ou méconnaissance des recommandations","Procédures (KTC, PICC, CCI), Traçabilité\nFormation\nAudit",null,null,{"$f":"Criticité","v":""},null,{"$f":"Criticité","v":""},null,null,null,null,null,null,null,null,null,{"$f":"Criticité","v":""}]
["R01P05",null,null,null,null,"1- Infection à point de départ dispositif intravasculaire (tous DIV)","Défaut de surveillance (point de ponction, étanchéité du pansement..) ","Retard à la prise en charge adaptée d'une anomalie (retrait du cathéter, réfection du pansement..)","Absence de procédure\nMéconnaissance des recommandations\nDéfaut de paramétrage du dossier de soins informatique","Information\nEducation du patient \nProcédures (KTVP, KTC, PICC, CCI)\nTraçabilité\nFormation\nAudit",null,null,{"$f":"Criticité","v":""},null,{"$f":"Criticité","v":""},null,null,null,null,null,null,null,null,null,{"$f":"Criticité","v":""}]
["R01P06",null,null,null,null,"1- Infection à point de départ dispositif intravasculaire (tous DIV)","Méconnaissance du risque d'infections sur DIV","Absence d'alerte et d'évaluation de la politique de prévention des infections sur DIV","Défaut de recueil de données sur infections sur DIV\nDéfaut de rétroinformation aux équipes  ","Organisation de la surveillance des infections sur DIV (KTC en Réanimation et hors Réanimation, PICC, CCI)\nOrganisation de la surveillance des bactériémies nosocomiales à point de départ DIV (analyse des causes profondes des infections graves)",null,null,{"$f":"Criticité","v":""},null,{"$f":"Criticité","v":""},null,null,null,null,null,null,null,null,null,{"$f":"Criticité","v":""}]
["R01P07",null,null,null,null,"1- Infection à point de départ dispositif intravasculaire (tous DIV)","Défaut de prise en charge diagnostique et thérapeutique de l'infection locale","Bactériémie\nLocalisation secondaire (S. aureus et endocardite, spondylodiscite..)","Défaut de surveillance\nMéconnaissance du risque \nMéconnaissance des recommandations","Lien avec le laboratoire\nOrganisation de l'avis infectieux\nRéferent ATB\nRecommandations diagnostiques et thérapeutiques (COMAI-CAI)\nOrganisation de la surveillance des bactériémies nosocomiales à point de départ cathéter vasculaire (analyse des causes profondes des infections graves)\nFormation",null,null,{"$f":"Criticité","v":""},null,{"$f":"Criticité","v":""},null,null,null,null,null,null,null,null,null,{"$f":"Criticité","v":""}]
["R02P01",null,null,null,null,"2- Infection à point de départ cathéters centraux (veineux , artériel, dialyse, PICC, CCI)","Site de pose  non optimal (risque infectieux lié à KTVC fémoral > jugulaire > sous-clavier ; PICC à proximité du pli du coude..)","Augmentation du risque d'infection","Méconnaissance des recommandations","Procédures (KTC, PICC, CCI)\nTraçabilité\nFormation\nAudit",null,null,{"$f":"Criticité","v":""},null,{"$f":"Criticité","v":""},null,null,null,null,null,null,null,null,null,{"$f":"Criticité","v":""}]
["R02P02",null,null,null,null,"2- Infection à point de départ cathéters centraux (veineux , artériel, dialyse, PICC, CCI)","Défaut des conditions d'asepsie chirurgicale lors de la pose (dont manipulation de l'échographe)","Infection précoce\nInfection du site opératoire (CCI)","Absence de procédure\nMéconnaissance des recommandations\nAbsence de check-list\nEnvironnement inadapté","Environnement adapté\nProcédures (KTC, PICC, CCI)\nCheck-list DIV HAS\nTraçabilité\nFormation\nAudit",null,null,{"$f":"Criticité","v":""},null,{"$f":"Criticité","v":""},null,null,null,null,null,null,null,null,null,{"$f":"Criticité","v":""}]
["R03P01",null,null,null,null,"3- Infection à point de départ chambre implantable (CCI)","Hématome local \nTraumatisme tissulaire lors de la pose ","Augmentation du risque d'infection du site opératoire ","Défaut de gestion pré-opératoire des anticoagulants\nOpérateur peu expérimenté Choix d'une technique ou d'un site non approprié (absence d'écho lors de la pose en aveugle)","Procédure (pose CCI)\nEvaluation du patient et de l'accessibilité des voies profondes avant la pose formation",null,null,{"$f":"Criticité","v":""},null,{"$f":"Criticité","v":""},null,null,null,null,null,null,null,null,null,{"$f":"Criticité","v":""}]

{"sheet":"A05","index":4,"n_rows":7,"n_cols":26,"rows_kept":7,"cut":false,"hidden":false,"merged":[]}
[null,null,null,null,null,"A5 LIÉS AU PROCESSUS DE SOINS 1/3 >> Dispositifs médicaux"]
[null,"Etapes",null,null,"Analyse des risques",null,null,null,null,null,null,null,null,null,null,null,"Plan d'actions"]
["Id","Quoi","Comment","Qui","CQ","Nature du risque","Situation dangereuse","Effet Dommage","Cause(s) de la situation dangereuse ","Dispositif(s) de maitrise en place","Fréquence","Gravité","Criticité","Niveau de maîtrise","C avec niveau de maîtrise","Actions suggérées","Actions d'amélioration","Responsable(s)","Début prévu","Échéance prévue","Modalités d'évaluation / indicateurs de suivi","Etat d’avancement","Fréquence résiduelle","Gravité résiduelle","Criticité résiduelle","Gestion du risque résiduel"]
["R01P01",null,null,null,null,"1- Infections liées à utilisation dispositif médical (DM) à usage unique","Méconnaissance du DM contaminé ","Bactériémie\nInfection du site opératoire\nInfection sur DIV\nInfection SNC \nInfection urinaire\nInfection osseuse \nInfection cardiaque\nRisque vital \nRisque Juridique","Défaut fournisseur interne ou externe","Politique d'investissement priorisant l'acquisition de DM à  UU ou stérilisable\nConcertation multidisciplinaire (biomed, service, EOH)\nContrôle qualité avant utilisation\nVérification à la livraison\nMatériovigilance ",null,null,{"$f":"Criticité","v":""},null,{"$f":"Criticité","v":""},null,null,null,null,null,null,null,null,null,{"$f":"Criticité","v":""}]
["R02P01",null,null,null,null,"2- Infections liées à utilisation DM stérilisable","Défaut processus de stérilisation","Bactériémie\nInfection Site Opératoire\nInfection SNC\nInfection urinaire\nInfection osseuse\nInfection cardiaque\nRisque vital\nRisque Juridique\n","Mauvais rangement, \nDates de péremption non respectées\nNon respect de protocoles\nUrgences\nMauvaise gestion du programme opératoire..","Politique d'investissement priorisant l'acquisition de DM à  UU ou stérilisable\nConcertation multidisciplinaire (biomed, service, EOH)\nMaitrise du circuit en cas de stérilisation centralisée ou externalisée\nInventaire des DM, gestion du stock\nProtocoles\nFormations\nAudits, \nInspections tutelles\nConditions de stockage adaptées",null,null,{"$f":"Criticité","v":""},null,{"$f":"Criticité","v":""},null,null,null,null,null,null,null,null,null,{"$f":"Criticité","v":""}]
["R03P01",null,null,null,null,"3- Infections liées à utilisation DM thermosensible","Défaut processus de désinfection","Bactériémie\nTransmission virale \nISO\nInfection SNC\nInfection urinaire\nRisque vital\nRisque juridique\n","Mauvais rangement, \nNon respect de protocoles de désinfection\nUrgences\nMauvaise gestion du programme opératoire..\nMatériel endommagé\nAbsence de programme de contrôles bactériologiques\nDéfaut de traçabilité","Politique d'investissement, \nPolitique de maintenance des dispositifs.\nConcertation multidisciplinaire (Biomed, service, EOH)\nTraçabilité totale, cahier de vie des endoscopes\nProtocoles dont le programme de contrôle microbiologique.\nOrganisation des retours des analyses microbiologiques\nFormations, habilitations\nAudits\nConditions de stockage adaptées\nInventaire des DM Thermo-sensibles",null,null,{"$f":"Criticité","v":""},null,{"$f":"Criticité","v":""},null,null,null,null,null,null,null,null,null,{"$f":"Criticité","v":""}]
["R04P01",null,null,null,null,"4- Cas groupés d'infections liées à utilisation DM ","\nDéfaut d'identification de la responsabilité du DM dans ces cas groupés.","Bactériémie\nISO\nInfection SNC\nInfection urinaire\nInfection osseuse\nProblème cardiaque\nRisque vital\nRisque juridique\nArrêt de l'activité","Absence de conduite à tenir\nSous estimation du risque\nAbsence de retrait du lot\nAbsence de signalement interne","Protocoles\nFormations\nRetrait de lot\nAnnonce dommage associé aux soins \nSignalement interne et externe\nAnalyse des causes\nCulture qualité Sécurité des Soins ",null,null,{"$f":"Criticité","v":""},null,{"$f":"Criticité","v":""},null,null,null,null,null,null,null,null,null,{"$f":"Criticité","v":""}]

{"sheet":"B01","index":5,"n_rows":7,"n_cols":26,"rows_kept":7,"cut":false,"hidden":false,"merged":[]}
[null,null,null,null,null,"B1 LIÉS AU PROCESSUS DE SOINS 2/3 >> Infections de la peau et des tissus mous"]
[null,"Etapes",null,null,"Analyse des risques",null,null,null,null,null,null,null,null,null,null,null,"Plan d'actions"]
["Id","Quoi","Comment","Qui","CQ","Nature du risque","Situation dangereuse","Effet Dommage","Cause(s) de la situation dangereuse ","Dispositif(s) de maitrise en place","Fréquence","Gravité","Criticité","Niveau de maîtrise","C avec niveau de maîtrise","Actions suggérées","Actions d'amélioration","Responsable(s)","Début prévu","Échéance prévue","Modalités d'évaluation / indicateurs de suivi","Etat d’avancement","Fréquence résiduelle","Gravité résiduelle","Criticité résiduelle","Gestion du risque résiduel"]
["R01P01",null,null,null,null,"1- Infections nosocomiales de la peau et des tissus mous (SARM PVL, Steptocoque du Groupe A, gale,ectoparasite)  chez un patient","Défaut/absence d'identification du cas source (contagiosité ; patient ou professionnel)                                ","Retard à la PEC thérapeutique\nRetard aux mesures d'hygiène\nProlongation de la duree de sejour\nCas secondaire","Méconnaissance des recommandations\nRetard à l'identification du microorganisme\nAbsence de signalement interne","Alerte laboratoire\nRéférent ATB\nFormation\nSignalement interne et externe",null,null,{"$f":"Criticité","v":""},null,{"$f":"Criticité","v":""},"SGA ",null,null,null,null,null,null,null,null,{"$f":"Criticité","v":""}]
["R01P02",null,null,null,null,"1- Infections nosocomiales de la peau et des tissus mous (SARM PVL, Steptocoque du Groupe A, gale,ectoparasite)  chez un patient","Défaut de respect des Précautions Standard (PS)","Cas secondaire\nEpidémie de portage, d'infections\nFermeture du service","Méconnaissance des recommandations\nMéconnaissance du risque","Protocole PS\nFormations\nInformations\nAudit PS\nHygiène des mains\nEOH",null,null,{"$f":"Criticité","v":""},null,{"$f":"Criticité","v":""},null,null,null,null,null,null,null,null,null,{"$f":"Criticité","v":""}]
["R01P03",null,null,null,null,"1- Infections nosocomiales de la peau et des tissus mous (SARM PVL, Steptocoque du Groupe A, gale,ectoparasite)  chez un patient","Défaut d'utilisation du matériel de protection\nRetard à la mise en place des précautions complémentaires contact (PCC)","Cas secondaire\nEpidémie de portage, d'infections\nFermeture du service","Méconnaissance des recommandations\nMéconnaissance du risque\nRetard au diagnostique","Protocole PCC et conduite à tenir en cas de cas groupés\nFormations\nAudit PPC EOH",null,null,{"$f":"Criticité","v":""},null,{"$f":"Criticité","v":""},null,null,null,null,null,null,null,null,null,{"$f":"Criticité","v":""}]
["R01P04",null,null,null,null,"1- Infections nosocomiales de la peau et des tissus mous (SARM PVL, Steptocoque du Groupe A, gale,ectoparasite)  chez un patient","Défaut de prise en charge diagnostique et thérapeutique","Prolongation durée de séjour\nCas secondaire\nEpidémie de portage, d'infections\nFermeture du service\nDécès du patient","Méconnaissance des recommandations spécifiques\nMéconnaissance du risque\n","Lien avec le laboratoire\nOrganisation de l'avis infectieux, référent antibiotique (ATB)\nRecommandations diagnostiques et thérapeutiques (COMAI-CAI)\nEOH existante\nProtocole de prophylaxie des contacts (si SGA, gale+/-SARM PVL)\nFormation\nsignalement interne et externe \n",null,null,{"$f":"Criticité","v":""},null,{"$f":"Criticité","v":""},null,null,null,null,null,null,null,null,null,{"$f":"Criticité","v":""}]

{"sheet":"B02","index":6,"n_rows":9,"n_cols":26,"rows_kept":9,"cut":false,"hidden":false,"merged":[]}
[null,null,null,null,null,"B2 LIÉS AU PROCESSUS DE SOINS 2/3 >> Infections digestives"]
[null,"Etapes",null,null,"Analyse des risques",null,null,null,null,null,null,null,null,null,null,null,"Plan d'actions"]
["Id","Quoi","Comment","Qui","CQ","Nature du risque","Situation dangereuse","Effet Dommage","Cause(s) de la situation dangereuse ","Dispositif(s) de maitrise en place","Fréquence","Gravité","Criticité","Niveau de maîtrise","C avec niveau de maîtrise","Actions suggérées","Actions d'amélioration","Responsable(s)","Début prévu","Échéance prévue","Modalités d'évaluation / indicateurs de suivi","Etat d’avancement","Fréquence résiduelle","Gravité résiduelle","Criticité résiduelle","Gestion du risque résiduel"]
["R01P01",null,null,null,null,"1- Infections digestives  nosocomiales (bact, virale, parasitaire, clostridium) chez un patient","Défaut d'identification du cas source (contagiosité)","\nRetard à la PEC thérapeutique\nRetard aux mesures d'hygiène\nProlongation de la durée de sejour\nCas secondaire","Retard à l'identification du microorganisme\nAbsence de signalement interne","Alerte laboratoire\nSignalement interne et externe",null,null,{"$f":"Criticité","v":""},null,{"$f":"Criticité","v":""},null,null,null,null,null,null,null,null,null,{"$f":"Criticité","v":""}]
["R01P02",null,null,null,null,"1- Infections digestives  nosocomiales (bact, virale, parasitaire, clostridium) chez un patient","Défaut de respect des précautions standard (PS) et complémentaires contact (PCC)","Cas secondaire\nEpidémie\nFermeture du service\nContamination de l'environnement-matériel","Méconnaissance des recommandations\nMéconnaissance des risques","Protocole\nMatériel de protection disponible\nFormation\nEOH existante\nAudit des pratiques\nEffectifs suffisants\nProtocoles de bionettoyage",null,null,{"$f":"Criticité","v":""},null,{"$f":"Criticité","v":""},null,null,null,null,null,null,null,null,null,{"$f":"Criticité","v":""}]
["R01P03",null,null,null,null,"1- Infections digestives  nosocomiales (bact, virale, parasitaire, clostridium) chez un patient","Défaut de gestion des excreta","Cas secondaire\nEpidémie\nFermeture du service\nContamination de l'environnement-matériel","Méconnaissance (mesusage des bassins)\nAbsence ou dysfonctionnement du LB\nUtilisation des douchettes","Lave bassin (maintenance préventive et curative, disponibilité)\nFormation des personnels\nSystème de carebag®, Accompagnement des équipes sur l'arrêt des douchettes",null,null,{"$f":"Criticité","v":""},null,{"$f":"Criticité","v":""},null,null,null,null,null,null,null,null,null,{"$f":"Criticité","v":""}]
["R01P04",null,null,null,null,"1- Infections digestives  nosocomiales (bact, virale, parasitaire, clostridium) chez un patient","Défaut de prise en charge diagnostique et thérapeutique","Prolongation durée de séjour\nDécès","Méconnaissance des recommandations\nRetard à l'identification du microorganisme ","Lien avec le laboratoire\n'Organisation de l'avis infectieux, référent antibiotique (ATB)\nRecommandations diagnostiques et thérapeutiques (COMAI-CAI) \nOrganisation et  information des prescripteurs sur l'obtention d'avis en antibiothérapie 24/24 etr 7/7 \nFormation",null,null,{"$f":"Criticité","v":""},null,{"$f":"Criticité","v":""},null,null,null,null,null,null,null,null,null,{"$f":"Criticité","v":""}]
["R02P01",null,null,null,null,"2-Infections digestives à clostridium chez un patient ","Défaut de respect des precautions specifiques (patient infecté à clostridium dans l'unité)","Cas secondaire\nEpidémie\nFermeture du service\nContamination de l'environnement-matériel","Non respect de l'hygiène des mains par lavage au savon par méconnaissance du risque lié au microorganisme\nDéfaut d'approvisionnement en savon, essuie main\nDéfaut de bionettoyage à la javel\nNon respect des PCC","Protocole sépicifique clostridium (HDM, bionettoyage sporicide) \nMatériel de protection disponible\nFormation\nEOH existante\nAudit des pratiques\nEffectifs suffisants",null,null,{"$f":"Criticité","v":""},null,{"$f":"Criticité","v":""},null,null,null,null,null,null,null,null,null,{"$f":"Criticité","v":""}]
["R02P02",null,null,null,null,"2-Infections digestives à clostridium chez un patient ","Défaut d'antibiothérapie (prolongée ou non adaptée)","Colite à Clostridium difficile","Méconnaissance du risque lié à l'ATB\nAbsence de procédure de réévaluation de l'ATB","Recommandations diagnostiques et thérapeutiques (COMAI)  \nProtocole de réevalution ATB\nRéférent ATB\nFormation",null,null,{"$f":"Criticité","v":""},null,{"$f":"Criticité","v":""},null,null,null,null,null,null,null,null,null,{"$f":"Criticité","v":""}]

{"sheet":"B03","index":7,"n_rows":10,"n_cols":26,"rows_kept":10,"cut":false,"hidden":false,"merged":[]}
[null,null,null,null,null,"B3 LIÉS AU PROCESSUS DE SOINS 2/3 >> Méningites"]
[null,"Etapes",null,null,"Analyse des risques",null,null,null,null,null,null,null,null,null,null,null,"Plan d'actions"]
["Id","Quoi","Comment","Qui","CQ","Nature du risque","Situation dangereuse","Effet Dommage","Cause(s) de la situation dangereuse ","Dispositif(s) de maitrise en place","Fréquence","Gravité","Criticité","Niveau de maîtrise","C avec niveau de maîtrise","Actions suggérées","Actions d'amélioration","Responsable(s)","Début prévu","Échéance prévue","Modalités d'évaluation / indicateurs de suivi","Etat d’avancement","Fréquence résiduelle","Gravité résiduelle","Criticité résiduelle","Gestion du risque résiduel"]
["R01P01",null,null,null,null,"1- Méningite bactérienne et virale nosocomiale chez un patient ","Défaut/absence d'identification du cas source (contagiosité)","Retard à la PEC thérapeutique\nRetard aux mesures d'hygiène\nProlongation de la duree de sejour\nCas secondaire","Méconnaissance des recommandations\nRetard à l'identification du microorganisme\nAbsence de signalement interne","Alerte laboratoire\nRéférent ATB\nFormation\nSignalement interne et externe",null,null,{"$f":"Criticité","v":""},null,{"$f":"Criticité","v":""},null,null,null,null,null,null,null,null,null,{"$f":"Criticité","v":""}]
["R01P02",null,null,null,null,"1- Méningite bactérienne et virale nosocomiale chez un patient ","Défaut de respect des Précautions Standard (PS),   d'utilisation du matériel de protection lors d'anesthésie péridurale ou de gestes invasifs meningés","Inoculation directe d'un microorganisme","Méconnaissance du risque lié au geste invasif\nAbsence de matériel de protection","Formation\nAudit\nEOH\nProtocole\nApprovisionnement en équipement de protection",null,null,{"$f":"Criticité","v":""},null,{"$f":"Criticité","v":""},null,null,null,null,null,null,null,null,null,{"$f":"Criticité","v":""}]
["R01P03",null,null,null,null,"1- Méningite bactérienne et virale nosocomiale chez un patient ","Défaut d'utilisation du matériel de protection\nRetard à la mise en place des Précautions Complémentaires Goutelettes (PCG)","Cas secondaire\nEpidémie\nFermeture du service","Méconnaissance du risque\nDiagnostic\nRecommandations","Protocoles\nFormations\nAudit PCG\nEquipement de protection disponible\nLiens avec l'EOH ",null,null,{"$f":"Criticité","v":""},null,{"$f":"Criticité","v":""},null,null,null,null,null,null,null,null,null,{"$f":"Criticité","v":""}]
["R01P04",null,null,null,null,"1- Méningite bactérienne et virale nosocomiale chez un patient ","Défaut de prise en charge diagnostique et thérapeutique","Prolongation de durée de séjour\nDécès","Méconnaissance des recommandations\nRetard à l'identification du microorganisme (labo)","Alerte laboratoire\n'Organisation de l'avis infectieux, référent antibiotique (ATB)\nRecommandations diagnostiques et thérapeutiques (COMAI-CAI)\nOrganisation et  information des prescripteurs sur l'obtention d'avis en antibiothérapie 24/24 etr 7/7 \nFormation ",null,null,{"$f":"Criticité","v":""},null,{"$f":"Criticité","v":""},null,null,null,null,null,null,null,null,null,{"$f":"Criticité","v":""}]
["R02P01",null,null,null,null,"2- Méningite sur Dérivation Ventriculaire Externe (DVE)","Défaut de pose\nManipulation de la DVE","Augmentation du risque d'infection par inoculation lors de la pose/manipulation\nColonisation du cathéter par des germes de la peau\nProlongation durée de séjour\nCas secondaire","Méconnaissance des protocoles\nMesures de prévention","Protocole de pose et de manipulation des DVE\nFormations\nInformation",null,null,{"$f":"Criticité","v":""},null,{"$f":"Criticité","v":""},null,null,null,null,null,null,null,null,null,{"$f":"Criticité","v":""}]
["R03P01",null,null,null,null,"3- Méningite à méningocoque","Défaut de prohylaxie des sujets contacts d'un cas","Augmentation du risque de cas secondaire","Méconnaissance des recommandations","Protocole conduite à tenir en cas de Méningite à méningocoque\nInformations\nFormations",null,null,{"$f":"Criticité","v":""},null,{"$f":"Criticité","v":""},null,null,null,null,null,null,null,null,null,{"$f":"Criticité","v":""}]
["R04P01",null,null,null,null,"4- Méningite à listeria","Défaut respect des règles d'hygiene chez patients à risque\nConservation aliments à risque chez patients à risque","Inoculation et diffusion hématogène d'un microorganisme","Méconnaissance du risque\nNon respect des recommandations\nNon respect des régles d'hygiene","Méthode HACCP en restauration\nProtocoles\nSurveillance micrbiologique\nAlerte",null,null,{"$f":"Criticité","v":""},null,{"$f":"Criticité","v":""},null,null,null,null,null,null,null,null,null,{"$f":"Criticité","v":""}]

{"sheet":"B04","index":8,"n_rows":7,"n_cols":26,"rows_kept":7,"cut":false,"hidden":false,"merged":[]}
[null,null,null,null,null,"B4 LIÉS AU PROCESSUS DE SOINS 2/3 >> Infections virales hématogènes"]
[null,"Etapes",null,null,"Analyse des risques",null,null,null,null,null,null,null,null,null,null,null,"Plan d'actions"]
["Id","Quoi","Comment","Qui","CQ","Nature du risque","Situation dangereuse","Effet Dommage","Cause(s) de la situation dangereuse ","Dispositif(s) de maitrise en place","Fréquence","Gravité","Criticité","Niveau de maîtrise","C avec niveau de maîtrise","Actions suggérées","Actions d'amélioration","Responsable(s)","Début prévu","Échéance prévue","Modalités d'évaluation / indicateurs de suivi","Etat d’avancement","Fréquence résiduelle","Gravité résiduelle","Criticité résiduelle","Gestion du risque résiduel"]
["R01P01",null,null,null,null,"1. Transmission croisée de virus hématogène (VHB, VHC, HIV)","Défaut de pratiques / administration de médicament injectable","Tranmission croisée par injection de médicament contaminé à partir d'un patient infecté\nCas secondaire\nEpidémie\nDécès","Utilisation multipatients de flacons de médicaments injectables\nProjections contaminantes lors de la préparation des médicaments injectables","Flacons de médicament unidoses\nProcédure de préparation des médicaments injectables\nFormation\nAudit",null,null,{"$f":"Criticité","v":""},null,{"$f":"Criticité","v":""},null,null,null,null,null,null,null,null,null,{"$f":"Criticité","v":""}]
["R01P02",null,null,null,null,"1. Transmission croisée de virus hématogène (VHB, VHC, HIV)","Défaut de pratiques / bionettoyage de l'environnement  contaminé à partir d'un patient infecté\n(NB : pour les sources DM voir onglet A5)","Tranmission croisée à partir d'un environnement contaminé\nCas secondaire\nEpidémie\nDécès","Meconnaissance du risque\nNon respect des précautions standard\nDéfaut de bionettoyage des locaux et des équipements","Procédures \"précautions standard\" et \n\"bionettoyage des locaux et des équipements\"\nFormations\nTraçabilité\nAudit",null,null,{"$f":"Criticité","v":""},null,{"$f":"Criticité","v":""},null,null,null,null,null,null,null,null,null,{"$f":"Criticité","v":""}]
["R01P03",null,null,null,null,"1. Transmission croisée de virus hématogène (VHB, VHC, HIV)","Défaut de pratiques / actes invasifs réalisés par un professionnel de santé infecté (exposition patients)","Tranmission croisée à partir d'un AES (cas source = professionnel) \nCas secondaire\nEpidémie\nDécès","Méconnaissance du risque\nDéfaut de connaissance du statut immunitaire des professionnels / hépatite B par la médecine préventive\nMéconnaissance du statut infecté par le professionnel lui-même\nDéfaut de suivi adapté du professionnel infecté (charge virale élevée)\nDéfaut du respect des précautions standard\net adaptées / portage de virus hématogènes\nDéfaut d'évaluation de l'aptitude par la médecine préventive\nAbsence de signalement","Surveillance immunisation Hépatite B des professionnels\nConnaissance des recommandations / professionnels porteurs de virus hématogènes\nProcédures \"précautions standard\"\nFormation\nTraçabilité\nAudit\nSignalement interne et externe",null,null,{"$f":"Criticité","v":""},null,{"$f":"Criticité","v":""},null,null,null,null,null,null,null,null,null,{"$f":"Criticité","v":""}]
["R01P04",null,null,null,null,"1. Transmission croisée de virus hématogène (VHB, VHC, HIV)","Défaut de prise en charge diagnostique et thérapeutique","Infection chronique\nDécès","Méconnaissance des recommandations\nDéfaut de signalement interne","Organisation de l'avis infectieux\nSignalement interne et externe",null,null,{"$f":"Criticité","v":""},null,{"$f":"Criticité","v":""},null,null,null,null,null,null,null,null,null,{"$f":"Criticité","v":""}]

{"sheet":"B05","index":9,"n_rows":17,"n_cols":26,"rows_kept":17,"cut":false,"hidden":false,"merged":[]}
[null,null,null,null,null,"B5 LIÉS AU PROCESSUS DE SOINS 2/3 >> Alimentation et Nutrition"]
[null,"Etapes",null,null,"Analyse des risques",null,null,null,null,null,null,null,null,null,null,null,"Plan d'actions"]
["Id","Quoi","Comment","Qui","CQ","Nature du risque","Situation dangereuse","Effet Dommage","Cause(s) de la situation dangereuse ","Dispositif(s) de maitrise en place","Fréquence","Gravité","Criticité","Niveau de maîtrise","C avec niveau de maîtrise","Actions suggérées","Actions d'amélioration","Responsable(s)","Début prévu","Échéance prévue","Modalités d'évaluation / indicateurs de suivi","Etat d’avancement","Fréquence résiduelle","Gravité résiduelle","Criticité résiduelle","Gestion du risque résiduel"]
["R01P01",null,null,null,null,"1-Infection alimentaire collective","Non identification de l'origine alimentaire de l'infection\n(Méconnaissance de la survenue d'infections alimentaires collectives)","Retard à la prise en charge de l'évènement / suppression de la source","Manque de communication EOH-services de soins- restauration collective\nAbsence de signalement interne","Protocoles\n'Formation\nSignalement interne et externe",null,null,{"$f":"Criticité","v":""},null,{"$f":"Criticité","v":""},null,null,null,null,null,null,null,null,null,{"$f":"Criticité","v":""}]
["R01P02",null,null,null,null,"1-Infection alimentaire collective","Défaut de maitrise du  processus de production alimentaire","Augmentation du risque de contamination des aliments","Méconnaissance du processus alimentaire fondé sur la méthode HACCP\nLocaux non adaptés à la production alimentaire","Analyses bactériologiques de l'alimentation\nPrélèvement de l'environnement\nPlan de nettoyage\nTraçabilité\nIdentification des flux et des températures à l'intérieur des locaux\nConception des matériels de production\nProtocoles\nSignalement des évènements indésirables\nFormation\nVisite médicale annuelle",null,null,{"$f":"Criticité","v":""},null,{"$f":"Criticité","v":""},null,null,null,null,null,null,null,null,null,{"$f":"Criticité","v":""}]
["R01P03",null,null,null,null,"1-Infection alimentaire collective","Défaut de maitrise des pratiques en  cuisine thérapeutique","Augmentation du risque d'infection digestive\nProlongation de l'hospitalisation\nDécompensation\nDécès\nCas groupés","Non respect des règles HACCP\nNon maitrise de l'environnement\nNon respect de l'hygiène des mains","Equipement fonctionnel\nProtocoles\nFormation\nAudit",null,null,{"$f":"Criticité","v":""},null,{"$f":"Criticité","v":""},null,null,null,null,null,null,null,null,null,{"$f":"Criticité","v":""}]
["R02P01",null,null,null,null,"2-Infection digestive","Défaut d'identification de l'origine alimentaire externe ou apportée par les visiteurs","Infection digestive\nProlongation durée de séjour\nDécès\n","Présence de nourriture dans les chambres\nDéfaut d'identification des besoins patient (confessions, vegan…)\n Défaut de communication famille, patient/soignants\nApport nourriture extérieure\nDéfaut de gestion des réfrigérateurs dans les chambres","Politique de gestion des risques alimentaires\nProtocoles\nInformations aux patients et familles\nTraçabilité d'entretien\nCollaboration avec le service diététique",null,null,{"$f":"Criticité","v":""},null,{"$f":"Criticité","v":""},null,null,null,null,null,null,null,null,null,{"$f":"Criticité","v":""}]
["R02P02",null,null,null,null,"2-Infection digestive","Défaut de préparation de repas mixés","Augmentation du risque d'infection digestive","Pas de locaux dédiés ou adaptés-Pas de bionettoyage de l'environnement-préparations faites à l'avance- non respect des régles HACCP","Protocoles-formation-Matériel adapté-Maintenance du matériel-Traçabilité de l'entretien-produit d'entretien adapté-Prélèvements de l'environnement-analyse microbiologique des légumes mixés-",null,null,{"$f":"Criticité","v":""},null,{"$f":"Criticité","v":""},null,null,null,null,null,null,null,null,null,{"$f":"Criticité","v":""}]
["R03P01",null,null,null,null,"3- Infection digestive du patient aplasique en soins intensifs d'hématologie ","Défaut de l'isolement protecteur","Augmentation du risque d'infection digestive","Méconnaissance ou non respect des bonnes pratiques ","Protocole (liste des éléments proscrits, modalités de conservation..) \nFormation\nMatériel adapté\nService diététique",null,null,{"$f":"Criticité","v":""},null,{"$f":"Criticité","v":""},null,null,null,null,null,null,null,null,null,{"$f":"Criticité","v":""}]
["R04P01",null,null,null,null,"4-Infection digestive du nouveau-né et du nourrisson","Contamination du lait maternel recueilli par la mère","Augmentation du risque d'infection digestive du nouveau né et du nourisson","Méconnaissance maternelle\nAbsence d'éducation maternelle\nTransport du lait inadapté","Information/Formation aux mères\nTraçabilité de l'information donnée\nTraçabilité du recueil\nBiberons ou flacons adaptés pour le recueil\nProtocoles\nTransport réfrigéré",null,null,{"$f":"Criticité","v":""},null,{"$f":"Criticité","v":""},null,null,null,null,null,null,null,null,null,{"$f":"Criticité","v":""}]
["R04P02",null,null,null,null,"4-Infection digestive du nouveau-né et du nourrisson","Défaut des conditions d'utilisation du lait maternel sur le site de consommation","Augmentation du risque d'infection digestive du nouveau né ou du nourisson","Locaux inadaptés\nRupture de la chaine du froid\nLait recongelé\nLait décongelé au-delà d'une journée\nMauvaise conservation\nMauvaise décongélation","Protocoles\nFormation\nMatériel adapté\nLocaux adaptés\nMaintenance des matériels\nPrélèvements de l'environnement",null,null,{"$f":"Criticité","v":""},null,{"$f":"Criticité","v":""},null,null,null,null,null,null,null,null,null,{"$f":"Criticité","v":""}]
["R04P03",null,null,null,null,"4-Infection digestive du nouveau-né et du nourrisson","Défaut des conditions de reconstitution du lait maternisé sur le site de consommation","Augmentation du risque d'infection digestive du nouveau né ou du nourisson","Utilisation d'eau du réseau\nLaits périmés\nPas ou mauvais essuyage de la boite\nNon respect des précautions standard\nBionettoyage de l'environnement défectueux\nEntretien défectueux des biberons et tétines ","Protocoles\nFormation\nMatériel adapté en quantité suffisante\nLocaux adaptés\nPrélèvements de l'environnement\nDétergents/désinfectant adaptés Traçabilité\nAnalyse microbiologique du lait reconstitué\nSurveillance de la qualité de l'eau et de l'air",null,null,{"$f":"Criticité","v":""},null,{"$f":"Criticité","v":""},null,null,null,null,null,null,null,null,null,{"$f":"Criticité","v":""}]
["R04P04",null,null,null,null,"4-Infection digestive du nouveau-né et du nourrisson","Défaut dans la dispensation des biberons","Augmentation du risque d'infection digestive du nouveau né ou du nourisson","Stockage inadapté\nRéfrigérateur non entretenu\nDélai entre réchauffement et consommation supérieur à 1h\nMauvais entretien des biberons","Protocoles\nFormation\nMatériel adapté\nMaintenance du matériel\nTraçabilité de l'entretien du matériel\nProduit d'entretien adapté\nTraçablité de l'entretien des biberons\nPrélèvements de l'environnement\nAnalyse microbiologique du lait reconstitué\nSurveillance de la qualité de l'eau et de l'air",null,null,{"$f":"Criticité","v":""},null,{"$f":"Criticité","v":""},null,null,null,null,null,null,null,null,null,{"$f":"Criticité","v":""}]
["R05P01",null,null,null,null,"5-Infection digestive lors de nutrition parentérale ","Défaut de constitution du microbiote digestif","Augmentation du risque d'infection digestive ou systémique","Colonisation du tube digestif par non utilisation de ce dernier lors de nutrition parenterale de longue durée. ","Protocoles de nutrition parentérale\nEvaluation de la pertinence EPP\n",null,null,{"$f":"Criticité","v":""},null,{"$f":"Criticité","v":""},null,null,null,null,null,null,null,null,null,{"$f":"Criticité","v":""}]
["R06P01",null,null,null,null,"6-Infection liée à la nutrition parentérale ","Défaut d'administration d'une alimentation parentérale","Veinite-lymphangite\nInfection systémique\nProlongation de l'hospitalisation\nDécès","Mauvaise manipulation de poches\nNutrition en place au-delà de 24h pour une poche\nPas de changement de tubulure entre 2 poches\nPas de réflexion bénéfices/risque nutrition entérale/nutrition parentérale\nMatériel inadapté","Protocoles\nFormation\nTraçabilité\nAudit\nEvaluation médicale bénéfices/risque",null,null,{"$f":"Criticité","v":""},null,{"$f":"Criticité","v":""},null,null,null,null,null,null,null,null,null,{"$f":"Criticité","v":""}]
["R07P01",null,null,null,null,"7-Infection  liée à l'alimentation entérale","Défaut de pose d'une sonde de gastrostomie, jéjunostomie","Infection au point de passage cutané de la sonde-Abcès","Défaut d'antibioprophylaxie à la pose de la sonde","Protocoles\nFormation\nAudit ",null,null,{"$f":"Criticité","v":""},null,{"$f":"Criticité","v":""},null,null,null,null,null,null,null,null,null,{"$f":"Criticité","v":""}]
["R07P02",null,null,null,null,"7-Infection  liée à l'alimentation entérale","Défaut de manipulation d'une sonde de gastrostomie, jéjunostomie","Pneumopathie d'inhalation \nInfection au point de passage cutané de la sonde-Abcès","Position allongée\nIntubation trachéale\nVomissements\nTroubles de la conscience\nMéconnaissance des bonnes pratiques ","Protocoles\nFormation\nAudit \nMatèriel adapté",null,null,{"$f":"Criticité","v":""},null,{"$f":"Criticité","v":""},null,null,null,null,null,null,null,null,null,{"$f":"Criticité","v":""}]

{"sheet":"C01","index":10,"n_rows":7,"n_cols":26,"rows_kept":7,"cut":false,"hidden":false,"merged":[]}
[null,null,null,null,null,"C1 LIÉS AU PROCESSUS DE SOINS 3/3 >> ATB et Diffusion des résistances bactériennes"]
[null,"Etapes",null,null,"Analyse des risques",null,null,null,null,null,null,null,null,null,null,null,"Plan d'actions"]
["Id","Quoi","Comment","Qui","CQ","Nature du risque","Situation dangereuse","Effet Dommage","Cause(s) de la situation dangereuse ","Dispositif(s) de maitrise en place","Fréquence","Gravité","Criticité","Niveau de maîtrise","C avec niveau de maîtrise","Actions suggérées","Actions d'amélioration","Responsable(s)","Début prévu","Échéance prévue","Modalités d'évaluation / indicateurs de suivi","Etat d’avancement","Fréquence résiduelle","Gravité résiduelle","Criticité résiduelle","Gestion du risque résiduel"]
["R01P01",null,null,null,null,"1-Emergence de résistance (pression de sélection) due aux antibiotiques  (ATB) au niveau de l'établissement","Excès de consommation des ATB par excès de prescription ","Augmentation des résistances\nMutations\nTransmission plasmidique des résistances","Méconnaissance des indications des ATB: \nErreur diagnostique\nInquiétude devant une fièvre\nNon lecture de                              l' antibiogramme\nPrescription non documentée\nNon respect des recommandations\nAbsence de recos de protocoles\nDéficit en expertise","Système expert lors de prescription\nConseil antibiotique\nProtocole\nAudit\nSuivi des conso\nEPP pertinence\nFormation\nICATB, ICABMR\nMise en œuvre locale de la politique nationale\nCOMAI ou CAI",null,null,{"$f":"Criticité","v":""},null,{"$f":"Criticité","v":""},null,null,null,null,null,null,null,null,null,{"$f":"Criticité","v":""}]
["R02P01",null,null,null,null,"2- Emergence de résistance due aux ATB au niveau individuel","Défaut ATBthérapie adaptée: molécule, posologie, durée","Sélection de résistances\nMutations\nTransmission plasmidique des résistances","Non lecture atbgramme\nPrescription non documentée\nNon respect des recommandations\nAbsence de recos\nAbsence de protocole\nDéficit en expertise","Système expert lors de prescription\nConseil antibiotique\nProtocole\nAudit\nSuivi des consommations\nEPP pertinence\nFormation des prescripteurs\nICATB, ICABMR",null,null,{"$f":"Criticité","v":""},null,{"$f":"Criticité","v":""},null,null,null,null,null,null,null,null,null,{"$f":"Criticité","v":""}]
["R03P01",null,null,null,null,"3- Emergence de résistance due aux ATB au niveau collectif ou individuel","Défaut de  réévaluation des ATBthérapies","Toxicité\nSélection de résistances\nSur consommation","Méconnaissance\nNon respect des recos\nOublis\nAbsence de warning\nSupport de prescription non adapté","Système expert lors de prescription\nExistence d'alerte\nAntibioconseil\nProtocoles\nAudits\nSuivi des conso\nEPP pertinence\nFormation\nICATB, ICABMR",null,null,{"$f":"Criticité","v":""},null,{"$f":"Criticité","v":""},null,null,null,null,null,null,null,null,null,{"$f":"Criticité","v":""}]
["R04P01",null,null,null,null,"4- Infection à BMR ou BHRe non maitrisée","Défaut de prise en charge de l'infection (antibiothérapie inadaptée)","Morbidité\nDécés du patient","Manque de connaissance\nDéfaut de maitrise de la prescription anitibiotique chez le patient BMR/BHRe","Politique antibiotique\nProtocoles et recommandations\nRéférent antibiotique\nOrganisation et  information des prescripteurs sur l'obtention d'avis en antibiothérapie 24/24 etr 7/7\nEPP pertinence ",null,null,{"$f":"Criticité","v":""},null,{"$f":"Criticité","v":""},null,null,null,null,null,null,null,null,null,{"$f":"Criticité","v":""}]

{"sheet":"C02","index":11,"n_rows":13,"n_cols":26,"rows_kept":13,"cut":false,"hidden":false,"merged":[]}
[null,null,null,null,null,"C2 LIÉS AU PROCESSUS DE SOINS 3/3 >>  Epidémies BMR BHR"]
[null,"Etapes",null,null,"Analyse des risques",null,null,null,null,null,null,null,null,null,null,null,"Plan d'actions"]
["Id","Quoi","Comment","Qui","CQ","Nature du risque","Situation dangereuse","Effet Dommage","Cause(s) de la situation dangereuse ","Dispositif(s) de maitrise en place","Fréquence","Gravité","Criticité","Niveau de maîtrise","C avec niveau de maîtrise","Actions suggérées","Actions d'amélioration","Responsable(s)","Début prévu","Échéance prévue","Modalités d'évaluation / indicateurs de suivi","Etat d’avancement","Fréquence résiduelle","Gravité résiduelle","Criticité résiduelle","Gestion du risque résiduel"]
["R01P01",null,null,null,null,"1- Transmission croisée de BMR/BHRe","Défaut d'identification d'un patient à risque (facteurs de risque de portage de BMR, notion de patient contact BHRe, d'hospitalisation à l'étranger,..)","Cas secondaire\nEpidémie\nArrêt des admissions\nImpact financier\nAbsence d'efficacité du traitement antibiotique ","Absence de politique de dépistage\nAbsence d'outil de repérage\nAbsence de sensibilisation au repérage ","Plan local de maitrise d'une épidémie BHRe \nPolitique de dépistage BMR/BHRe\nQuestionnaire d'admission\nSignalisation dossier et dispositif automatisé d'alerte\nRéadmission contact BHRe\nProtocole BMR, BHRe\nInformation\nFormation\nEvaluation\nSuivi des indicateurs IAS HAS(ICABMR,  ICSHA, ICALIN )",null,null,{"$f":"Criticité","v":""},null,{"$f":"Criticité","v":""},null,null,null,null,null,null,null,null,null,{"$f":"Criticité","v":""}]
["R01P02",null,null,null,null,"1- Transmission croisée de BMR/BHRe","Défaut d'identification d'un patient connu porteur","Cas secondaire\nEpidémie\nArrêt des admissions\nImpact  financier\nAbsence d'efficacité du traitement antibiotique ","Absence ou insuffisance du dispositif permettant de repérer les patients connus\n","Plan local de maitrise d'une épidémie BHRe\nSignalisation dossier et dispositifs automatisés d'alerte\nRéadmission \nProtocole BMR, BHRe",null,null,{"$f":"Criticité","v":""},null,{"$f":"Criticité","v":""},null,null,null,null,null,null,null,null,null,{"$f":"Criticité","v":""}]
["R01P03",null,null,null,null,"1- Transmission croisée de BMR/BHRe","Défaut d'identification de la BMR, de la BHRe au laboratoire ","Cas secondaire\nEpidémie\nArrêt des admissions\nImpact  financier\nAbsence d'efficacité du traitement antibiotique ","Mauvaise technique du prélèvement de dépistage (faux négatif service)\nDéfaut d'analyse au laboratoire","Protocoles de prélèvements\nFormation\nEvaluation\nAccréditation du laboratoire ",null,null,{"$f":"Criticité","v":""},null,{"$f":"Criticité","v":""},null,null,null,null,null,null,null,null,null,{"$f":"Criticité","v":""}]
["R01P04",null,null,null,null,"1- Transmission croisée de BMR/BHRe","Défaut (retard, insuffisance) de mise en œuvre des précautions standard ou des précautions complémentaires contact ","Cas secondaire\nEpidémie\nArrêt des admissions\nImpact  financier\n","Méconnaissance du risque\nDéficit en chambre individuelle\nDéficit de l'offre de soins \"hôpital sous tension\"\nDéfaut de respect des mesures (dont friction SHA, gestion des excreta..)\nDéfaut de matériels (dédié, tablier/surblouse usage unique ..) ou d'équipements ( lave bassin, ...)\nInsuffisance de bionettoyage des matériels\nAbsence d'information inter établissement","Plan local de maitrise d'une épidémie BHRe\nProtocoles précautions standard, précautions complémentaires contact (BMR, BHRe)\nInformation\nFormation\nPolitique d’achat des matériels/équipements associant EOHs\nEvaluation",null,null,{"$f":"Criticité","v":""},null,{"$f":"Criticité","v":""},null,null,null,null,null,null,null,null,null,{"$f":"Criticité","v":""}]
["R01P05",null,null,null,null,"1- Transmission croisée de BMR/BHRe","Présence d'une niche environnementale : point d'eau ou  surfaces contaminés (sanitaires ++) ","Cas secondaire\nEpidémie\nArrêt des admissions\nImpact  financier\n","Défaut de pratiques d'élimination des excréta ou des eaux de toilette souillées (mésusage des lave-bassins,  rinçage bassin/urinoir au lavabo, avec douchette rince bassins..), présence de douchettes rince bassins Absence ou dysfonctionnement des lave bassins\nDéfaut de matériel de protection à UU des bassins/urinoirs \nDéfaut  de bionettoyage de l'environnement\nDéfaut d'entretien ou changement des siphons et de la robinetterie ","Protocoles de bionettoyage\nPrécautions standard\nPrécautions complémentaires contact BMR / BHRe\nInformation\nFormation\nAudits bionettoyage\nGestion des excreta\nMaintenance des lave bassins\nPolitique d'achats groupés avec validation EOH",null,null,{"$f":"Criticité","v":""},null,{"$f":"Criticité","v":""},null,null,null,null,null,null,null,null,null,{"$f":"Criticité","v":""}]
["R02P01",null,null,null,null,"2-Transmission croisée de BHRe","Absence de personnel dédié ou de renfort de personnels","Cas secondaire\nEpidémie\nArrêt des admissions\nImpact  financier\n","Non respect des recommandations nationales, défaut de personnel","Plan local de maitrise d'une épidémie BHRe \nRéflexion institutionnelle sur le circuit et l'organisation  de la prise en charge des porteurs BHRe",null,null,{"$f":"Criticité","v":""},null,{"$f":"Criticité","v":""},null,null,null,null,null,null,null,null,null,{"$f":"Criticité","v":""}]
["R03P01",null,null,null,null,"3-Epidémie de BHRe non contrôlée","Défaut d'activation du plan local de maitrise d'une épidémie","Diffusion à d'autres services, d'autres établissements, situation de crise régionale, impact  financier","Défaut de signalisation inter-services, inter-établissements\ndéfaut d'évaluation du risque de diffusion, de communication, de concertation et  de décision (cellule de crise)","Plan local de maitrise d'une épidémie BHRe , protocole d'activation de la cellule de crise avec EOH",null,null,{"$f":"Criticité","v":""},null,{"$f":"Criticité","v":""},null,null,null,null,null,null,null,null,null,{"$f":"Criticité","v":""}]
["R04P01",null,null,null,null,"4-Infection à BMR ou BHRe non maitrisée","Défaut de maitrise de l'antibiothérapie chez le porteur BMR / BHRe","Augmentation ou persistance de la colonisation du porteur\nContamination environnementale\nMorbidité\nDécés du patient","Méconnaissance du risque\nAbsence de conseil en antibiothérapie ","Politique antibiotique\nProtocoles BMR et BHRe\nRecommandations en antibiothérapie curative\nRéférent antibiotique\nOrganisation et  information des prescripteurs sur l'obtention d'avis en antibiothérapie \nEPP pertinence ",null,null,{"$f":"Criticité","v":""},null,{"$f":"Criticité","v":""},null,null,null,null,null,null,null,null,null,{"$f":"Criticité","v":""}]
["R05P01",null,null,null,null,"5-Perte de chance (qualité de prise en charge dans l'établissement) pour le patient porteur ou à risque BHRe ","Défaut d'accueil et de prise en charge des pathologies du patient","Insatisfaction\nRetard à la prise en charge adaptée\nDéfaut de diagnostic ou de traitement\nIatrogénie\nDécés du patient","Exigences nationales  organisationnelles (sectorisation, personnel dédié)\nRéticence des services d'aval des urgences (surcoût, impact sur activité)\nEvitement du risque par les professionnels\n","Réflexion institutionnelle sur le circuit et l'organisation  de la PEC / porteur BHRe\nSignalement du défaut de prise en charge\nInformation\nCommunication institutionnelle",null,null,{"$f":"Criticité","v":""},null,{"$f":"Criticité","v":""},null,null,null,null,null,null,null,null,null,{"$f":"Criticité","v":""}]
["R06P01",null,null,null,null,"6- Perte de chance (qualité de prise en charge d'aval) pour le patient porteur ou à risque BHRe ","Déficit de l'offre de soins en aval (MCO, SSR, ...)","Retard ou défaut de prise en charge  de la populaton générale\nPlainte patient/ Juridique","Exigences nationales  organisationnelles (sectorisation, personnel dédié)\nEvitement du risque par les établissements (surcoût, charge en soins)","Convention avec structures d'aval\névaluation régionale et nationale (impact, financement)",null,null,{"$f":"Criticité","v":""},null,{"$f":"Criticité","v":""},null,null,null,null,null,null,null,null,null,{"$f":"Criticité","v":""}]

{"sheet":"C03","index":12,"n_rows":6,"n_cols":26,"rows_kept":6,"cut":false,"hidden":false,"merged":[]}
[null,null,null,null,null,"C3 LIÉS AU PROCESSUS DE SOINS 3/3 >> Autres risques infectieux  émergents\n"]
[null,"Etapes",null,null,"Analyse des risques",null,null,null,null,null,null,null,null,null,null,null,"Plan d'actions"]
["Id","Quoi","Comment","Qui","CQ","Nature du risque","Situation dangereuse","Effet Dommage","Cause(s) de la situation dangereuse ","Dispositif(s) de maitrise en place","Fréquence","Gravité","Criticité","Niveau de maîtrise","C avec niveau de maîtrise","Actions suggérées","Actions d'amélioration","Responsable(s)","Début prévu","Échéance prévue","Modalités d'évaluation / indicateurs de suivi","Etat d’avancement","Fréquence résiduelle","Gravité résiduelle","Criticité résiduelle","Gestion du risque résiduel"]
["R01P01",null,null,null,null,"1- Transmission croisée virus émergent (ebola, Sras, grippe, mers CoV.. )","Défaut d'identification du cas  source (contagiosité ; patient / professionnel) ","Cas secondaire patient / professionnel\nEpidémie\nArrêt des admissions\nImpact médiatique, financier","Absence de plan \"virus émergent\"\nMéconnaissance des alertes MARS, des critères de suspicion de cas, des structures ressources (ARS, Santé Publique France, Hopitaux référents..)","Plan \"virus émergent\" annexe plan blanc\nProcédures spécifiques de PEC (structures ressources..)\nCircuit d'information interne  Alertes MARS",null,null,{"$f":"Criticité","v":""},null,{"$f":"Criticité","v":""},null,null,null,null,null,null,null,null,null,{"$f":"Criticité","v":""}]
["R01P02",null,null,null,null,"1- Transmission croisée virus émergent (ebola, Sras, grippe, mers CoV.. )","Défaut de mise en œuvre des moyens de prévention de la transmission","Cas secondaire patient / professionnel\nEpidémie\nArrêt des admissions\nImpact médiatique, financier","Méconnaissance des mesures à prendre (signalement interne, précautions complémentaires ..)\nLocaux inadaptés\nDéfaut de matériels (dédié, lave bassin, ..)\n","Plan \"virus émergent\" annexe plan blanc\nProcédures spécifiques de PEC\nPrécautions respiratoires, contact\nFormation\nExercices de simulation\nGestion des stocks de matériels dédiés",null,null,{"$f":"Criticité","v":""},null,{"$f":"Criticité","v":""},null,null,null,null,null,null,null,null,null,{"$f":"Criticité","v":""}]
["R02P01",null,null,null,null,"2-Infection à virus émergent (ebola, Sras grippe, mers CoV.. )","Défaut de prise en charge du patient infecté","Perte de chance pour le patient\nMorbidités\nDécès","Méconnaissance des mesures à prendre / PEC","Plan \"virus émergent\" annexe plan blanc\nRéférent infectieux local\nProcédures spécifiques de PEC (Hopitaux référents ..)",null,null,{"$f":"Criticité","v":""},null,{"$f":"Criticité","v":""},null,null,null,null,null,null,null,null,null,{"$f":"Criticité","v":""}]

{"sheet":"D01","index":13,"n_rows":11,"n_cols":26,"rows_kept":11,"cut":false,"hidden":false,"merged":[]}
[null,null,null,null,null,"D1 ENVIRONNEMENT ET TRAVAUX >> Eau"]
[null,"Etapes",null,null,"Analyse des risques",null,null,null,null,null,null,null,null,null,null,null,"Plan d'actions"]
["Id","Quoi","Comment","Qui","CQ","Nature du risque","Situation dangereuse","Effet Dommage","Cause(s) de la situation dangereuse ","Dispositif(s) de maitrise en place","Fréquence","Gravité","Criticité","Niveau de maîtrise","C avec niveau de maîtrise","Actions suggérées","Actions d'amélioration","Responsable(s)","Début prévu","Échéance prévue","Modalités d'évaluation / indicateurs de suivi","Etat d’avancement","Fréquence résiduelle","Gravité résiduelle","Criticité résiduelle","Gestion du risque résiduel"]
["R01P01",null,null,null,null,"1- Légionellose nosocomiale ","Défaut de surveillance du réseau d'eau chaude sanitaire (ECS)","Méconnaissance de la présence  de légionnelle dans le réseau d'ECS","Pas de suivi du carnet sanitaire\nMéconnaissance des recommandations","Procédures \nCarnet sanitaire\nAnalyses pluri annuelles\nECS par laboratoire habilité COFRAC\nPlan d'échantillonnage\nSurveillance des fontaines",null,null,{"$f":"Criticité","v":""},null,{"$f":"Criticité","v":""},null,null,null,null,null,null,null,null,null,{"$f":"Criticité","v":""}]
["R01P02",null,null,null,null,"1- Légionellose nosocomiale ","Défaut de prévention de la contamination à Legionella pneumophila de l'ECS","Contamination du réseau à Légionella pneumophila\nInfection\nEpidémie de légionellose","Défaut de conception du réseau\nDéfaut de maintenance, de températures\nDéfaut de pratiques (purges..)","Contrôle des installations\nChloration continue\nTraçabilité des purges\nSuppression des bras morts\nSurveillance des températures\nFormation personnel Technique\nFormation des soignants",null,null,{"$f":"Criticité","v":""},null,{"$f":"Criticité","v":""},null,null,null,null,null,null,null,null,null,{"$f":"Criticité","v":""}]
["R01P03",null,null,null,null,"1- Légionellose nosocomiale ","Défaut de PEC de la contamination à Legionella pneumophila de l'ECS","Infection\nEpidémie de légionellose","Défaut de maintenance curative du réseau ECS\nDéfaut de repérage des patient à risque\nDéfaut de mise en place de filtres anti-légionelles\nAbsence de signalement interne","Groupe environnement multidisciplinaire\nContrôle des installations\nChloration continue\nFiltres anti légionnelle\nTraçabilité des purges-Suppression des bras morts\nSurveillance des températures\nFormation personnel technique\nFormation des soignants\nSignalement interne et externe",null,null,{"$f":"Criticité","v":""},null,{"$f":"Criticité","v":""},null,null,null,null,null,null,null,null,null,{"$f":"Criticité","v":""}]
["R01P04",null,null,null,null,"1- Légionellose nosocomiale ","Défaut de PEC de la Légionellose","Prolongation durée de séjour\nDécès ","Pas d'identification de la pathologie\nMéconnaissance des recommandations","Identifier les patients à risque\nRecherche de légionellose par antigénurie urinaire\nRecherche par ECBC ou prélèvement broncho-pulmonaire\nMise en culture du prélèvement\nRecommandations antibiothérapie\nAvis spécialisé\nFormation médicale",null,null,{"$f":"Criticité","v":""},null,{"$f":"Criticité","v":""},null,null,null,null,null,null,null,null,null,{"$f":"Criticité","v":""}]
["R02P01",null,null,null,null,"2- Autres risques infectieux liés à l'eau","Défaut de surveillance du réseau d'eau froide sanitaire (EFS)","Méconnaissance d'une eau non conforme","Pas de suivi du carnet sanitaire\nMéconnaissance des recommandations","Procédures\nAnalyses trimestrielles par laboratoire habilité COFRAC\nPlan d'échantillonnage\nGroupe environnement multidisciplinaire\nSurveillance des fontaines",null,null,{"$f":"Criticité","v":""},null,{"$f":"Criticité","v":""},null,null,null,null,null,null,null,null,null,{"$f":"Criticité","v":""}]
["R03P01",null,null,null,null,"3- Autres risques infectieux liés à l'eau par ingestion","Défaut de la qualité bactériologique de l'eau froide destinée à la consommation humaine","Diarrhée à Norovirus\nColonisation digestive à Pseudomonas aeruginosa","Pas de suivi du carnet sanitaire\nMéconnaissance des recommandations \nAbsence de procédures\nDéfaut de conception, de maintenance, de pratiques (purges..)","Procédures\nAnalyses trimestrielles par laboratoire habilité COFRAC\nPlan d'échantillonnage\nRéunion du groupe environnement\nFiltres absolus (pas de controle)\nMaintenance préventive : robinetterie, tuyaux, mousseurs, pommeau de douche\nSuppression des bras morts\nFormation agents services techniques\nSurveillance des fontaines",null,null,{"$f":"Criticité","v":""},null,{"$f":"Criticité","v":""},null,null,null,null,null,null,null,null,null,{"$f":"Criticité","v":""}]
["R04P01",null,null,null,null,"4- Autres risques infectieux liés à l'eau lors des soins","Défaut de la qualité bactériologique de l'eau froide destinée aux soins standards","Infection par contamination des mains du personnel, du matériel, de l'eau de la toilette \nColonisation ou infection à Pseudomonas aeruginosa","Pas de suivi du carnet sanitaire\nMéconnaissance des recommandations \nAbsence de procédures\nDéfaut de conception\nDéfaut de maintenance, de pratiques (purges..)","Procédures\nAnalyses trimestrielles par laboratoire habilité COFRAC\nPlan d'échantillonnage-Réunion du groupe environnement\nFiltres absolus (pas de controle)\nMaintenance préventive : robinetterie, tuyaux, mousseurs, pommeau de douche\nSuppression des bras mort\nFormation agents services techniques",null,null,{"$f":"Criticité","v":""},null,{"$f":"Criticité","v":""},null,null,null,null,null,null,null,null,null,{"$f":"Criticité","v":""}]
["R05P01",null,null,null,null,"5- Autres risques infectieux liés à l'eau lors d'actes invasifs","Défaut de la qualité de l'eau froide bactériologiquement maitrisée","Infection par contamination des mains de l'opérateur, du matériel invasif (bronchoscope..)","Méconnaissance des recommandations\nAbsence de procédures\nAbsence de filtration\nFiltres mal positionnés\nDéfaut de changement de filtres","Procédures \nAnalyses trimestrielles par laboratoire habilité COFRAC\nPlan d'échantillonnage\nRéunion du groupe environnement\nFiltres absolus (pas de contrôle)\nFormation agents services techniques\nFormation utilisation des filtres",null,null,{"$f":"Criticité","v":""},null,{"$f":"Criticité","v":""},null,null,null,null,null,null,null,null,null,{"$f":"Criticité","v":""}]

{"sheet":"D02","index":14,"n_rows":8,"n_cols":26,"rows_kept":8,"cut":false,"hidden":false,"merged":[]}
[null,null,null,null,null,"D2 ENVIRONNEMENT ET TRAVAUX >> Air"]
[null,"Etapes",null,null,"Analyse des risques",null,null,null,null,null,null,null,null,null,null,null,"Plan d'actions"]
["Id","Quoi","Comment","Qui","CQ","Nature du risque","Situation dangereuse","Effet Dommage","Cause(s) de la situation dangereuse ","Dispositif(s) de maitrise en place","Fréquence","Gravité","Criticité","Niveau de maîtrise","C avec niveau de maîtrise","Actions suggérées","Actions d'amélioration","Responsable(s)","Début prévu","Échéance prévue","Modalités d'évaluation / indicateurs de suivi","Etat d’avancement","Fréquence résiduelle","Gravité résiduelle","Criticité résiduelle","Gestion du risque résiduel"]
["R01P01",null,null,null,null,"1- Aspergillose nosocomiale","Exposition  d'un patient à risque (immunodépression, pathologies respiratoires chroniques) lors de travaux générant de la poussière","Augmentation du risque d'aspergillose\nInfection par aspergillus\nCoût des Tt antifungiques\nProlongation de séjour\nDécès","Non connaissance de travaux générant de la poussière Absence de protocole travaux\nNon respect des mesures préventives pendant  les travaux\nAbsence de signalement interne","Groupe Hygiène travaux\nfiche \"navette protection travaux\"\nAvis CLIN EOH avant travaux\nParticipation EOH cahier des charges prestataire\nSurveillance des travaux\nFormation des professionnels\nSignalement interne",null,null,{"$f":"Criticité","v":""},null,{"$f":"Criticité","v":""},null,null,null,null,null,null,null,null,null,{"$f":"Criticité","v":""}]
["R01P02",null,null,null,null,"1- Aspergillose nosocomiale","Défaut d' application du protocole \"patient immunodéprimé\"  dans les services accueillant des patients immunodéprimés neutropéniques","Augmentation du risque d'aspergillose\nInfection par aspergillus\nCoût des Tt antifungiques\nProlongation de séjour\nDécès","Absence  de protocole patient immunodéprimé\nNon connaissance du protocole ou du risque\nAbsence ou non complétude évaluation immunodépression","Expertise  des personnels EOH\nFormation\nInformation \nCHH \nProtocole\nDossier patient",null,null,{"$f":"Criticité","v":""},null,{"$f":"Criticité","v":""},null,null,null,null,null,null,null,null,null,{"$f":"Criticité","v":""}]
["R01P03",null,null,null,null,"1- Aspergillose nosocomiale","Défaut de  protection de patients spécifiques en réanimation","Infection par aspergillus\nCoût des Tt antifungiques\nProlongation de séjour\nDécès","Absence de TT d'air en réa\nProximité d'une forêt \nDécartonnage à proximité de patients","Avis EOH ou CLIN avant construction\nou mise en place activité spécifique\nConnaissance  de la norme 90-351 \nProtocoles \nInformation",null,null,{"$f":"Criticité","v":""},null,{"$f":"Criticité","v":""},null,null,null,null,null,null,null,null,null,{"$f":"Criticité","v":""}]
["R02P01",null,null,null,null,"2- Risques infectieux liés à l'aérobiocontamination dans des zones à environnement maitrisé","Absence de traitement d'air","Infection\nCas groupés","Vétusté\nMéconnaissance du risque et des recommandations\nAbsence de maintenance","Avis EOH ou CLIN avant construction\nou mise en place activité spécifique\nConnaissance  de la norme 90-351 ",null,null,{"$f":"Criticité","v":""},null,{"$f":"Criticité","v":""},null,null,null,null,null,null,null,null,null,{"$f":"Criticité","v":""}]
["R02P02",null,null,null,null,"2- Risques infectieux liés à l'aérobiocontamination dans des zones à environnement maitrisé","Défaillance de traitement d'air","Infection\nCas groupés","Absence de maintenance\nAbsence de surveillance\nNon communication des résultats ou des informations sur le traitement d'air\nAbsence de maintenance","Carnet sanitaire\nSignalement interne \nQualification\nProtocoles \nAudits",null,null,{"$f":"Criticité","v":""},null,{"$f":"Criticité","v":""},null,null,null,null,null,null,null,null,null,{"$f":"Criticité","v":""}]

{"sheet":"D03","index":15,"n_rows":7,"n_cols":26,"rows_kept":7,"cut":false,"hidden":false,"merged":[]}
[null,null,null,null,null,"D3 ENVIRONNEMENT ET TRAVAUX >> Surface"]
[null,"Etapes",null,null,"Analyse des risques",null,null,null,null,null,null,null,null,null,null,null,"Plan d'actions"]
["Id","Quoi","Comment","Qui","CQ","Nature du risque","Situation dangereuse","Effet Dommage","Cause(s) de la situation dangereuse ","Dispositif(s) de maitrise en place","Fréquence","Gravité","Criticité","Niveau de maîtrise","C avec niveau de maîtrise","Actions suggérées","Actions d'amélioration","Responsable(s)","Début prévu","Échéance prévue","Modalités d'évaluation / indicateurs de suivi","Etat d’avancement","Fréquence résiduelle","Gravité résiduelle","Criticité résiduelle","Gestion du risque résiduel"]
["R01P01",null,null,null,null,"1- Risques infectieux liés à la contamination des surfaces (locaux, équipements) en secteur d'hospitalisation","Défaut d'application des bonnes pratiques par le prestataire externe ou les agents de l'établissement.\nDéfaut de bionettoyage quotidien chambre lors d'un séjour\nDéfaut de bionettoyage à la sortie du patient","Augmentation du risque de contamination croisée à partir des des surfaces contaminées autour d'un patient contagieux (virus, clostridium difficile, ou porteur de bactéries dont BMR-BHR)","\n\nRessources humaines non adaptées aux besoins\nAbsence de communication entre le prestaire et l'établissement\nMéconnaissance des protocoles\nMatériel non adapté ou non disponible\nProduits périmés\nProduits ne répondant pas aux normes en vigueur\nCircuit inadapté des bandeaux/lavettes\nAbsence d'évaluation des pratiques et d'audits\n\n","Point fait lors de réunion  EOH-Prestataire\nReférente bionettoyage \nSignalement des évènements indésirables.\nFormations organisées par l'EOH\nEOH participe à l'élaboration du cahier des charges du marché, à l'analyse des réponses , au choix du prestataire. ",null,null,{"$f":"Criticité","v":""},null,{"$f":"Criticité","v":""},null,null,null,null,null,null,null,null,null,{"$f":"Criticité","v":""}]
["R02P01",null,null,null,null,"2- Risques infectieux liés à la contamination des surfaces (locaux, équipements) en secteur d'hospitalisation dans les circulations et les locaux annexes","Défaut d'application des bonnes pratiques par le prestataire externe  ou les agents de l'établissement.\nDéfaut de bionettoyage  locaux partagés par les patients (sanitaires, salle à manger…)","Augmentation du risque de contamination croisée à partir des des surfaces contaminées autour d'un patient contagieux (virus, clostridium difficile, ou porteur de bactéries dont BMR-BHR)","\n\nRessources humaines non adaptées aux besoins\nAbsence de communication entre le prestaire et l'établissement\nMéconnaissance des protocoles\nMatériel non adapté ou non disponible\nProduits périmés\nProduits ne répondant pas aux normes en vigueur\nCircuit inadapté des bandeaux/lavettes\nAbsence d'évaluation des pratiques et d'audits\n\n","Point fait lors de réunion  EOH-Prestataire\nReférente bionettoyage \nSignalement des évènements indésirables.\nFormations organisées par l'EOH\nEOH participe à l'élaboration du cahier des charges du marché, à l'analyse des réponses , au choix du prestataire. ",null,null,{"$f":"Criticité","v":""},null,{"$f":"Criticité","v":""},null,null,null,null,null,null,null,null,null,{"$f":"Criticité","v":""}]
["R03P01",null,null,null,null,"3- Risques infectieux liés à la contamination des surfaces (locaux, équipements) en consultation","Défaut de bionettoyage locaux et équipements de consultation","Augmentation du risque de contamination croisée à partir des des surfaces contaminées autour d'un patient contagieux (virus, clostridium difficile, ou porteur de bactéries dont BMR-BHR)","\n\nRessources humaines non adaptées aux besoins\nAbsence de communication entre le prestaire et l'établissement\nMéconnaissance des protocoles\nMatériel non adapté ou non disponible\nProduits périmés\nProduits ne répondant pas aux normes en vigueur\nCircuit inadapté des bandeaux/lavettes\nAbsence d'évaluation des pratiques et d'audits\n\n","Point fait lors de réunion  EOH-Prestataire\nReférente bionettoyage \nSignalement des évènements indésirables.\nFormations organisées par l'EOH\nEOH participe à l'élaboration du cahier des charges du marché, à l'analyse des réponses , au choix du prestataire.",null,null,{"$f":"Criticité","v":""},null,{"$f":"Criticité","v":""},null,null,null,null,null,null,null,null,null,{"$f":"Criticité","v":""}]
["R04P01",null,null,null,null,"4- Risques infectieux liés à la contamination des surfaces (locaux, équipements) dans secteurs à activités à risque (interventionnel, endoscopies, salle de naissances..)","Défaut d'application des bonnes pratiques par le prestataire externe ou les agents de l'établissement\nDéfaut de bionettoyage en début de séance ou entre chaque acte ou en fin de programme","\nAugmentation du risque d'Infection lors d'un acte \n","Formations insuffisantes \nDéfaut d'évaluation des pratiques\nDéfaut d'identification des locaux des activités à risques \nRessources humaines non adaptées aux besoins\nAbsence de communication entre le prestaire et l'établissement\nMéconnaissance des protocoles\nMatériel non adapté ou non disponible\nProduits périmés\nProduits ne répondant pas aux normes en vigueur\nCircuit inadapté des bandeaux/lavettes\nAbsence d'évaluation des pratiques et d'audits.","\nEvaluation des pratiques organisées par EOH\nPrélèvements de surfaces des salles à empoussièrement maitrisé.\nSignalement des évènements indésirables.\nFormations organisées par l'EOH\nEOH participe à l'élaboration du cahier des charges du marché, à l'analyse des réponses , au choix du prestataire.",null,null,{"$f":"Criticité","v":""},null,{"$f":"Criticité","v":""},null,null,null,null,null,null,null,null,null,{"$f":"Criticité","v":""}]

{"sheet":"D04","index":16,"n_rows":7,"n_cols":26,"rows_kept":7,"cut":false,"hidden":false,"merged":[]}
[null,null,null,null,null,"D4 ENVIRONNEMENT ET TRAVAUX >> Déchets Activités de Soins à Risques Infectieux et Assimilés"]
[null,"Etapes",null,null,"Analyse des risques",null,null,null,null,null,null,null,null,null,null,null,"Plan d'actions"]
["Id","Quoi","Comment","Qui","CQ","Nature du risque","Situation dangereuse","Effet Dommage","Cause(s) de la situation dangereuse ","Dispositif(s) de maitrise en place","Fréquence","Gravité","Criticité","Niveau de maîtrise","C avec niveau de maîtrise","Actions suggérées","Actions d'amélioration","Responsable(s)","Début prévu","Échéance prévue","Modalités d'évaluation / indicateurs de suivi","Etat d’avancement","Fréquence résiduelle","Gravité résiduelle","Criticité résiduelle","Gestion du risque résiduel"]
["R01P01",null,null,null,null,"1- Risques infectieux liés aux déchets\n(transmission bactérienne, virale, parasitaire)","Défaut d'identification de production de DASRIA (nouvelle activité ou micro-organismes émergents)","Augmentation du risque de transmission croisée par présence de micro organismes dans l'environnement ","Méconnaissance de l'activité et  des procédures\nCircuit non identifié\nManque de matériel ou non adapté\nLocaux de stockage non adaptés ","Guide de tri des déchets\nRespect des circuits\nProcédures\nContenants adaptés aux déchets\nSignalement des évènements indésirables\nDotation adaptée\nFormation\nCahier des charges Sté prestataire\nAudit traitement des déchets\nIdentification des locaux déchets\ntraçabilité",null,null,{"$f":"Criticité","v":""},null,{"$f":"Criticité","v":""},null,null,null,null,null,null,null,null,null,{"$f":"Criticité","v":""}]
["R01P02",null,null,null,null,"1- Risques infectieux liés aux déchets\n(transmission bactérienne, virale, parasitaire)","Défaut de respect du tri des déchets à la production (présence de déchets dans une mauvaise filière ou dans un contenant non adapté)","Augmentation du risque de transmission croisée par présence de micro organismes dans l'environnement ","\nMéconnaissance des procédures\nMéconnaissance des circuits (ex: pièce anatomique) \nCircuit non identifié\nManque de matériel ou non adapté\nDéfaut de traçabilité","Guide de tri des déchets\nRespect des circuits\nProcédures\nContenants adaptés aux déchets\nSignalement des évènements indésirables\nDotation adaptée\nFormation\nCahier des charges Sté prestataire\nAudit traitement des déchets\nIdentification des locaux déchets\ntraçabilité",null,null,{"$f":"Criticité","v":""},null,{"$f":"Criticité","v":""},null,null,null,null,null,null,null,null,null,{"$f":"Criticité","v":""}]
["R01P03",null,null,null,null,"1- Risques infectieux liés aux déchets\n(transmission bactérienne, virale, parasitaire)","Défaut de collecte interne  et stockage intermédiaire ","Augmentation du risque de transmission croisée par présence de micro organismes dans l'environnement ","Flux de collecte interne inadapté à la production du service\nTaille de conteneur inadaptée ou  conteneurs défectueux \nLocaux inadaptés ou non sécurisés\nDéfaut de bionettoyage ","Guide de tri des déchets\nRespect des circuits\nProcédures\nContenants adaptés aux déchets\nSignalement des évènements indésirables\nDotation adaptée\nFormation\nCahier des charges Sté prestataire\nAudit traitement des déchets\nIdentification des locaux déchets\ntraçabilité",null,null,{"$f":"Criticité","v":""},null,{"$f":"Criticité","v":""},null,null,null,null,null,null,null,null,null,{"$f":"Criticité","v":""}]
["R01P04",null,null,null,null,"1- Risques infectieux liés aux déchets\n(transmission bactérienne, virale, parasitaire)","Défaut de stockage central et d'élimination","Augmentation du risque de transmission croisée par présence de micro organismes dans l'environnement ","Flux de collecte externe  inadapté à la production de l'établissement\nMise à disposition de conteneurs inadaptés \nLocaux inadaptés ou non sécurisés\nDéfaut de bionettoyage ","Guide de tri des déchets\nRespect des circuits\nProcédures\nContenants adaptés aux déchets\nSignalement des évènements indésirables\nDotation adaptée\nFormation\nCahier des charges Sté prestataire\nAudit traitement des déchets\nIdentification des locaux déchets\ntraçabilité\nSuivi de la production",null,null,{"$f":"Criticité","v":""},null,{"$f":"Criticité","v":""},null,null,null,null,null,null,null,null,null,{"$f":"Criticité","v":""}]

{"sheet":"D05","index":17,"n_rows":6,"n_cols":26,"rows_kept":6,"cut":false,"hidden":false,"merged":[]}
[null,null,null,null,null,"D5 ENVIRONNEMENT ET TRAVAUX >> Linge"]
[null,"Etapes",null,null,"Analyse des risques",null,null,null,null,null,null,null,null,null,null,null,"Plan d'actions"]
["Id","Quoi","Comment","Qui","CQ","Nature du risque","Situation dangereuse","Effet Dommage","Cause(s) de la situation dangereuse ","Dispositif(s) de maitrise en place","Fréquence","Gravité","Criticité","Niveau de maîtrise","C avec niveau de maîtrise","Actions suggérées","Actions d'amélioration","Responsable(s)","Début prévu","Échéance prévue","Modalités d'évaluation / indicateurs de suivi","Etat d’avancement","Fréquence résiduelle","Gravité résiduelle","Criticité résiduelle","Gestion du risque résiduel"]
["R01P01",null,null,null,null,"1- Risques infectieux liés au linge\n","Contamination du linge propre","Augmentation du risque d'infection à partir d'un linge propre contaminé ","Défaut d'utilisation du filet (sur remplissage)\nDélais de collecte inadaptés\nDéfaut d'entretien de la blanchisserie\nDéfaut de stockage dans le service\nAbsence d'hygiène des mains et des tenues  lors des manipulations ","Connaissance et application norme RABC\nCahier des charges Sté prestataire\nDotation adaptée\nProcédures\nCircuit linge propre/linge sale identifié\nPré tri du linge sale\nControle qualité\nAudit",null,null,{"$f":"Criticité","v":""},null,{"$f":"Criticité","v":""},null,null,null,null,null,null,null,null,null,{"$f":"Criticité","v":""}]
["R01P02",null,null,null,null,"1- Risques infectieux liés au linge\n","Contamination de la tenue professionnelle par du linge sale","Augmentation du risque de Transmission croisèe à partir de la manipulation de linge sale","Non respect des précautions standard ou complémentaires (PC)\nNon identification du cas source si indication de PC (gale….)\n","Protocoles\nDotation tenue professionnelle adaptée\nIdentification du circuit de lavage des tenues professionnelles",null,null,{"$f":"Criticité","v":""},null,{"$f":"Criticité","v":""},null,null,null,null,null,null,null,null,null,{"$f":"Criticité","v":""}]
["R01P03",null,null,null,null,"1- Risques infectieux liés au linge\n","Contamination de l'environnement par du linge sale","Augmentation du risque de Transmission croisée à partir de l'environnement contaminé","Non respect des règles de manipulation du linge sale\nNon respect de la chronologie des tâches de bionettoyage après évacuation du linge sale\nDélais de collecte inadaptés\nStockage inadapté ","Respect des procédures Cahier des charges des prestataires ",null,null,{"$f":"Criticité","v":""},null,{"$f":"Criticité","v":""},null,null,null,null,null,null,null,null,null,{"$f":"Criticité","v":""}]

{"sheet":"E01","index":18,"n_rows":19,"n_cols":26,"rows_kept":19,"cut":false,"hidden":false,"merged":[]}
[null,null,null,null,null,"E1 SECTEURS À RISQUES SPÉCIFIQUES  >> Hémodialyse "]
[null,"Etapes",null,null,"Analyse des risques",null,null,null,null,null,null,null,null,null,null,null,"Plan d'actions"]
["Id","Quoi","Comment","Qui","CQ","Nature du risque","Situation dangereuse","Effet Dommage","Cause(s) de la situation dangereuse ","Dispositif(s) de maitrise en place","Fréquence","Gravité","Criticité","Niveau de maîtrise","C avec niveau de maîtrise","Actions suggérées","Actions d'amélioration","Responsable(s)","Début prévu","Échéance prévue","Modalités d'évaluation / indicateurs de suivi","Etat d’avancement","Fréquence résiduelle","Gravité résiduelle","Criticité résiduelle","Gestion du risque résiduel"]
["R01P01",null,null,null,null,"1- Infection sur fistule artério-veineuse (FAV)","Défaut de mesures d'hygiène  au moment des branchements / débranchements sur fistule et manipulations\nou lors de fistulographie\nDéfaut d'hygiène du patient","Infection sur fistule\nPerte de la fistule\nImpossibilité de dialyser\nBactériémie\nDécès","Méconnaissance des recommandations, en particulier pour les fistulograpies \ndans les centres non référencés.\nPathologie du patient (diabète, hygiene  personnelle, obésité, artère ou veine de mauvaise qualité)\n","Education thérapeutique du patient au lavage de fistule\nLocaux adaptés (vestiaires) et entretenus\nOrganisation de la vérification du lavage par IDE\nProcédures d'hygiène destinées au patient \nAudits\nProcédures de branchement / débranchement\nTraçabilité\nFormation \nMise à disposition de produits et matériels adaptés\nICSHA",null,null,{"$f":"Criticité","v":""},null,{"$f":"Criticité","v":""},null,null,null,null,null,null,null,null,null,{"$f":"Criticité","v":""}]
["R01P02",null,null,null,null,"1- Infection sur fistule artério-veineuse (FAV)","Défaut de matériel adapté (aiguilles, prolongateur...) ou défaut d'utilisation","Augmentation du risque de contamination de la fistule","Choix de matériel par centrale d'achat, sans association des utilisateurs et de l'EOH\nMéconnaissance des recommandations d'utilisation","Choix de matériel en collaboration avec les équipes et l'EOH\nProcédures\nTraçabilité\nFormation\nAudit",null,null,{"$f":"Criticité","v":""},null,{"$f":"Criticité","v":""},null,null,null,null,null,null,null,null,null,{"$f":"Criticité","v":""}]
["R01P03",null,null,null,null,"1- Infection sur fistule artério-veineuse (FAV)","Défaut d'asepsie lors de la compression par le patient","Infection sur fistule\nPerte de la fistule\nImpossibilité de dialyser\nBactériémie\nDécès","Méconnaissance du risque par le patient\nAbsence de sensibilisation / éducation\nMéconnaissance des recommandations","Education du patient\nFormalisation des recommandations\nMise à disposition de matériel (SHA, gants)",null,null,{"$f":"Criticité","v":""},null,{"$f":"Criticité","v":""},null,null,null,null,null,null,null,null,null,{"$f":"Criticité","v":""}]
["R01P04",null,null,null,null,"1- Infection sur fistule artério-veineuse (FAV)","Méconnaissance du risque d'infections sur FAV","Absence d'alerte et d'évaluation de la politique de prévention des infections sur FAV\nSepsis\nEndocardite\nCas groupés","\nDéfaut de recueil de données\nDéfaut de rétroinformation \nAbsence d'EOH ou inaccessible possible sténose débutante de fistule","Organisation de la surveillance des taux d'infections sur FAV, avec comparaison à des données de référence\nEvaluation du débit de fistule\nOrganisation du signalement \navec aide du laboratoire\nMise en place de liens avec les établissements de recours, les médecins traitants... pour identifier les infections\nConvention avec EOH ",null,null,{"$f":"Criticité","v":""},null,{"$f":"Criticité","v":""},null,null,null,null,null,null,null,null,null,{"$f":"Criticité","v":""}]
["R01P05",null,null,null,null,"1- Infection sur fistule artério-veineuse (FAV)","Défaut de prise en charge diagnostique et thérapeutique de l'infection locale","Infection sur fistule, perte de la fistule, impossibilité de dialyser, bactériémie, décès","Défaut de surveillance\nMéconnaissance du risque \nMéconnaissance des recommandations (patient et professionnels)","Education du patient Organisation de l'avis du néphrologue et infectieux\nRecommandations thérapeutiques locales\nOrganisation de la surveillance des bactériémies nosocomiales à point de départ FAV (analyse des causes profondes des infections graves)",null,null,{"$f":"Criticité","v":""},null,{"$f":"Criticité","v":""},null,null,null,null,null,null,null,null,null,{"$f":"Criticité","v":""}]
["R02P01",null,null,null,null,"2- Infection sur cathéter de dialyse","Défaut de mesures d'hygiène  au moment des branchements / débranchements  et manipulations","Bactériémie\nLocalisation secondaire (S. aureus et endocardite, spondylodiscite..)","Défaut de surveillance\nMéconnaissance du risque \nMéconnaissance des recommandations\nNon respect du protocole de dépistage décolonisation du SA\nAntiseptiques contaminés\nNon respect de protocole\nMéconnaissance lors d'hopistalisation autre","\nRecommandations diagnostiques et thérapeutiques\nInformation des patients\nMise à disposition de protocoles à domicile\nOrganisation de la surveillance des bactériémies nosocomiales à point de départ cathéter vasculaire (analyse des causes profondes des infections graves)\nAudits des branchements/débranchements\nProtocole de branchement débranchement des KT  tracabilité \nProtocole de dépistage décolonisation du SA\nICSHA IQSS",null,null,{"$f":"Criticité","v":""},null,{"$f":"Criticité","v":""},null,null,null,null,null,null,null,null,null,{"$f":"Criticité","v":""}]
["R03P01",null,null,null,null,"3- Infection péritonéale lors de dialyse péritonéale","Défaut de mesures d'hygiène  au moment des branchements / débranchements  et manipulations","Infection du site d'émergence\nou tunnelite\nPéritonite","Méconnaissance du risque par le patient\nAbsence de sensibilisation / éducation\nMéconnaissance des recommandations\nEnvironnement inadapté au domicile\nTranslocation de germes\nAbsence de décolonisation chez les porteurs de SA \nISO \nAbsence d'antibioprophylaxie\nPansement mal réalisé","Protocoles  pansement\nTraçabilité\nEducation  des patients et formation des personnels\nAudit dans le centre et à domicile (tous les 3 mois)\nDisponibilité du matériel\nSurveillance des infections  \nEPP\n\n\n",null,null,{"$f":"Criticité","v":""},null,{"$f":"Criticité","v":""},null,null,null,null,null,null,null,null,null,{"$f":"Criticité","v":""}]
["R04P01",null,null,null,null,"4- Infection liée à une contamination du dialysat","Contamination du dialysat du générateur de dialyse","Infection (fistule ou cathéter\nPerte de l'abord vasculaire\nImpossibilité de dialyser\nBactériémie\nDécès","Panne ponctuelle\nMaintenance non adaptée du générateur\nMatériel non adapté (Waste handling option sans clapet anti-retour, zones inaccessibles à la désinfection)","Programme de maintenance du générateur\nFormation\nTraçabilité\nAudit \nMise à disposition de matériels et produits adaptés",null,null,{"$f":"Criticité","v":""},null,{"$f":"Criticité","v":""},null,null,null,null,null,null,null,null,null,{"$f":"Criticité","v":""}]
["R04P02",null,null,null,null,"4- Infection liée à une contamination du dialysat","Contamination du dialysat par déconnexion","Infection du patient (fistule ou cathéter)\nPerte de l'abord vasculaire\nImpossibilité de dialyser\nBactériémie\nDécès","Déconnexion entre le circuit de dialyse et le générateur, entre le concentré de dialyse et le générateur ou entre le générateur et le dialyseur\nInversion des raccordements eau de dialyse / évacuation","Raccords sécurisés\nVérifications régulières du générateur (maintenance)\nDétrompeurs pour les raccordements eau de dialyse / évacuation",null,null,{"$f":"Criticité","v":""},null,{"$f":"Criticité","v":""},null,null,null,null,null,null,null,null,null,{"$f":"Criticité","v":""}]
["R04P03",null,null,null,null,"4- Infection liée à une contamination du dialysat","Contamination du dialysat par rupture de la stérilité des circuits de dialyse, des produits","Infection du patient (fistule ou cathéter)\nPerte de l'abord vasculaire\nImpossibilité de dialyser\nBactériémie\nDécès","Emballage percé et non vérifié\nDate de péremption dépassée\nConditions de stockage non adaptées","Procédure de vérification du matériel avant installation\nStockage adapté",null,null,{"$f":"Criticité","v":""},null,{"$f":"Criticité","v":""},null,null,null,null,null,null,null,null,null,{"$f":"Criticité","v":""}]
["R04P04",null,null,null,null,"4- Infection liée à une contamination du dialysat","\nContamination du circuit de distribution de l'eau osmosée ou des circuits d'ajout des concentrés\n","Infection du patient (fistule ou cathéter)\nPerte de l'abord vasculaire\nImpossibilité de dialyser\nBactériémie\nDécès\nFermeture de l'unité de dialyse, perte financière","Dysfonctionnement de l'unité de traitement d'eau\nDysfonctionnement de l'unité de production des concentrés ou mauvaise gestion des concentrés en bidons","Conception adéquate de l'unité de traitement d'eau, du circuit de dialyse, de l'unité de production des concentrés (architecture, compatibilité des matériaux avec les désinfections...)\nProcédures de contrôle et maintenance/désinfection régulière\nTraçabilité\nFormation\nAudit\nOrganisation du suivi pluridisciplinaire des contrôles (Services techniques, biomed, Pharmacie, EOH, soignants)\nProtection des unités de production / générateurs  en cas de panne d'électricité",null,null,{"$f":"Criticité","v":""},null,{"$f":"Criticité","v":""},null,null,null,null,null,null,null,null,null,{"$f":"Criticité","v":""}]
["R05P01",null,null,null,null,"5- Transmission d'agent infectieux (dont BMR/BHR) (spécificités HD)","Projections contaminantes à partir d'un voisin infecté en salle commune","Cas secondaire\nEpidémie\nDécès","Promiscuité (distance insuffisante entre lits, absence de paravants, défaut de box individuels)\nDéfaut de respect des \"précautions standards\" / \"précautions complémentaires\"\nRéalisation d'actes contaminants en salle de dialyse (ex : réfection de pansements infectés…)","Architecture adaptée à l'activité\nDistance entre deux lits > 1,5m\nMise à disposition de paravents\nProcédures \"précautions standards\"/\"précautions complémentaires\"\nLocal dédié pour la réalisation des soins contaminants",null,null,{"$f":"Criticité","v":""},null,{"$f":"Criticité","v":""},null,null,null,null,null,null,null,null,null,{"$f":"Criticité","v":""}]
["R06P01",null,null,null,null,"6- Transmission de virus hématogène (spécificités HD)","Défaut de désinfection efficace des circuits du générateur après dialyse d'un patient infecté","Cas secondaire\nEpidémie\nDécès","Méconnaissance des procédures de désinfection\nDésinfection non réalisée ou non efficace\nAbsence de produit virucide répondant aux normes","Procédure \"Désinfection des circuits du générateur\"\nFormation\nAudit\nMise à disposition d'équipements et produits adaptés\nTraçabilité des opérations de désinfection\nConduite à tenir formalisée en cas d'inondation des capteurs de pression avec du sang",null,null,{"$f":"Criticité","v":""},null,{"$f":"Criticité","v":""},null,null,null,null,null,null,null,null,null,{"$f":"Criticité","v":""}]
["R06P02",null,null,null,null,"6- Transmission de virus hématogène (spécificités HD)","Défaut de changement de filtre après inondation des capteurs de pression avec du sang","Cas secondaire\nEpidémie\nDécès","Méconnaissance des procédures de maintenance\nMaintenance non réalisée ou mal réalisée","Procédures\nFormation et évaluation des professionnels\nMise à disposition de matériels et produits adaptés (système étanche sinon double filtre pour les capteurs de pression non étanches)\nTraçabilité des opérations de changement de filtre",null,null,{"$f":"Criticité","v":""},null,{"$f":"Criticité","v":""},null,null,null,null,null,null,null,null,null,{"$f":"Criticité","v":""}]
["R06P03",null,null,null,null,"6- Transmission de virus hématogène (spécificités HD)","Méconnaissance du risque d' infections virales hématogènes lié à l'activité d'hémodialyse","Absence d'alerte et d'évaluation de la politique de prévention des infections virales hématogènes","Défaut de recueil de données\nDéfaut de rétroinformation \nEOH souvent non dédiée (ex : centres de dialyse)","Politique de dépistage adaptée\nOrganisation de la surveillance des infections virales hématogènes, du signalement à partir du Laboratoire\nConvention avec EOH multisites si nécessaire (IDE Hygiéniste et PH Hygiéniste)",null,null,{"$f":"Criticité","v":""},null,{"$f":"Criticité","v":""},null,null,null,null,null,null,null,null,null,{"$f":"Criticité","v":""}]
["R07P01",null,null,null,null,"7- Aspergillose invasive (spécificité HD)","Contamination de l'environnement proche du patient par des moisissures suite à une fuite, un engorgement ou une déconnexion du réseau d'évacuation","Augmentation du risque aspergillaire","Arrachement lors du déplacement des générateurs\nArchitecture du réseau d'évacuation inadaptée\nRaccords usés\nConnexions mal enclenchées","Conception adéquate du réseau d'évacuation (pente, débit...)\nProcédures d'entretien du réseau d'évacuation\nTraçabilité\nFormation des professionnels\nEvaluations",null,null,{"$f":"Criticité","v":""},null,{"$f":"Criticité","v":""},null,null,null,null,null,null,null,null,null,{"$f":"Criticité","v":""}]

{"sheet":"E02","index":19,"n_rows":18,"n_cols":26,"rows_kept":18,"cut":false,"hidden":false,"merged":[]}
[null,null,null,null,null,"E2 SECTEURS À RISQUES SPÉCIFIQUES  >> Endoscopie"]
[null,"Etapes",null,null,"Analyse des risques",null,null,null,null,null,null,null,null,null,null,null,"Plan d'actions"]
["Id","Quoi","Comment","Qui","CQ","Nature du risque","Situation dangereuse","Effet Dommage","Cause(s) de la situation dangereuse ","Dispositif(s) de maitrise en place","Fréquence","Gravité","Criticité","Niveau de maîtrise","C avec niveau de maîtrise","Actions suggérées","Actions d'amélioration","Responsable(s)","Début prévu","Échéance prévue","Modalités d'évaluation / indicateurs de suivi","Etat d’avancement","Fréquence résiduelle","Gravité résiduelle","Criticité résiduelle","Gestion du risque résiduel"]
["R01P01",null,null,null,null,"1- Transmission bactérienne, virale, fongique, prion au patient à partir d'un endoscope contaminé","Défaut d'identification de l'endoscope contaminé","Majoration du risque de transmission par utilisation d'un endoscope non désinfecté","Défaut de circuit propre-sale adapté","Circuit propre - sale identifié, contenants distincts",null,null,{"$f":"Criticité","v":""},null,{"$f":"Criticité","v":""},null,null,null,null,null,null,null,null,null,{"$f":"Criticité","v":""}]
["R01P02",null,null,null,"OUI","1- Transmission bactérienne, virale, fongique, prion au patient à partir d'un endoscope contaminé","Défaut de traitement manuel (prétraitement)","Majoration du risque de transmission par persistance de souillures  limitant l'efficacité du traitement (matières, apparition secondaire d'un biofilm)","Absence de prétraitement immédiat ","Protocoles\nFormation des personnels\nAudit\nTraçabilité\nEquipements ",null,null,{"$f":"Criticité","v":""},null,{"$f":"Criticité","v":""},null,null,null,null,null,null,null,null,null,{"$f":"Criticité","v":""}]
["R01P03",null,null,null,"OUI","1- Transmission bactérienne, virale, fongique, prion au patient à partir d'un endoscope contaminé","Défaut de traitement manuel (écouvillonnage)","Majoration du risque de transmission par persistance de souillures  limitant l'efficacité du traitement (matières, apparition secondaire d'un biofilm)","Défaut d'écouvillonnage / méthode, matériel","Protocoles\nFormation des personnels\nAudit\nTraçabilité\nTableau de correspondance de taille de canaux / écouvillon\nEcouvillon à UU ou stérilisé\nSens d'écouvillonnage\nSollicitation EOH pour l'achat des consommables\nDisponibilité du manuel du fabricant pour chaque endoscope",4,4,{"$f":"Criticité","v":16},5,{"$f":"Criticité","v":80},null,null,null,null,null,null,null,null,null,{"$f":"Criticité","v":""}]
["R01P04",null,null,null,null,"1- Transmission bactérienne, virale, fongique, prion au patient à partir d'un endoscope contaminé","Défaut de traitement manuel (nettoyage)","Majoration du risque de transmission par persistance de souillures  limitant l'efficacité du traitement (matières, apparition secondaire d'un biofilm)","Défaut de nettoyage  / méthode, matériel","Protocoles\nFormation des personnels\nAudit\nTraçabilité\nMatériels\nProduits\nEquipements",null,null,{"$f":"Criticité","v":""},null,{"$f":"Criticité","v":""},null,null,null,null,null,null,null,null,null,{"$f":"Criticité","v":""}]
["R01P05",null,null,null,null,"1- Transmission bactérienne, virale, fongique, prion au patient à partir d'un endoscope contaminé","Défaut de traitement manuel (désinfection)","Majoration du risque de transmission par persistance de microorganismes","Défaut de désinfection / méthode, produit","Protocoles\nFormation des personnels\nAudit\nTraçabilité\nMatériels\nProduits\nEquipements\nLocaux",null,null,{"$f":"Criticité","v":""},null,{"$f":"Criticité","v":""},null,null,null,null,null,null,null,null,null,{"$f":"Criticité","v":""}]
["R01P06",null,null,null,null,"1- Transmission bactérienne, virale, fongique, prion au patient à partir d'un endoscope contaminé","Défaut de traitement manuel (rinçage terminal)","Colonisation ou infection à partir  de l'eau de rinçage (Pseudomonas aeruginosa, mycobactérie atypique)","Qualité d'eau non conforme, inadaptée / niveau de risque","Protocoles\nFormation des personnels\nMatériels\nFiltres\nEquipements\nLocaux\nContrôles microbiologiques Qualité de l'eau",null,null,{"$f":"Criticité","v":""},null,{"$f":"Criticité","v":""},null,null,null,null,null,null,null,null,null,{"$f":"Criticité","v":""}]
["R01P07",null,null,null,null,"1- Transmission bactérienne, virale, fongique, prion au patient à partir d'un endoscope contaminé","Défaut de séchage","Majoration du risque infectieux par persistance d'humidité favorisant la prolifération microbienne pendant le stockage","Mauvaises pratiques de séchage interne et externe","Protocole\nFormation des personnels\nEssuyage individualisé\nAir médicalisé",null,null,{"$f":"Criticité","v":""},null,{"$f":"Criticité","v":""},null,null,null,null,null,null,null,null,null,{"$f":"Criticité","v":""}]
["R01P08",null,null,null,null,"1- Transmission bactérienne, virale, fongique, prion au patient à partir d'un endoscope contaminé","Défaut de stockage","Majoration du risque infectieux par recontamination du matériel désinfecté","Conditions de stockage inadaptées","Protocole\nFormation des personnels  ESET et apparentés\nArmoire et tiroirs classiques\nValise",null,null,{"$f":"Criticité","v":""},null,{"$f":"Criticité","v":""},null,null,null,null,null,null,null,null,null,{"$f":"Criticité","v":""}]
["R01P09",null,null,null,null,"1- Transmission bactérienne, virale, fongique, prion au patient à partir d'un endoscope contaminé","Défaut des conditions de transport","Majoration du risque infectieux par recontamination du matériel désinfecté","Conditions de transport inadaptées","Protocole\nContenant fermé, sans mousse ",null,null,{"$f":"Criticité","v":""},null,{"$f":"Criticité","v":""},null,null,null,null,null,null,null,null,null,{"$f":"Criticité","v":""}]
["R01P10",null,null,null,null,"1- Transmission bactérienne, virale, fongique, prion au patient à partir d'un endoscope contaminé","Défaut de respect du délai de traitement de l'endoscope","Majoration du risque de transmission par création de biofilms","Défaut d'organisation de nuit, week end et jours fériés, ","Endoscopes à UU\nPersonnel d'astreinte\nProtocole\nFormation\nAudit",null,null,{"$f":"Criticité","v":""},null,{"$f":"Criticité","v":""},null,null,null,null,null,null,null,null,null,{"$f":"Criticité","v":""}]
["R01P11",null,null,null,null,"1- Transmission bactérienne, virale, fongique, prion au patient à partir d'un endoscope contaminé","Défaut de traitement automatisé ou semi automatisé\n","Majoration du risque de transmission  à partir d'un endoscope contaminé","Défaut de nettoyage, désinfection et rinçage\nDéfaut de matériel\nDéfaut de paramétrage\nDéfaut de gestion des alarmes\n","Protocole\nSollicitation EOH pour l'achat des équipements et des consommables\nDisponibilité du manuel du fabricant pour chaque endoscope\nConnectiques adaptées\nValidation des performances de l'équipement\nFormation des personnels\nMaintenance préventive et curative\nFiltration adaptée\nContrôles microbiologiques qualité de l'eau",null,null,{"$f":"Criticité","v":""},null,{"$f":"Criticité","v":""},null,null,null,null,null,null,null,null,null,{"$f":"Criticité","v":""}]
["R01P12",null,null,null,null,"1- Transmission bactérienne, virale, fongique, prion au patient à partir d'un endoscope contaminé","Défaut de maintenance des endoscopes, du LDE ou de l'ESET","Majoration du risque de transmission à partir d'un endoscope souillé ou contamination environnementale","Absence de politique de maintenance","Politique et organisation de la maintenance biomédicale préventive et curative \nOrganisation de la Matériovigilance",null,null,{"$f":"Criticité","v":""},null,{"$f":"Criticité","v":""},null,null,null,null,null,null,null,null,null,{"$f":"Criticité","v":""}]
["R01P13",null,null,null,null,"1- Transmission bactérienne, virale, fongique, prion au patient à partir d'un endoscope contaminé","Défaut de contrôles microbiologiques  des endoscopes, des  laveurs-désinfecteurs, des enceintes de stockage","Majoration du risque de transmission par utilisation d'un endoscope contaminé","Méconnaissance des recommandations\nAbsence de procédure\nMéconnaissance achat nouvel endocope","Groupe endoscopie multidisciplinaire\nProcédures \"Contrôles microbiologiques des endoscopes / laveurs désinfecteurs\nCAT devant non conformité\" \nCampagne de prélèvements programmés",null,null,{"$f":"Criticité","v":""},null,{"$f":"Criticité","v":""},null,null,null,null,null,null,null,null,null,{"$f":"Criticité","v":""}]
["R02P01",null,null,null,null,"2- Cas groupé d'infection  bactérienne, virale, fongique, prion à partir d'un endoscope contaminé","Défaut d'alerte et d'investigation / exposition de patients","Majoration du risque de transmission, persistance du risque d'exposition, absence de maitrise de la situation épidémique","Méconnaissance du risque \nDéfaut de gestion du signalement au niveau local, régional ou national","Protocole de rappel  des patients\nTraçabilité des actes,\nVeille sanitaire (alerte descendante)\nProtocole de signalement interne et externe (défaut de traitement, endoscope contaminé, seroconversion virale inexpliquée…)\nMaitrise des risques",null,null,{"$f":"Criticité","v":""},null,{"$f":"Criticité","v":""},null,null,null,null,null,null,null,null,null,{"$f":"Criticité","v":""}]
["R03P01",null,null,null,null,"3- Transmission prion au patient à partir d'un endoscope contaminé","Défaut de traitement adapté au risque MCJ","Transmission MCJ\nSequestration de matériel ","Défaut d'identification et de gestion du risque MCJ","Traçabilité\nCheck-list HAS endoscopie Protocole d'inactivation et de séquestration",null,null,{"$f":"Criticité","v":""},null,{"$f":"Criticité","v":""},null,null,null,null,null,null,null,null,null,{"$f":"Criticité","v":""}]

{"sheet":"E03","index":20,"n_rows":13,"n_cols":26,"rows_kept":13,"cut":false,"hidden":false,"merged":[]}
[null,null,null,null,null,"E3 SECTEURS À RISQUES SPÉCIFIQUES  >> Actes Imagerie interventionnelle"]
[null,"Etapes",null,null,"Analyse des risques",null,null,null,null,null,null,null,null,null,null,null,"Plan d'actions"]
["Id","Quoi","Comment","Qui","CQ","Nature du risque","Situation dangereuse","Effet Dommage","Cause(s) de la situation dangereuse ","Dispositif(s) de maitrise en place","Fréquence","Gravité","Criticité","Niveau de maîtrise","C avec niveau de maîtrise","Actions suggérées","Actions d'amélioration","Responsable(s)","Début prévu","Échéance prévue","Modalités d'évaluation / indicateurs de suivi","Etat d’avancement","Fréquence résiduelle","Gravité résiduelle","Criticité résiduelle","Gestion du risque résiduel"]
["R01P01",null,null,null,null,"1-Infection du site interventionnel","Non identification des facteurs de risque liés au patient :\nPrésence de foyer infectieux \nHyperglycémie\nTabagisme \nPortage de SA (implant)\n\n","Augmentation du risque d'acquisition d'une infection du site interventionnel\nDécès par endocardite\nAntibiothérapie\nProlongation séjour\nRéintervention\nPersistance de la pathologie initiale. ","PEC en Urgence\nProgrammation trop rapide\nAbsence d'outils d'évaluation\nAbsence de détection des foyers infectieux ou portage. \n ","Questionnaire type pour le patient à la recherche de facteurs de risque. \nprotocole \nTraitement adapté du foyer infectieux, décolonisation SA, arrêt du tabac (accès tabatologue)\nFormation\n",null,null,{"$f":"Criticité","v":""},null,{"$f":"Criticité","v":""},null,null,null,null,null,null,null,null,null,{"$f":"Criticité","v":""}]
["R01P02",null,null,null,null,"1-Infection du site interventionnel","Défaut de mise en œuvre des mesures de prévention à court terme:\nHypothermie\nAntibioprophylaxie absente ou inadaptée\nDéfaut de préparation cutanée\n","Augmentation du risque d'acquisition d'une infection du site interventionnel\nDécès par endocardite\nAntibiothérapie\nProlongation séjour\nRéintervention\nPersistance de la pathologie initiale . ","Absence de surveillance per et post opératoire \nMéconnaissance du risque \nAbsence de matériel (réchauffement,  surveillance) \nMéconnaissances des posologies, délais, réinjections ABP \nNon respect ou méconnaissance du protocole de préparation cutanée\nPEC en urgence\nTechnique de réalisation de la préparation cutanée non  conforme\nAbsence de matériel  adapté\n","Protocoles\nFormation\nSurveillance qualité Antibioprophylaxie.\nSurveillance infections du site interventionnel\nAnalyse événement Indésirable;  infection du site interventionnel\nRetro information \nAudits\nTraçabilité IMC dossier",null,null,{"$f":"Criticité","v":""},null,{"$f":"Criticité","v":""},null,null,null,null,null,null,null,null,null,{"$f":"Criticité","v":""}]
["R01P03",null,null,null,null,"1-Infection du site interventionnel","Défaut de prévention en per interventionnel:\ntransmission manuportée","Contamination du site interventionnel","Non-conformité de la désinfection chirurgicale par friction (DCF) ou lavage chirurgical\nMauvaise gestion des gants\n ","Protocoles \nDisponibilité du matériel\nFormations\nAudit\nICSHA",null,null,{"$f":"Criticité","v":""},null,{"$f":"Criticité","v":""},null,null,null,null,null,null,null,null,null,{"$f":"Criticité","v":""}]
["R01P04",null,null,null,null,"1-Infection du site interventionnel","Défaut de maitrise de la qualité environnementale:\nAIR: ","Aérobiocontamination","Tenue et comportements des professionnels inadaptés \nDéfaillance ou insuffisance du traitement d'air\nNon-conformité des locaux\nAbsence de marche en avant\n\n","Protocoles \nDisponibilité des matériels et tenues\nConception (sas de décartonnage, traitement d'air conforme à l'analyse du risque)\nSurveillance environnementale\nSuivi maintenance des installations (réunions avec les services techniques, carnet sanitaire AIR)\n",null,null,{"$f":"Criticité","v":""},null,{"$f":"Criticité","v":""},null,null,null,null,null,null,null,null,null,{"$f":"Criticité","v":""}]
["R01P05",null,null,null,null,"1-Infection du site interventionnel","Défaut de maitrise de la qualité environnementale:\nEau:","Contamination des mains des opérateurs","Défaut ou sous  utilisation de la  DCF\nMauvaise gestion des filtres anti bactériens\nMéconnaissance de la contamination \n\n","Protocoles \nAudits/EOH\nDisponibilité des matériels \nSurveillance environnementale\nRéunions avec les services techniques\nCarnet sanitaire EAU\nICSHA",null,null,{"$f":"Criticité","v":""},null,{"$f":"Criticité","v":""},null,null,null,null,null,null,null,null,null,{"$f":"Criticité","v":""}]
["R01P06",null,null,null,null,"1-Infection du site interventionnel","Défaut de maitrise de la qualité environnementale:\nSurfaces:\nContamination des appareils de mesure électrophysiologique","Contamination des surfaces ","Défaut de Bio nettoyage des SOP \nMéconnaissance des protocoles \nAbsence de matériels \nSous estimation du risque ","Protocoles \nDisponibilité du matériel\nFormations\nAudit/ EOH\nSurveillance environnementale",null,null,{"$f":"Criticité","v":""},null,{"$f":"Criticité","v":""},null,null,null,null,null,null,null,null,null,{"$f":"Criticité","v":""}]
["R01P07",null,null,null,null,"1-Infection du site interventionnel","Défaut de maitrise de la qualité environnementale:\nInstrumentation non à UU","Contaminations du Site opératoire  ","Défaut de stérilisation  \nMéconnaissance de l'état de stérilité\nPrésence d'eau dans un container \nAbsence de maintien des conditions de stérilité des matériels à UU (difficultés de rangements..)\n ","Assurance qualité en stérilisation\nDisponibilité du matériel\nFormations\nAudit des circuits de stérilisation\nProtocole de CAT suivant le moment de la découverte",null,null,{"$f":"Criticité","v":""},null,{"$f":"Criticité","v":""},null,null,null,null,null,null,null,null,null,{"$f":"Criticité","v":""}]
["R01P08",null,null,null,null,"1-Infection du site interventionnel","Défaut de PEC diagnostique et thérapeutique","Prolongation durée de séjour\nDécès","Défaut de surveillance\nDéfaut de compétence en infectiologie","Lien avec le laboratoire\nOrganisation de l'avis infectieux, Référent ATB\nRecommandations diagnostiques et thérapeutiques (COMAI-CAI.. \nFormation",null,null,{"$f":"Criticité","v":""},null,{"$f":"Criticité","v":""},null,null,null,null,null,null,null,null,null,{"$f":"Criticité","v":""}]
["R01P09",null,null,null,null,"1-Infection du site interventionnel","Non identification facteurs de risque d'aquisition de SARM ou de SA\nMéconnaissance du SARM","Bactériémie à SARM\nAntibiothérapie \nJuridique ","PEC en urgence\nMéconnaissance du protocole de dépistage , de décolonisation\nIndisponibilité du Bactroban\nAbsence de transmission de l'information SARM \n ","Protocoles \nDisponibilité du matériel\nPCR SARM ou SA\nFormations\nAudit EPP\n\n\n",null,null,{"$f":"Criticité","v":""},null,{"$f":"Criticité","v":""},null,null,null,null,null,null,null,null,null,{"$f":"Criticité","v":""}]
["R02P01",null,null,null,null,"2- Epidémie infections du site interventionnel","Sous estimation  des cas d'infection du site interventionnel","Arrêt de l'activité\nRisque juridique","Absence de surveillance\nAbsence de signalement\nMéconnaissance du risque","Surveillance prospective des infections du site interventionnel, en lien avec l'EOH\nRetour information laboratoire \nSignalement des professionnels\nEtude des reprises   ",null,null,{"$f":"Criticité","v":""},null,{"$f":"Criticité","v":""},null,null,null,null,null,null,null,null,null,{"$f":"Criticité","v":""}]

{"sheet":"E04","index":21,"n_rows":9,"n_cols":26,"rows_kept":9,"cut":false,"hidden":false,"merged":[]}
[null,null,null,null,null,"E4 SECTEURS À RISQUES SPÉCIFIQUES  >> Balnéothérapie"]
[null,"Etapes",null,null,"Analyse des risques",null,null,null,null,null,null,null,null,null,null,null,"Plan d'actions"]
["Id","Quoi","Comment","Qui","CQ","Nature du risque","Situation dangereuse","Effet Dommage","Cause(s) de la situation dangereuse ","Dispositif(s) de maitrise en place","Fréquence","Gravité","Criticité","Niveau de maîtrise","C avec niveau de maîtrise","Actions suggérées","Actions d'amélioration","Responsable(s)","Début prévu","Échéance prévue","Modalités d'évaluation / indicateurs de suivi","Etat d’avancement","Fréquence résiduelle","Gravité résiduelle","Criticité résiduelle","Gestion du risque résiduel"]
["R01P01",null,null,null,null,"1- Infections cutanées  (verrues, infection bactérienne ou virale)","Présence de patients infectés ","Transmission croisée d'une dermatose infectieuse","Méconnaissance du risque\nMéconnaissance des recommandations \nNon respect des contre indications ou des préconisations\nAbsence de maintenance du Tt d'eau de la piscine et de contrôles","MAQ de la balnéothérapie\nTraçabilité des contrôles ",null,null,{"$f":"Criticité","v":""},null,{"$f":"Criticité","v":""},null,null,null,null,null,null,null,null,null,{"$f":"Criticité","v":""}]
["R01P02",null,null,null,null,"1- Infections cutanées  (verrues, infection bactérienne ou virale)","Présence de patients infectés ou colonises","Transmission croisée d'une dermatose infectieuse","Absence entretien des locaux et matériels partagés\nLocaux inadaptés , pédiluve inadapté","MAQ de la balnéothérapie\nTraçabilité des contrôles \nLocaux conformes ",null,null,{"$f":"Criticité","v":""},null,{"$f":"Criticité","v":""},null,null,null,null,null,null,null,null,null,{"$f":"Criticité","v":""}]
["R02P01",null,null,null,null,"2- Légionellose nosocomiale","Contamination à Légionella pneumophila","Légionellose","Absence de maintenance du Traitement d'ECS et des douches\nabsence de surveillance … Voir aussi onglet eau D1","Carnet sanitaire ECS de l'ES MAQ balnéothérapie\nVoir aussi onglet eau D1",null,null,{"$f":"Criticité","v":""},null,{"$f":"Criticité","v":""},null,null,null,null,null,null,null,null,null,{"$f":"Criticité","v":""}]
["R03P01",null,null,null,null,"3- Infections digestives","Présence de patients infectés ","Transmission croisée d'une gastro entérite","Méconnaissance du risque\nMéconnaissance des recommandations \nNon respect des contre indications ou des préconisations\nAbsence de maintenance du Tt d'eau de la piscine","MAQ de la balnéothérapie\nCarnet sanitaire EC \nTraçabilité des contrôles",null,null,{"$f":"Criticité","v":""},null,{"$f":"Criticité","v":""},null,null,null,null,null,null,null,null,null,{"$f":"Criticité","v":""}]
["R04P01",null,null,null,null,"4- Infections oculaires","Présence de patients infectés ","Transmission croisée d'une conjonctivite","Méconnaissance du risque\nMéconnaissance des recommandations \nNon respect des contre indications ou des préconisations","MAQ de la balnéothérapie\nTraçabilité des contrôles",null,null,{"$f":"Criticité","v":""},null,{"$f":"Criticité","v":""},null,null,null,null,null,null,null,null,null,{"$f":"Criticité","v":""}]
["R05P01",null,null,null,null,"5- Infection ORL","Présence de patients infectés ","Transmission croisée d'une otite","Méconnaissance du risque\nMéconnaissance des recommandations \nNon respect des contre indications ou des préconisations","MAQ de la balnéothérapie\nTraçabilité des contrôles",null,null,{"$f":"Criticité","v":""},null,{"$f":"Criticité","v":""},null,null,null,null,null,null,null,null,null,{"$f":"Criticité","v":""}]

{"sheet":"F01","index":22,"n_rows":9,"n_cols":26,"rows_kept":9,"cut":false,"hidden":false,"merged":[]}
[null,null,null,null,null,"F1 RISQUES PROFESSIONNELS >> AES   "]
[null,"Etapes",null,null,"Analyse des risques",null,null,null,null,null,null,null,null,null,null,null,"Plan d'actions"]
["Id","Quoi","Comment","Qui","CQ","Nature du risque","Situation dangereuse","Effet Dommage","Cause(s) de la situation dangereuse ","Dispositif(s) de maitrise en place","Fréquence","Gravité","Criticité","Niveau de maîtrise","C avec niveau de maîtrise","Actions suggérées","Actions d'amélioration","Responsable(s)","Début prévu","Échéance prévue","Modalités d'évaluation / indicateurs de suivi","Etat d’avancement","Fréquence résiduelle","Gravité résiduelle","Criticité résiduelle","Gestion du risque résiduel"]
["R01P01",null,null,null,null,"1- Transmission bactérienne, virale, fongique à un professionnel par accident d'exposition au sang ou aux liquides biologiques ","Défaut d'utilisation de matériel sécurisé","Blessure","Absence de mise à disposition ou mésusage du matériel sécurisé","Politique d'achat de matériel sécurisé en collaboration avec l'EOH et les équipes\nInformation\nFormation des professionnels pour le nouveau matériel",null,null,{"$f":"Criticité","v":""},null,{"$f":"Criticité","v":""},0,null,null,null,null,null,null,null,null,{"$f":"Criticité","v":""}]
["R01P02",null,null,null,null,"1- Transmission bactérienne, virale, fongique à un professionnel par accident d'exposition au sang ou aux liquides biologiques ","Défaut d'utilisation de matériel de protection (lunettes, masque, tablier ou surblouse)","Projection sur muqueuse ou blessure ","Absence de mise à disposition ou d'utilisation du matériel de protection","Procédure\nFormation\nAudit / précautions standard\nAchat\nDotation adaptée\n",null,null,{"$f":"Criticité","v":""},null,{"$f":"Criticité","v":""},0,null,null,null,null,null,null,null,null,{"$f":"Criticité","v":""}]
["R01P03",null,null,null,null,"1- Transmission bactérienne, virale, fongique à un professionnel par accident d'exposition au sang ou aux liquides biologiques ","Défaut d'élimination des piquants-tranchants (par professionnel lui-même ou un collègue)","Blessure ","Absence de mise à disposition\nUtilisation différée du contenant piquant-tranchant\nRemplissage excessif du contenant piquant-tranchant ","Procédure\nFormation\nAudit / précautions standard\nAchat\nDotation adaptée\n",null,null,{"$f":"Criticité","v":""},null,{"$f":"Criticité","v":""},0,null,null,null,null,null,null,null,null,{"$f":"Criticité","v":""}]
["R01P04",null,null,null,null,"1- Transmission bactérienne, virale, fongique à un professionnel par accident d'exposition au sang ou aux liquides biologiques ","Défaut d'immunité","Transmission hépatite B","Défaut de vaccination ou non réponse au vaccin","Procédure vérification immunisation Hépatite B par le service sante au travail\nService de santé au travail en adéquation avec taille de l'établissement",null,null,{"$f":"Criticité","v":""},null,{"$f":"Criticité","v":""},0,null,null,null,null,null,null,null,null,{"$f":"Criticité","v":""}]
["R01P05",null,null,null,null,"1- Transmission bactérienne, virale, fongique à un professionnel par accident d'exposition au sang ou aux liquides biologiques ","Défaut de prise en charge(PEC) de l'AES par blessure ou projection sur muqueuse","Augmentation du risque de transmission ","Défaut de connaissance de la conduite à tenir immédiate\nDéfaut d'organisation du circuit de PEC","Procédure AES\nAffichage\nFormation\nEn l'absence de SAU, convention avec autre établissement",null,null,{"$f":"Criticité","v":""},null,{"$f":"Criticité","v":""},0,null,null,null,null,null,null,null,null,{"$f":"Criticité","v":""}]
["R01P06",null,null,null,null,"1- Transmission bactérienne, virale, fongique à un professionnel par accident d'exposition au sang ou aux liquides biologiques ","Méconnaissance du nombre et des circonstances des AES","Absence d'alerte et d'évaluation de la politique de prévention du risque AES ","Défaut de recueil de données AES","Organisation de la surveillance des AES en lien avec EOH et existence d'une  retroinformation auprès des équipes",null,null,{"$f":"Criticité","v":""},null,{"$f":"Criticité","v":""},0,null,null,null,null,null,null,null,null,{"$f":"Criticité","v":""}]

{"sheet":"F02","index":23,"n_rows":18,"n_cols":26,"rows_kept":18,"cut":false,"hidden":false,"merged":[]}
[null,null,null,null,null,"F2 RISQUES PROFESSIONNELS >> Autres risques infectieux professionnels"]
[null,"Etapes",null,null,"Analyse des risques",null,null,null,null,null,null,null,null,null,null,null,"Plan d'actions"]
["Id","Quoi","Comment","Qui","CQ","Nature du risque","Situation dangereuse","Effet Dommage","Cause(s) de la situation dangereuse ","Dispositif(s) de maitrise en place","Fréquence","Gravité","Criticité","Niveau de maîtrise","C avec niveau de maîtrise","Actions suggérées","Actions d'amélioration","Responsable(s)","Début prévu","Échéance prévue","Modalités d'évaluation / indicateurs de suivi","Etat d’avancement","Fréquence résiduelle","Gravité résiduelle","Criticité résiduelle","Gestion du risque résiduel"]
["R01P01",null,null,null,null,"1- Transmission de BK à partir d'un patient contagieux (tuberculose pulmonaire ou ORL)","Défaut d'identification du risque de contagiosité","Défaut de mise en place des mesures de prévention","Retard du diagnostic\nDéfaut de connaissance","Organisation de l'avis infectieux\nFormation des médecins\nStaff\nEPP\nRMM",null,null,{"$f":"Criticité","v":""},null,{"$f":"Criticité","v":""},null,null,null,null,null,null,null,null,null,{"$f":"Criticité","v":""}]
["R01P02",null,null,null,null,"1- Transmission de BK à partir d'un patient contagieux (tuberculose pulmonaire ou ORL)","Défaut d'utilisation de matériel de protection (masque FFP2)","Augmentation du risque de transmission ","Absence de mise à disposition ou d'utilisation du matériel de protection","Achat\nDotation adaptée\nProcédure\nFormation\nAudit / PEC d'un patient suspect de tuberculose contagieuse ou précautions \"air\"",null,null,{"$f":"Criticité","v":""},null,{"$f":"Criticité","v":""},null,null,null,null,null,null,null,null,null,{"$f":"Criticité","v":""}]
["R01P03",null,null,null,null,"1- Transmission de BK à partir d'un patient contagieux (tuberculose pulmonaire ou ORL)","Défaut d'immunité","Augmentation du risque de maladie","Défaut de vaccination ou non réponse au vaccin","Procédure \nVérification immunisation BK par le service santé au travail",null,null,{"$f":"Criticité","v":""},null,{"$f":"Criticité","v":""},null,null,null,null,null,null,null,null,null,{"$f":"Criticité","v":""}]
["R01P04",null,null,null,null,"1- Transmission de BK à partir d'un patient contagieux (tuberculose pulmonaire ou ORL)","Défaut de prise en charge de l'exposition au BK","Augmentation du risque de maladie","Défaut d'alerte de l'EOH\nDéfaut de  suivi post-exposition\nDéfaut de suivi régulier du service santé au travail","Information du professionnel exposé\nOrganisation du suivi par le service santé au travail\nProcédure CAT / exposition au BK\n",null,null,{"$f":"Criticité","v":""},null,{"$f":"Criticité","v":""},null,null,null,null,null,null,null,null,null,{"$f":"Criticité","v":""}]
["R02P01",null,null,null,null,"2- Transmission infections respiratoires autres (grippe, coqueluche, rougeole) à partir d'un patient contagieux","Défaut d'identification du risque de contagiosité","Défaut de mise en place des mesures de prévention","Retard du diagnostic\nDéfaut de connaissance\nDéfaut de mise à disposition ou d'utilisation des tests de diagnostic rapide aux urgences","Formation des médecins, Staff\nEPP\nRMM\nMise à disposition des tests de diagnostic rapide aux urgences",null,null,{"$f":"Criticité","v":""},null,{"$f":"Criticité","v":""},null,null,null,null,null,null,null,null,null,{"$f":"Criticité","v":""}]
["R02P02",null,null,null,null,"2- Transmission infections respiratoires autres (grippe, coqueluche, rougeole) à partir d'un patient contagieux","Défaut d'utilisation de matériel de protection (masque chirurgical ou FFP2 pour rougeole)","Augmentation du risque de transmission ","Absence de mise à disposition ou d'utilisation du matériel de protection","Achat\nDotation adaptée\nProcédure précautions \"goutelettes\" ou \"air\" (rougeole)\nFormation\nAudit",null,null,{"$f":"Criticité","v":""},null,{"$f":"Criticité","v":""},null,null,null,null,null,null,null,null,null,{"$f":"Criticité","v":""}]
["R02P03",null,null,null,null,"2- Transmission infections respiratoires autres (grippe, coqueluche, rougeole) à partir d'un patient contagieux","Défaut d'immunité","Augmentation du risque de maladie","Défaut de vaccination ou non réponse au vaccin","Politique de vaccination antigrippale-coqueluche-rougeole  des professionnels\nSuivi du taux de vaccination des professionnels par le service santé au travail",null,null,{"$f":"Criticité","v":""},null,{"$f":"Criticité","v":""},null,null,null,null,null,null,null,null,null,{"$f":"Criticité","v":""}]
["R02P04",null,null,null,null,"2- Transmission infections respiratoires autres (grippe, coqueluche, rougeole) à partir d'un patient contagieux","Défaut de prise en charge de l'exposition ","Augmentation du risque de maladie","Défaut d'alerte de l'EOH\nAbsence de prophylaxie \nDéfaut de  suivi post-exposition","Information du professionnel exposé\nOrganisation de l'avis infectieux\nRéférent ATB\nOrganisation du suivi par le service de santé au travail",null,null,{"$f":"Criticité","v":""},null,{"$f":"Criticité","v":""},null,null,null,null,null,null,null,null,null,{"$f":"Criticité","v":""}]
["R03P01",null,null,null,null,"3- Transmission de gale à partir d'un patient contagieux","Défaut d'identification du risque de contagiosité","Défaut de mise en place des mesures de prévention","Retard du diagnostic\nDéfaut de connaissance","Formation des médecins\nStaff\nEPP\nRMM\nProcédure PEC d'un patient suspect de gale",null,null,{"$f":"Criticité","v":""},null,{"$f":"Criticité","v":""},null,null,null,null,null,null,null,null,null,{"$f":"Criticité","v":""}]
["R03P02",null,null,null,null,"3- Transmission de gale à partir d'un patient contagieux","Défaut d'utilisation de matériel de protection (gants, surblouse)","Augmentation du risque de transmission ","Absence de mise à disposition ou d'utilisation du matériel","Achat\nDotation adaptée\nPrécautions \"contact gale\"\nFormation\nAudit",null,null,{"$f":"Criticité","v":""},null,{"$f":"Criticité","v":""},null,null,null,null,null,null,null,null,null,{"$f":"Criticité","v":""}]
["R03P03",null,null,null,null,"3- Transmission de gale à partir d'un patient contagieux","Défaut de prise en charge de l'exposition à la gale","Augmentation du risque de maladie","Défaut d'alerte de l'EOH\nAbsence de traitement prophylactique\nDéfaut de suivi post-exposition","Information du professionnel exposé\nOrganisation de l'avis infectieux\nProcédure CAT / exposition à la gale",null,null,{"$f":"Criticité","v":""},null,{"$f":"Criticité","v":""},null,null,null,null,null,null,null,null,null,{"$f":"Criticité","v":""}]
["R04P01",null,null,null,null,"4- Transmission d'une infection à méningocoque à partir d'un patient contagieux","Défaut d'identification du risque de contagiosité","Défaut de mise en place des mesures de prévention","Retard du diagnostic\nDéfaut de connaissance","Formation des médecins\nStaff\nEPP\nRMM",null,null,{"$f":"Criticité","v":""},null,{"$f":"Criticité","v":""},null,null,null,null,null,null,null,null,null,{"$f":"Criticité","v":""}]
["R04P02",null,null,null,null,"4- Transmission d'une infection à méningocoque à partir d'un patient contagieux","Défaut d'utilisation de matériel de protection (masque chirurgical)","Augmentation du risque de transmission ","Absence de mise à disposition ou d'utilisation du matériel","Protocole \"CAT devant un patient suspect d'infection systémique à méningocoque\" ou \"précautions goutelettes\", Formation\nAudit\nMateriel de protection disponible ",null,null,{"$f":"Criticité","v":""},null,{"$f":"Criticité","v":""},null,null,null,null,null,null,null,null,null,{"$f":"Criticité","v":""}]
["R04P03",null,null,null,null,"4- Transmission d'une infection à méningocoque à partir d'un patient contagieux","Défaut d'utilisation du matériel de protection lors de gestes invasifs respiratoires ou manipulation de LCR","Inoculation directe du méningocoque","Meconnaissance du risque lié au geste invasif\nAbsence de matériel de protection","Précautions standard\nFormation\nAudit",null,null,{"$f":"Criticité","v":""},null,{"$f":"Criticité","v":""},null,null,null,null,null,null,null,null,null,{"$f":"Criticité","v":""}]
["R04P04",null,null,null,null,"4- Transmission d'une infection à méningocoque à partir d'un patient contagieux","Défaut de prise en charge de l'exposition au méningocoque","Augmentation du risque de maladie","Défaut d'alerte de l'EOH\nRetard à la PEC  prophylactique post-exposition","Information du professionnel exposé\nOrganisation de l'avis infectieux\nRéférent ATB\nProcédure CAT / exposition au BK",null,null,{"$f":"Criticité","v":""},null,{"$f":"Criticité","v":""},null,null,null,null,null,null,null,null,null,{"$f":"Criticité","v":""}]

{"sheet":"Echelles","index":24,"n_rows":21,"n_cols":10,"rows_kept":21,"cut":false,"hidden":false,"merged":[[5,5,5,9],[6,5,6,9],[7,0,7,3],[7,4,7,9],[14,0,14,3],[4,5,4,9],[0,0,0,3],[0,4,0,9],[1,5,1,9],[2,5,2,9],[3,5,3,9]]}
["Fréquence (F)",null,null,null,"Niveau de Maîtrise (M)"]
["Classe\n","Intitulé\nde la classe","Index","Correspondance  des conséquences","Niveau","Correspondance des niveaux de maitrise"]
["F1","Très improbable",1,"Jamais vu ou il est presque impossible que cet événement se reproduise à nouveau","Niveau 1","On sait faire face, bonne maîtrise: Plans avec exercices et formations, veille, contrôle, amélioration continue"]
["F2","Très peu probable",2,"Vu une fois dans ma carrière ou cet événement ne devrait pas se reproduire, mais ce n’est pas impossible ","Niveau 2","On a tout prévu: plans d'action en place avec indicateurs"]
["F3","Peu probable",3,"Vu dans d'autres établissements ou cet événement pourra occasionnellement se reproduire","Niveau 3","On a organisé: organisation en place sans évaluation"]
["F4","Possible Probable",4,"Survient dans mon établissement ou cet événement se reproduira sans doute, mais pas fréquemment","Niveau 4","On est en alerte: quelques actions mais insufisantes - veille mais sans action"]
["F5","Très probable à certain",5,"Survient dans mon secteur d'activité ou il est certain que cet événement se reproduira de nombreuses fois  ","Niveau 5","On découvre le risque: aucune action en place - études en cours - actions inefficaces"]
["Gravité (G)",null,null,null,"Diagramme de Farmer\nCriticité en fonction de la Gravité et de la Fréquence"]
["Classe ","Intitulé\nde la classe","Index","Correspondance des vraisemblances","G5",5,10,15,20,25]
["G1","Mineure",1,"Conséquences mineures sans préjudice (ex: retard simple)","G4",4,8,12,16,20]
["G2","Significative",2,"Incident avec préjudice temporaire (ex: retard avec déorganisation de la PEC)","G3",3,6,9,12,15]
["G3","Majeure",3,"Incident avec impact (Ex: report, prolongation de l'hospitalisation, transfert non prévu en réa)","G2",2,4,6,8,10]
["G4","Critique",4,"Conséquences graves (ex: ré-intervention, préjudice ayant un retentissement sur la vie quotidienne, incapacité partielle permanente)","G1",1,2,3,4,5]
["G5","Catastrophique",5,"Conséquences très graves (ex: invalidité permanente, séquelles graves, décès)",null,"F1","F2","F3","F4","F5"]
[{"$f":"\"Criticité (C)\"","v":"Criticité (C)"},null,null,null,"Criticité prenant en compte le niveau de maîtrise = Hiérarchie"]
["Produit \nG X F","Intitulé\nde la classe","Index","Correspondance des criticités","Criticité","Maitrise 1","Maitrise 2","Maitrise 3","Maitrise 4","Maitrise 5"]
[null,"Acceptable",1,"Aucune action n'est à entreprendre","1 à 5","faible","faible","à surveiller","à surveiller","à surveiller"]
[null,"Tolérable sous contrôle",2,"On doit organiser un suivi en termes de gestion du risque","6 à 10","faible","faible","à surveiller","à surveiller","à surveiller"]
[null,"Inacceptable",3,"On doit refuser la situation et prendre des mesures en réduction des risques sinon … on doit refuser tout ou partie de l'activité","11 à 15","à surveiller","à surveiller","à surveiller","à surveiller","prioritaire"]
[null,null,null,null,"16 à 20","à surveiller","à surveiller","à surveiller","prioritaire","prioritaire"]
[null,null,null,null,"21 à 25","à surveiller","à surveiller","à surveiller","prioritaire","prioritaire"]

{"sheet":"Thèmes Modules","index":25,"n_rows":38,"n_cols":5,"rows_kept":38,"cut":false,"hidden":true,"merged":[]}
[]
[null,null,"Saisir à partir de la 1ère ligne ci-dessous le thème suivi de leurs modules.\nSéparer les thèmes par une ligne vide.",null,"Thèmes et Modules proposés par nos experts"]
[]
[null,"A","Liés au processus de soins 1/3",null,"Liés au processus de soins 1/3"]
[null,"A01","Infections urinaires",null,"Infections urinaires"]
[null,"A02","Infections respiratoires ",null,"Infections respiratoires "]
[null,"A03","ISO",null,"ISO"]
[null,"A04","Infections KT bactériémies ",null,"Infections KT bactériémies "]
[null,"A05","Dispositifs médicaux",null,"Dispositifs médicaux"]
[]
[null,"B","Liés au processus de soins 2/3",null,"Liés au processus de soins 2/3"]
[null,"B01","Infections de la peau et des tissus mous",null,"Infections de la peau et des tissus mous"]
[null,"B02","Infections digestives",null,"Infections digestives"]
[null,"B03","Méningites",null,"Méningites"]
[null,"B04","Infections virales hématogènes",null,"Infections virales hématogènes"]
[null,"B05","Alimentation et Nutrition",null,"Alimentation et Nutrition"]
[]
[null,"C","Liés au processus de soins 3/3",null,"Liés au processus de soins 3/3"]
[null,"C01","ATB et Diffusion des résistances bactériennes",null,"ATB et Diffusion des résistances bactériennes"]
[null,"C02"," Epidémies BMR BHR",null," Epidémies BMR BHR"]
[null,"C03","Autres risques infectieux  émergents\n",null,"Autres risques infectieux  émergents\n"]
[]
[null,"D","Environnement et Travaux",null,"Environnement et Travaux"]
[null,"D01","Eau",null,"Eau"]
[null,"D02","Air",null,"Air"]
[null,"D03","Surface",null,"Surface"]
[null,"D04","Déchets Activités de Soins à Risques Infectieux et Assimilés",null,"Déchets Activités de Soins à Risques Infectieux et Assimilés"]
[null,"D05","Linge",null,"Linge"]
[]
[null,"E","Secteurs à risques spécifiques ",null,"Secteurs à risques spécifiques "]
[null,"E01","Hémodialyse ",null,"Hémodialyse"]
[null,"E02","Endoscopie",null,"Endoscopie"]
[null,"E03","Actes Imagerie interventionnelle",null,"Actes Imagerie interventionnelle"]
[null,"E04","Balnéothérapie",null,"Balnéothérapie"]
[]
[null,"F","Risques professionnels",null,"Risques professionnels"]
[null,"F01","AES   ",null,"AES   "]
[null,"F02","Autres risques infectieux professionnels",null,"Autres risques infectieux professionnels"]

{"sheet":"Thèmes","index":26,"n_rows":7,"n_cols":2,"rows_kept":7,"cut":false,"hidden":true,"merged":[]}
["CODE","THEME"]
["A","Liés au processus de soins 1/3"]
["B","Liés au processus de soins 2/3"]
["C","Liés au processus de soins 3/3"]
["D","Environnement et Travaux"]
["E","Secteurs à risques spécifiques "]
["F","Risques professionnels"]

{"sheet":"Modules","index":27,"n_rows":25,"n_cols":2,"rows_kept":25,"cut":false,"hidden":true,"merged":[]}
["CODE","MODULE"]
["A01","Infections urinaires"]
["A02","Infections respiratoires "]
["A03","ISO"]
["A04","Infections KT bactériémies "]
["A05","Dispositifs médicaux"]
["B01","Infections de la peau et des tissus mous"]
["B02","Infections digestives"]
["B03","Méningites"]
["B04","Infections virales hématogènes"]
["B05","Alimentation et Nutrition"]
["C01","ATB et Diffusion des résistances bactériennes"]
["C02"," Epidémies BMR BHR"]
["C03","Autres risques infectieux  émergents\n"]
["D01","Eau"]
["D02","Air"]
["D03","Surface"]
["D04","Déchets Activités de Soins à Risques Infectieux et Assimilés"]
["D05","Linge"]
["E01","Hémodialyse "]
["E02","Endoscopie"]
["E03","Actes Imagerie interventionnelle"]
["E04","Balnéothérapie"]
["F01","AES   "]
["F02","Autres risques infectieux professionnels"]

{"sheet":"Liste des risques","index":28,"n_rows":0,"n_cols":0,"rows_kept":0,"cut":false,"hidden":true,"merged":[]}

{"sheet":"CQI saisie","index":29,"n_rows":3,"n_cols":6,"rows_kept":3,"cut":false,"hidden":false,"merged":[]}
["Id Risque","Date de saisie SARA","COMMENTAIRES","OBJECTIFS","DEBUT REEL","ECH REELLE"]
["E02R01P03",null,"comm","ggl",43112,43324]
["E02R01P02"]

{"sheet":"Compte Qualité","index":30,"n_rows":0,"n_cols":0,"rows_kept":0,"cut":false,"hidden":false,"merged":[]}

{"sheet":"Saisie SARA","index":31,"n_rows":0,"n_cols":0,"rows_kept":0,"cut":false,"hidden":false,"merged":[]}

{"sheet":"Synoptique","index":32,"n_rows":6,"n_cols":1,"rows_kept":6,"cut":false,"hidden":false,"merged":[]}
[false]
[]
[2]
["A03"]
[{"$f":"VLOOKUP(Phase,Phases,3)","v":"E2:P2"}]
[{"$f":"VLOOKUP(Phase,Phases,2)","v":"Analyse des risques"}]

{"sheet":"Tables","index":33,"n_rows":191,"n_cols":15,"rows_kept":191,"cut":false,"hidden":true,"merged":[[83,1,95,1],[2,4,2,6],[2,7,2,9],[2,10,2,12],[36,6,36,10],[72,1,82,1]]}
["A01",null,1,2,3,4,5,6,7,8,9,10,11,12,13]
["Compte Qualité"]
["CQI saisie",null,null,"Carto GRRIFES","Affichage",null,null,"Déprotection",null,null,"Fractionnement"]
["Echelles"]
["Liste des risques",null,"Col","Libellé","Phase 1","Phase 2","Phase 3","Phase 1","Phase 2","Phase 3","Phase 1","Phase 2","Phase 3","Main data","Ncol"]
["Mise en forme",null,"A","Id",null,2,3,null,null,null,null,null,null,null,1]
["Modules",null,"B","Quoi",1,null,null,null,null,null,null,null,null,1,2]
["Param",null,"C","Comment",1,null,null,null,null,null,null,null,null,null,3]
["Saisie SARA",null,"D","Qui",1,null,null,1,null,null,{"$f":"IF(ISBLANK($N9),\"\",$N9)","v":""},null,null,null,4]
["Synoptique",null,"E","CQ",null,2,3,null,2,3,null,null,null,null,5]
["Tables",null,"F","Nature du risque",null,2,3,null,2,null,null,null,null,2,6]
["Thèmes",null,"G","Situation dangereuse",null,2,3,null,2,null,null,2,null,4,7]
["Thèmes Modules",null,"H","Effet Dommage",null,2,null,null,2,null,null,"",null,null,8]
[null,null,"I","Cause(s) de la situation dangereuse ",null,2,null,null,2,null,null,null,null,null,9]
[null,null,"J","Dispositif(s) de maitrise en place",null,2,null,null,2,null,null,"",null,null,10]
[null,null,"K","Fréquence",null,2,null,null,2,null,null,"",null,null,11]
[null,null,"L","Gravité",null,2,null,null,2,null,null,"",null,null,12]
[null,null,"M","Criticité",null,2,3,null,null,null,null,"",null,null,13]
[null,null,"N","Niveau de maîtrise",null,2,null,null,2,null,null,"",null,null,14]
[null,null,"O","C avec niveau de maîtrise",null,2,null,null,null,null,null,"",null,null,15]
[null,null,"P","Actions suggérées",null,2,null,null,2,null,null,"",null,null,16]
[null,null,"Q","Actions d'amélioration",null,null,3,null,null,3,null,null,3,3,17]
[null,null,"R","Responsable(s)",null,null,3,null,null,3,null,null,{"$f":"IF(ISBLANK($N23),\"\",$N23)","v":""},null,18]
[null,null,"S","Début prévu",null,null,3,null,null,3,null,null,"",null,19]
[null,null,"T","Échéance prévue",null,null,3,null,null,3,null,null,"",null,20]
[null,null,"U","Modalités d'évaluation / indicateurs de suivi",null,null,3,null,null,3,null,null,"",null,21]
[null,null,"V","Etat d’avancement",null,null,3,null,null,3,null,null,"",null,22]
[null,null,"W","Fréquence résiduelle",null,null,3,null,null,3,null,null,"",null,23]
[null,null,"X","Gravité résiduelle",null,null,3,null,null,3,null,null,"",null,24]
[null,null,"Y","Criticité résiduelle",null,null,3,null,null,null,null,null,"",null,25]
[null,null,"Z","Gestion du risque résiduel",null,null,3,null,null,3,null,null,"",null,26]
[]
[null,null,null,"Étapes"]
[null,null,null,"Nature du risque"]
[null,null,null,"Action"]
[]
[null,null,null,"Attention !! Conserver les clés de recherche suivantes :",null,null,"Valeurs possibles des indicateurs"]
[null,null,1,"Fréquence",11,"A1",1,2,3,4,5]
[null,null,2,"Gravité",12,"A8",1,2,3,4,5]
[null,null,3,"Criticité",13,"A15",1,2,3,4,5]
[null,null,4,"Niveau de maîtrise",14,"E1",1,2,3,4,5]
[null,null,5,"C avec niveau de maîtrise",15,"E14",1,2,3,4,5]
[null,null,6,"Fréquence résiduelle",23,"A1",1,2,3,4,5]
[null,null,7,"Gravité résiduelle",24,"A8",1,2,3,4,5]
[null,null,8,"Criticité résiduelle",25,"A15",1,2,3,4,5]
[]
[]
[null,null,"Id","Libellé"]
[null,null,1,"OUI"]
[null,null,2,"NON"]
[]
[null,null,"Id","Libellé Etat d'avancement"]
[null,null,1,"Non initié"]
[null,null,2,"En cours"]
[null,null,3,"Abandonné"]
[null,null,4,"Finalisé"]
[]
[null,null,"Id","Dossier","Fichier"]
[null,null,0]
[null,null,1]
[null,null,2]
[null,null,3]
[]
[null,null,"Id","Url pour NOSOBASE et le transfert de fichier (FTP)","Mot Clé/ Login","MDP"]
[null,null,0]
[null,null,1,"https://www.preventioninfection.fr/base-documentaire/","Base documentaire - Découvrez les outils du RéPias","Base documentaire - Découvrez les outils du RéPias - Mozilla Firefox"]
[null,null,2,"http://www.cpias.fr/nosobase/","NosoBase : Page d'accueil"]
[]
[]
[null,null,"IMPORTATION DE LA BASE DES RISQUES À LA MISE EN SERVICE"]
[]
[null,null,"Id","Libellé Champ Base Natures de risque à IMPORTER","Num Col CartoGRIFFES"]
[null,"Analyse des risques",1,"Id Risque",1]
[null,null,2,"Nature du risque",6]
[null,null,3,"Situation dangereuse",7]
[null,null,4,"Effet\nDommage",8]
[null,null,5,"Causes de la situation dangereuse",9]
[null,null,6,"Dispositif de maitrise en place",10]
[null,null,7,"Niveau de maîtrise",14]
[null,null,8,"F",11]
[null,null,9,"G",12]
[null,null,10,"C"]
[null,null,11,"Actions suggérées\n",16]
[null,"Plan d'actions",12,"OBJECTIFS"]
[null,null,13,"ACTIONS D'AMELIORATION",17]
[null,null,14,"RESPONSABLE",18]
[null,null,15,"DEBUT PREV",19]
[null,null,16,"DEBUT REEL"]
[null,null,17,"ECH PREV",20]
[null,null,18,"ECH REELLE"]
[null,null,19,"MODALITE SUIVI",21]
[null,null,20,"ETAT D'AVANCEMENT",22]
[null,null,21,"G\nr",24]
[null,null,22,"V\nr",23]
[null,null,23,"C\nr"]
[null,null,24,"Gestion du risque résiduel",26]
[]
[null,null,"LISTE DES RISQUES PRIORITAIRES ET À SURVEILLER",null,null,null,null,null,null,"Police","Enrichi","Align"]
[null,null,null,null,null,null,null,"Police des entêtes :",null,8,1,1]
[null,null,null,1,2,3,4,5,6,7,8,9,10,11]
[null,null,"Id","Libellé Champ Requête","CartoGRIFFES","Affichage","Déprotection","Fractionnement","MainData","Format","Larg Col","Police","Enrichi","Align"]
[null,null,1,"Id Risque",1,2,null,null,null,null,7,8,null,1]
[null,null,{"$f":"C102+1","v":2},"Code",null,null,null,null,null,null,8,{"$f":"$L$102","v":8}]
[null,null,3,"Nature du risque",6,2,null,null,null,"retour",18,8,null,1]
[null,null,4,"Danger",7,2,null,null,2,"retour",{"$f":"$K$104","v":18},8,null,1]
[null,null,5,"Effet",8,2,null,null,null,"retour",{"$f":"$K$104","v":18},8,null,1]
[null,null,6,"Cause",9,2,null,null,null,"retour",{"$f":"$K$104","v":18},8,null,1]
[null,null,7,"Barrière",10,2,null,null,null,"retour",{"$f":"$K$104","v":18},8,null,1]
[null,null,8,"F",11,2,null,null,null,null,4,8]
[null,null,9,"G",12,2,null,null,null,null,{"$f":"$K$109","v":4},8]
[null,null,10,"C",13,2,null,null,null,null,{"$f":"$K$109","v":4},8]
[null,null,11,"Niv M",14,2,null,null,null,null,{"$f":"$K$109","v":4},8]
[null,null,12,"C avec Niv M",15,2,null,null,null,null,{"$f":"$K$109","v":4},8]
[null,null,13,"Actions suggérées",16,2,null,null,null,"retour",{"$f":"$K$104","v":18},8]
[]
[null,null,"Mise en forme Synoptique"]
[null,null,null,1,2,3,4,5,6,7,8]
[null,null,"Id","Désignation de la forme","Nom","Action","Couleur de fond","Police","Bordure","Enrichi","Align"]
[null,null,1,{"$f":"Titre","v":"Cartographie des Risques Infectieux 2018 CARTOCLIN-IDF"},"formeTitre",null,5,10,2]
[null,null,{"$f":"C119+1","v":2},{"$f":"Synoptique!A6","v":"Analyse des risques"},"formePhase",null,null,7,2]
[null,null,3,"Configurer","cmdConfigurer","Configure",6,11,2,1]
[null,null,4,null,"cmdChoixPhase",null,{"$f":"$G$121","v":6},{"$f":"$H$121","v":11},{"$f":"$I$121","v":2}]
[null,null,5,"Échelles","cmdEchelles","Navigation8",6,11,2,1]
[null,null,6,"Liste des risques","cmdListeRisques","ListeRisques",6,11,2,1]
[null,null,7,"Compte Qualité","cmdCompteQualite","Navigation12",6,11,2,1]
[null,null,8,"Enregistrer","cmdEnregistrer","Enregistrer",6,11,2,1]
[null,null,9,"Quitter","cmdQuitter","Quitter",6,11,2,1]
[null,null,10,"BASE DOCUMENTAIRE","cmdReferentiel",{"$f":"IF(ReferentielOuiNon<>\"\",\"Navigation14\",\"\")","v":"Navigation14"},6,{"$f":"IF(ReferentielOuiNon<>\"\",11,12)","v":11},{"$f":"IF(ReferentielOuiNon<>\"\",2,1)","v":2},1]
[null,null,11,"Guide","cmdGuide",{"$f":"IF(GuideOuiNon,\"Navigation11\",\"\")","v":""},6,{"$f":"IF(GuideOuiNon,11,12)","v":12},{"$f":"IF(GuideOuiNon,2,1)","v":1},1]
[]
[]
[]
[null,null,"COMPTE QUALITÉ INTÉGRÉ (CQI)",null,null,null,null,null,null,"Police","Enrichi","Align"]
[null,null,null,null,null,null,null,"Police des entêtes :",null,9,1,1]
[null,null,null,1,2,3,4,5,6,7,8,9,10,11]
[null,null,"Id","Libellé Champ Contrôle Qualité","CartoGRIFFES","Affichage","Déprotection","Fractionnement","MainData","Format","Larg Col","Police","Enrichi","Align"]
[null,null,1,"Id Risque",1,3,null,null,null,null,14.5,9,null,1]
[null,null,{"$f":"C137+1","v":2},"Code",null,null,null,null,null,null,8,{"$f":"$L$137","v":9}]
[null,null,3,"Date de saisie SARA",null,3,3,3,null,"m/d/yyyy",14,9,null,1]
[null,null,4,"LIBELLE DU RISQUE","6;7",3,null,null,null,null,25,9,null,1]
[null,null,5,"F",11,3,null,null,null,null,4,9,null,1]
[null,null,6,"G",12,3,null,null,null,null,{"$f":"$K$141","v":4},9,null,1]
[null,null,7,"C",13,3,null,null,null,null,{"$f":"$K$141","v":4},9,null,1]
[null,null,8,"DISPOSITIF DE MAITRISE EN PLACE (barrière de sécurité)",10,3,null,null,null,null,{"$f":"$K$140","v":25},9,null,1]
[null,null,9,"M",14,3,null,null,null,null,{"$f":"$K$141","v":4},9,null,1]
[null,null,10,"COMMENTAIRES",null,3,3,null,3,null,{"$f":"$K$140","v":25},9,null,1]
[null,null,11,"OBJECTIFS",null,3,3,null,null,null,{"$f":"$K$140","v":25},9,null,1]
[null,null,12,"ACTIONS D'AMELIORATION",17,3,null,null,null,null,{"$f":"$K$140","v":25},9,null,1]
[null,null,13,"RESPONSABLE",18,3,null,null,null,null,{"$f":"$K$140","v":25},9,null,1]
[null,null,14,"DEBUT PREV",19,3,null,null,null,"m/d/yyyy",{"$f":"$K$139","v":14},9,null,1]
[null,null,15,"DEBUT REEL",null,3,3,null,null,"m/d/yyyy",{"$f":"$K$139","v":14},9,null,1]
[null,null,16,"ECH PREV",20,3,null,null,null,"m/d/yyyy",{"$f":"$K$139","v":14},9,null,1]
[null,null,17,"ECH REELLE",null,3,3,null,null,"m/d/yyyy",{"$f":"$K$139","v":14},9,null,1]
[null,null,18,"MODALITE SUIVI",21,3,null,null,null,null,{"$f":"$K$140","v":25},9,null,1]
[null,null,19,"ETAT D'AVANCEMENT",22,3,null,null,null,null,14,9,null,1]
[]
[null,null,null,"CartoGRRIFES = numéros de colonne séparés par un \";\" - jusqu'à trois maximmum."]
[null,null,null,"Format : retour pour renvoyer le texte à laligne automatiquement."]
[]
[null,null,"COMPTE QUALITÉ SARA",null,null,null,null,"Police","Enrichi","Align"]
[null,null,null,null,null,"Police des titres :",null,11,1,4]
[null,null,null,"Identification des risques",null,"Police des entêtes :",null,11,1,1]
[null,null,null,1,{"$f":"D163+1","v":2},{"$f":"E163+1","v":3},4,5,6,7,8,9]
[null,null,"Id","Libellé Champ Contrôle Qualité","CQI","Affichage","Titres Col","Format nombre","Larg Col","Police","Enrichi","Align"]
[null,null,1,"Id du Risque",1,2,null,null,4,5,null,1]
[null,null,{"$f":"C165+1","v":2},"Libellé du risque",4,{"$f":"$F$165","v":2},2,null,25,{"$f":"$J$165","v":5},null,1]
[null,null,{"$f":"C166+1","v":3},"Fréquence",5,{"$f":"$F$165","v":2},null,null,4,{"$f":"$J$165","v":5},null,3]
[null,null,4,"Gravité",6,2,null,null,{"$f":"$I$167","v":4},5,null,{"$f":"$L$167","v":3}]
[null,null,5,"Criticité",7,2,null,null,{"$f":"$I$167","v":4},5,null,3]
[null,null,6,"Dispositif de maîtrise en place",8,2,null,null,{"$f":"$I$166","v":25},5,null,1]
[null,null,7,"Niveau de maîtrise",9,2,null,null,{"$f":"$I$167","v":4},5,null,{"$f":"$L$167","v":3}]
[null,null,8,"Commentaire",10,2,null,null,{"$f":"$I$166","v":25},5,null,1]
[]
[null,null,null,"Plan d'action",null,"Police des entêtes :",null,{"$f":"H162","v":11},1,{"$f":"J162","v":1}]
[null,null,null,1,{"$f":"D175+1","v":2},{"$f":"E175+1","v":3},4,5,6,7,8,9]
[null,null,"Id","Libellé Champ Contrôle Qualité","CQI","Affichage","Titres Col","Format nombre","Larg Col","Police","Enrichi","Align"]
[null,null,1,{"$f":"$D$165","v":"Id du Risque"},1,3,null,null,{"$f":"$I$165","v":4},{"$f":"J165","v":5},null,{"$f":"$L$166","v":1}]
[null,null,{"$f":"C177+1","v":2},"Objectif(s)",11,{"$f":"$F$177","v":3},null,null,25,5,null,{"$f":"$L$166","v":1}]
[null,null,3,"Action(s) d'amélioration",12,{"$f":"$F$177","v":3},3,null,25,5,null,{"$f":"$L$166","v":1}]
[null,null,4,"Responsable",13,3,null,null,25,5,null,1]
[null,null,5,"Début prévu",14,3,null,"m/d/yyyy",12.5,5,null,{"$f":"$L$167","v":3}]
[null,null,6,"Début réel",15,3,null,"m/d/yyyy",{"$f":"$I$181","v":12.5},5,null,{"$f":"$L$167","v":3}]
[null,null,7,"Échéance prévue",16,3,null,"m/d/yyyy",{"$f":"$I$181","v":12.5},5,null,3]
[null,null,8,"Échéance réelle",17,3,null,"m/d/yyyy",12.5,5,null,3]
[null,null,9,"Modalités suivi",18,3,null,null,{"$f":"$I$166","v":25},5,null,{"$f":"$L$166","v":1}]
[null,null,10,"État d'avancement",19,3,null,null,12.5,5]
[]
[null,null,null,"Entêtes :"]
[null,null,null,"2 pour l'identification des risques ;"]
[null,null,null,"3 pour les plans d'action."]
[null,null,null,"Titres Col : répéter les colonnes à gauche à l'impression du document."]

{"sheet":"Param","index":34,"n_rows":88,"n_cols":15,"rows_kept":88,"cut":false,"hidden":true,"merged":[[1,12,1,15]]}
["IdPhase","Libellé","Emplt","Lib Sup Ligne","Couleur de fond","Format texte","Enrichi","Alignement"]
[1,"Etapes","B2:D2","cette nature de risque","1;1;2","7;4;6","1;1;1","5;6;7",null,null,null,"Nom du processus","Cartographie des Risques Infectieux 2018 CARTOCLIN-IDF"]
[2,"Analyse des risques","E2:P2","ce risque","1;3;3","7;4;6","1;1;1","5;6;7",null,null,null,"Nom de l'établissement :"]
[3,"Plan d'actions","Q2:Z2","cette action","1;4;4","7;4;6","1;1;1","5;6;7"]
[null,null,null,null,null,null,null,null,null,null,null,"Niveaux Zoom :","Valeur","Numéro"]
["Contenu des thèmes",null,null,null,null,null,null,null,null,null,null,"Synoptique",90,1]
[null,1,2,3,4,5,6,7,8,9,null,"Module",70,2]
["ordre","Elément","Bordure","Texte","Hauteur","Largeur","AutoSize","Couleur de fond","Transparent","Majuscule",null,"Echelle",80,3]
[10,"Photo du Thème A",null,null,null,null,false,null,null,null,null,"Guide rapide",100,4]
[11,"Libellé du Thème A",1,2,70,120,false,"60;75;94","N","O",null,"Liste des risques PRIO",70,5]
[12,"Libellé du Module1",1,5,{"$f":"E10","v":70},120,false,"232;223;202","N","N",null,"Compte Qualité Intégré",80,6]
[13,"Libellé du Module2",1,5,70,120,false,"232;223;203","N","N"]
[14,"Libellé du Module3",1,5,70,120,false,"232;223;204","N","N",null,"Sauvegarde automatique ?","Oui"]
[15,"Libellé du Module4",1,5,70,120,false,"232;223;205","N","N",null,"Activer la palette de couleurs ?","Oui"]
[16,"Libellé du Module5",1,5,70,120,false,"232;223;206","N","N",null,"Choisir un arrière-plan :","arrière-plan"]
[17,"Libellé du Module6",1,5,70,120,false,"232;223;207","N","N",null,"Temps affichage information en nbre de secondes",null,2]
[18,"Libellé du Module7",1,5,70,120,false,"232;223;208","N","N"]
[19,"Libellé du Module8",1,5,70,120,false,"232;223;209","N","N",null,"Pour dessiner le synoptique"]
[20,"Photo du Thème B",null,null,70,120,false,null,null,null,null,"Interval vertical :",5]
[21,"Libellé du Thème B",1,2,70,120,false,"60;75;94","N","O",null,"Démarrer à :",78.75]
[22,"Libellé du Module1",1,5,70,120,false,"232;223;202","N","N",null,"Bordure photo ?","Non"]
[23,"Libellé du Module2",1,5,70,120,false,"232;223;203","N","N"]
[24,"Libellé du Module3",1,5,70,120,false,"232;223;204","N","N",null,"Référentiel NOSOBASE","Url","Mot Clé"]
[25,"Libellé du Module4",1,5,70,120,false,"232;223;205","N","N",null,"Valeurs","https://www.preventioninfection.fr/base-documentaire/",{"$f":"IF(ISNA(VLOOKUP(ReferentielOuiNon,tbl_url,2,FALSE)),\"\",VLOOKUP(ReferentielOuiNon,tbl_url,2,FALSE))","v":"Base documentaire - Découvrez les outils du RéPias"}]
[26,"Libellé du Module5",1,5,70,120,false,"232;223;206","N","N"]
[27,"Libellé du Module6",1,5,70,120,false,"232;223;207","N","N",null,"Guide Utilisateur","Adresse Fichier","Login","MDP"]
[28,"Libellé du Module7",1,5,{"$f":"E26","v":70},120,false,"232;223;208","N","N",null,"Nom du fichier :",{"$f":"IF(ISNA(VLOOKUP(M28,tbl_dossiers,2,FALSE)),\"\",VLOOKUP(M28,tbl_dossiers,2,FALSE))","v":""},false]
[29,"Libellé du Module8",1,5,70,120,false,"232;223;209","N","N",null,"Depuis le dossier :"]
[30,"Photo du Thème C",null,null,70,120,false,null,null,null,null,"URL de transfert (FTP) :",null,{"$f":"IF(ISNA(VLOOKUP(M29,tbl_url,2,FALSE)),\"\",VLOOKUP(M29,tbl_url,2,FALSE))","v":""},{"$f":"IF(ISNA(VLOOKUP(M29,tbl_url,3,FALSE)),\"\",VLOOKUP(M29,tbl_url,3,FALSE))","v":""}]
[31,"Libellé du Thème C",1,2,70,120,false,"60;75;94","N","O",null,"Vers le dossier :"]
[32,"Libellé du Module1",1,5,70,120,false,"232;223;202","N","N"]
[33,"Libellé du Module2",1,5,70,120,false,"232;223;203","N","N",null,"Compte Qualité"]
[34,"Libellé du Module3",1,5,70,120,false,"232;223;204","N","N",null,"Activer bouton CQ dans le module ?","Oui"]
[35,"Libellé du Module4",1,5,70,120,false,"232;223;205","N","N",null,"Ouvrir Fichier Pdf","Non"]
[36,"Libellé du Module5",1,5,70,120,false,"232;223;206","N","N"]
[37,"Libellé du Module6",1,5,70,120,false,"232;223;207","N","N",null,"Mode Excel"]
[38,"Libellé du Module7",1,5,70,120,false,"232;223;208","N","N",null,"Mes Touches OFF","Oui"]
[39,"Libellé du Module8",1,5,70,120,false,"232;223;209","N","N",null,"Barre Excel","Oui"]
[40,"Photo du Thème D",null,null,70,120,false,null,null,null,null,"Click droit","Oui"]
[41,"Libellé du Thème D",1,2,70,120,false,"60;75;94","N","O"]
[42,"Libellé du Module1",1,5,70,120,false,"232;223;202","N","N"]
[43,"Libellé du Module2",1,5,70,120,false,"232;223;203","N","N"]
[44,"Libellé du Module3",1,5,{"$f":"E42","v":70},120,false,"232;223;204","N","N"]
[45,"Libellé du Module4",1,5,70,120,false,"232;223;205","N","N"]
[46,"Libellé du Module5",1,5,70,120,false,"232;223;206","N","N"]
[47,"Libellé du Module6",1,5,70,120,false,"232;223;207","N","N"]
[48,"Libellé du Module7",1,5,70,120,false,"232;223;208","N","N"]
[49,"Libellé du Module8",1,5,70,120,false,"232;223;209","N","N"]
[50,"Photo du Thème E",null,null,70,120,false]
[51,"Libellé du Thème E",1,2,70,120,false,"60;75;94","N","O"]
[52,"Libellé du Module1",1,5,70,120,false,"232;223;202","N","N"]
[53,"Libellé du Module2",1,5,70,120,false,"232;223;203","N","N"]
[54,"Libellé du Module3",1,5,70,120,false,"232;223;204","N","N"]
[55,"Libellé du Module4",1,5,70,120,false,"232;223;205","N","N"]
[56,"Libellé du Module5",1,5,70,120,false,"232;223;206","N","N"]
[57,"Libellé du Module6",1,5,70,120,false,"232;223;207","N","N"]
[58,"Libellé du Module7",1,5,70,120,false,"232;223;208","N","N"]
[59,"Libellé du Module8",1,5,70,120,false,"232;223;209","N","N"]
[60,"Photo du Thème F",null,null,{"$f":"E58","v":70},120,false]
[61,"Libellé du Thème F",1,2,70,120,false,"60;75;94","N","O"]
[62,"Libellé du Module1",1,5,70,120,false,"232;223;202","N","N"]
[63,"Libellé du Module2",1,5,70,120,false,"232;223;203","N","N"]
[64,"Libellé du Module3",1,5,70,120,false,"232;223;204","N","N"]
[65,"Libellé du Module4",1,5,70,120,false,"232;223;205","N","N"]
[66,"Libellé du Module5",1,5,70,120,false,"232;223;206","N","N"]
[67,"Libellé du Module6",1,5,70,120,false,"232;223;207","N","N"]
[68,"Libellé du Module7",1,5,70,120,false,"232;223;208","N","N"]
[69,"Libellé du Module8",1,5,70,120,false,"232;223;209","N","N"]
[70,"Photo du Thème G",null,null,70,120,false]
[71,"Libellé du Thème G",1,2,70,120,false,"60;75;94","N","O"]
[72,"Libellé du Module1",1,5,70,120,false,"232;223;202","N","N"]
[73,"Libellé du Module2",1,5,70,120,false,"232;223;203","N","N"]
[74,"Libellé du Module3",1,5,70,120,false,"232;223;204","N","N"]
[75,"Libellé du Module4",1,5,70,120,false,"232;223;205","N","N"]
[76,"Libellé du Module5",1,5,{"$f":"E74","v":70},120,false,"232;223;206","N","N"]
[77,"Libellé du Module6",1,5,70,120,false,"232;223;207","N","N"]
[78,"Libellé du Module7",1,5,70,120,false,"232;223;208","N","N"]
[79,"Libellé du Module8",1,5,70,120,false,"232;223;209","N","N"]
[80,"Photo du Thème H",null,null,70,120,false]
[81,"Libellé du Thème H",1,2,70,120,false,"60;75;94","N","O"]
[82,"Libellé du Module1",1,5,70,120,false,"232;223;202","N","N"]
[83,"Libellé du Module2",1,5,70,120,false,"232;223;203","N","N"]
[84,"Libellé du Module3",1,5,70,120,false,"232;223;204","N","N"]
[85,"Libellé du Module4",1,5,70,120,false,"232;223;205","N","N"]
[86,"Libellé du Module5",1,5,70,120,false,"232;223;206","N","N"]
[87,"Libellé du Module6",1,5,70,120,false,"232;223;207","N","N"]
[88,"Libellé du Module7",1,5,70,120,false,"232;223;208","N","N"]
[89,"Libellé du Module8",1,5,70,120,false,"232;223;209","N","N"]

{"sheet":"Mise en forme","index":35,"n_rows":381,"n_cols":48,"rows_kept":381,"cut":false,"hidden":false,"merged":[]}
[null,1,2,null,null,1,2,3,4,null,null,1,2,3,null,null,1,2,3,4,5,null,null,1,2,3,4,5]
["IdCouleur fond","Couleur de fond","Tranparence",null,"IdTexte","Couleur Texte","Transparence","Police","Taille",null,"Id Enrichi","Gras et/ ou Italique","Soulignement","Barré",null,"Id Align","Horizontal","Vertical","Renvoyer à la ligne","Fusion","Indentation",null,"IdBordureForme","Style","DashStyle","Couleur","Epaisseur","Transparence",null,null,1,2,3,4,5]
[1,"186;186;186",0,null,1,"0;0;0",0,"Arial",24,null,1,"G",null,null,null,1,null,"haut","Oui",null,null,null,1,null,null,"245;245;220",2,1,null,"Id","Nom de couleur","Échantillon","R","V","B",null,"IdOption","Libellé",null,"IdSoulignement","Libellé",null,"IdGI","Libellé",null,"IdAlign","Horizontal","Vertical"]
[2,"0;128;0",0,null,2,"255;255;255",0,"Cambria",10,null,null,null,null,null,null,2,"gauche","haut","Oui",null,null,null,2,null,null,"173;15;15",1,0,null,2,"Absinthe",null,127,221,76,null,1,"Oui",null,0,null,null,0,null,null,0]
[3,"186;186;186",0,null,3,"0;0;0",0,"Arial",16,null,null,null,null,null,null,3,"centre",null,null,null,null,null,null,null,null,null,null,null,null,3,"Acajou",null,136,66,29,null,2,"Non",null,1,"simple",null,1,"G",null,1,"gauche","haut"]
[4,"255;239;213",0,null,4,"0;2;0",0,"Arial",26,null,null,null,null,null,null,4,"gauche","haut",null,null,null,null,null,null,null,null,null,null,null,4,"Aigue-marine",null,121,248,248,null,null,null,null,2,"double",null,2,"I",null,2,"centre","milieu"]
[5,"186;186;186",0,null,5,"0;0;0",0,"Cambria",12,null,null,null,null,null,null,5,null,"milieu",null,null,null,null,null,null,null,null,null,null,null,5,"Aile de corbeau (cheveux)",null,0,0,0,null,null,null,null,null,null,null,3,"GI",null,3,"droite","bas"]
[6,"255;255;255",1,null,6,"0;0;0",0,"Arial",16,null,null,null,null,null,null,6,null,"milieu",null,null,60,null,null,null,null,null,null,null,null,6,"Albâtre",null,254,254,254]
[null,null,null,null,7,"0;0;0",0,"Arial",20,null,null,null,null,null,null,7,null,"haut","Oui",null,null,null,null,null,null,null,null,null,null,7,"Alezan (chevaux)",null,167,103,38]
[null,null,null,null,8,"0;0;0",0,"Arial",10,null,null,null,null,null,null,null,null,null,null,null,null,null,null,null,null,null,null,null,null,8,"Amande",null,130,196,108]
[null,null,null,null,9,"0;0;0",0,"Arial",14,null,null,null,null,null,null,null,null,null,null,null,null,null,null,null,null,null,null,null,null,9,"Amarante",null,145,40,59]
[null,null,null,null,10,"0;0;0",0,"Arial",18,null,null,null,null,null,null,null,null,null,null,null,null,null,null,null,null,null,null,null,null,10,"Ambre jaune",null,240,195,0]
[null,null,null,null,11,"0;0;0",0,"Calibri",12,null,null,null,null,null,null,null,null,null,null,null,null,null,null,null,null,null,null,null,null,11,"Ambre rouge",null,173,57,14]
[null,null,null,null,12,"0;0;0",1,"Calibri",12,null,null,null,null,null,null,null,null,null,null,null,null,null,null,null,null,null,null,null,null,12,"Améthyste",null,136,77,167]
[null,null,null,null,null,null,null,null,null,null,null,null,null,null,null,null,null,null,null,null,null,null,null,null,null,null,null,null,null,13,"Anthracite",null,48,48,48]
[null,null,null,null,null,null,null,null,null,null,null,null,null,null,null,null,null,null,null,null,null,null,null,null,null,null,null,null,null,14,"Aquilain (chevaux)",null,173,79,9]
[null,null,null,null,null,null,null,null,null,null,null,null,null,null,null,null,null,null,null,null,null,null,null,null,null,null,null,null,null,15,"Ardoise",null,90,94,107]
[null,null,null,null,null,null,null,null,null,null,null,null,null,null,null,null,null,null,null,null,null,null,null,null,null,null,null,null,null,16,"Argent",null,206,206,206]
[null,null,null,null,null,null,null,null,null,null,null,null,null,null,null,null,null,null,null,null,null,null,null,null,null,null,null,null,null,17,"Argent (héraldique)1",null,255,255,255]
[null,null,null,null,null,null,null,null,null,null,null,null,null,null,null,null,null,null,null,null,null,null,null,null,null,null,null,null,null,18,"Argile",null,239,239,239]
[null,null,null,null,null,null,null,null,null,null,null,null,null,null,null,null,null,null,null,null,null,null,null,null,null,null,null,null,null,19,"Asperge",null,123,160,91]
[null,null,null,null,null,null,null,null,null,null,null,null,null,null,null,null,null,null,null,null,null,null,null,null,null,null,null,null,null,20,"Aubergine",null,55,0,40]
[null,null,null,null,null,null,null,null,null,null,null,null,null,null,null,null,null,null,null,null,null,null,null,null,null,null,null,null,null,21,"Auburn (cheveux)",null,157,62,12]
[null,null,null,null,null,null,null,null,null,null,null,null,null,null,null,null,null,null,null,null,null,null,null,null,null,null,null,null,null,22,"Aurore",null,255,203,96]
[null,null,null,null,null,null,null,null,null,null,null,null,null,null,null,null,null,null,null,null,null,null,null,null,null,null,null,null,null,23,"Avocat",null,86,130,3]
[null,null,null,null,null,null,null,null,null,null,null,null,null,null,null,null,null,null,null,null,null,null,null,null,null,null,null,null,null,24,"Azur",null,0,127,255]
[null,null,null,null,null,null,null,null,null,null,null,null,null,null,null,null,null,null,null,null,null,null,null,null,null,null,null,null,null,25,"Azur (héraldique)",null,30,127,203]
[null,null,null,null,null,null,null,null,null,null,null,null,null,null,null,null,null,null,null,null,null,null,null,null,null,null,null,null,null,26,"Azur brume",null,240,255,255]
[null,null,null,null,null,null,null,null,null,null,null,null,null,null,null,null,null,null,null,null,null,null,null,null,null,null,null,null,null,27,"Azur clair",null,116,208,241]
[null,null,null,null,null,null,null,null,null,null,null,null,null,null,null,null,null,null,null,null,null,null,null,null,null,null,null,null,null,28,"Azurin",null,169,234,254]
[null,null,null,null,null,null,null,null,null,null,null,null,null,null,null,null,null,null,null,null,null,null,null,null,null,null,null,null,null,29,"Baillet (chevaux vieilli)",null,174,100,45]
[null,null,null,null,null,null,null,null,null,null,null,null,null,null,null,null,null,null,null,null,null,null,null,null,null,null,null,null,null,30,"Banane",null,209,182,6]
[null,null,null,null,null,null,null,null,null,null,null,null,null,null,null,null,null,null,null,null,null,null,null,null,null,null,null,null,null,31,"Basané (teint)",null,139,108,66]
[null,null,null,null,null,null,null,null,null,null,null,null,null,null,null,null,null,null,null,null,null,null,null,null,null,null,null,null,null,32,"Beige",null,200,173,127]
[null,null,null,null,null,null,null,null,null,null,null,null,null,null,null,null,null,null,null,null,null,null,null,null,null,null,null,null,null,33,"Beige clair",null,245,245,220]
[null,null,null,null,null,null,null,null,null,null,null,null,null,null,null,null,null,null,null,null,null,null,null,null,null,null,null,null,null,34,"Beigeasse (péjoratif)",null,175,167,123]
[null,null,null,null,null,null,null,null,null,null,null,null,null,null,null,null,null,null,null,null,null,null,null,null,null,null,null,null,null,35,"Beurre",null,240,227,107]
[null,null,null,null,null,null,null,null,null,null,null,null,null,null,null,null,null,null,null,null,null,null,null,null,null,null,null,null,null,36,"Beurre frais",null,255,244,141]
[null,null,null,null,null,null,null,null,null,null,null,null,null,null,null,null,null,null,null,null,null,null,null,null,null,null,null,null,null,37,"Bis",null,118,111,100]
[null,null,null,null,null,null,null,null,null,null,null,null,null,null,null,null,null,null,null,null,null,null,null,null,null,null,null,null,null,38,"Bis (héraldique)",null,241,226,190]
[null,null,null,null,null,null,null,null,null,null,null,null,null,null,null,null,null,null,null,null,null,null,null,null,null,null,null,null,null,39,"Bisque",null,255,228,196]
[null,null,null,null,null,null,null,null,null,null,null,null,null,null,null,null,null,null,null,null,null,null,null,null,null,null,null,null,null,40,"Bistre",null,133,109,77]
[null,null,null,null,null,null,null,null,null,null,null,null,null,null,null,null,null,null,null,null,null,null,null,null,null,null,null,null,null,41,"Bitume",null,78,61,40]
[null,null,null,null,null,null,null,null,null,null,null,null,null,null,null,null,null,null,null,null,null,null,null,null,null,null,null,null,null,42,"Blanc",null,255,255,255]
[null,null,null,null,null,null,null,null,null,null,null,null,null,null,null,null,null,null,null,null,null,null,null,null,null,null,null,null,null,43,"Blanc cassé",null,254,254,226]
[null,null,null,null,null,null,null,null,null,null,null,null,null,null,null,null,null,null,null,null,null,null,null,null,null,null,null,null,null,44,"Blanc d'argent (pigment) ou de plomb",null,254,254,254]
[null,null,null,null,null,null,null,null,null,null,null,null,null,null,null,null,null,null,null,null,null,null,null,null,null,null,null,null,null,46,"Blanc de lait",null,251,252,250]
[null,null,null,null,null,null,null,null,null,null,null,null,null,null,null,null,null,null,null,null,null,null,null,null,null,null,null,null,null,47,"Blanc de Meudon ou de Troyes (pigment)",null,254,253,240]
[null,null,null,null,null,null,null,null,null,null,null,null,null,null,null,null,null,null,null,null,null,null,null,null,null,null,null,null,null,48,"Blanc de zinc (pigment)",null,246,254,254]
[null,null,null,null,null,null,null,null,null,null,null,null,null,null,null,null,null,null,null,null,null,null,null,null,null,null,null,null,null,45,"Blanc d'Espagne (pigment)",null,254,253,240]
[null,null,null,null,null,null,null,null,null,null,null,null,null,null,null,null,null,null,null,null,null,null,null,null,null,null,null,null,null,49,"Blanc lunaire",null,244,254,254]
[null,null,null,null,null,null,null,null,null,null,null,null,null,null,null,null,null,null,null,null,null,null,null,null,null,null,null,null,null,50,"Blé",null,232,214,48]
[null,null,null,null,null,null,null,null,null,null,null,null,null,null,null,null,null,null,null,null,null,null,null,null,null,null,null,null,null,51,"Blet",null,91,60,17]
[null,null,null,null,null,null,null,null,null,null,null,null,null,null,null,null,null,null,null,null,null,null,null,null,null,null,null,null,null,52,"Bleu acier",null,58,142,186]
[null,null,null,null,null,null,null,null,null,null,null,null,null,null,null,null,null,null,null,null,null,null,null,null,null,null,null,null,null,53,"Bleu barbeau ou bleuet",null,84,114,174]
[null,null,null,null,null,null,null,null,null,null,null,null,null,null,null,null,null,null,null,null,null,null,null,null,null,null,null,null,null,54,"Bleu canard",null,4,139,154]
[null,null,null,null,null,null,null,null,null,null,null,null,null,null,null,null,null,null,null,null,null,null,null,null,null,null,null,null,null,55,"Bleu céleste",null,38,196,236]
[null,null,null,null,null,null,null,null,null,null,null,null,null,null,null,null,null,null,null,null,null,null,null,null,null,null,null,null,null,56,"Bleu charrette",null,142,162,198]
[null,null,null,null,null,null,null,null,null,null,null,null,null,null,null,null,null,null,null,null,null,null,null,null,null,null,null,null,null,57,"Bleu ciel",null,119,181,254]
[null,null,null,null,null,null,null,null,null,null,null,null,null,null,null,null,null,null,null,null,null,null,null,null,null,null,null,null,null,58,"Bleu de cobalt (pigment)",null,34,66,124]
[null,null,null,null,null,null,null,null,null,null,null,null,null,null,null,null,null,null,null,null,null,null,null,null,null,null,null,null,null,59,"Bleu de minuit",null,0,51,102]
[null,null,null,null,null,null,null,null,null,null,null,null,null,null,null,null,null,null,null,null,null,null,null,null,null,null,null,null,null,62,"Bleu dragée",null,223,242,255]
[null,null,null,null,null,null,null,null,null,null,null,null,null,null,null,null,null,null,null,null,null,null,null,null,null,null,null,null,null,63,"Bleu électrique",null,44,117,255]
[null,null,null,null,null,null,null,null,null,null,null,null,null,null,null,null,null,null,null,null,null,null,null,null,null,null,null,null,null,64,"Bleu fumée",null,187,210,225]
[null,null,null,null,null,null,null,null,null,null,null,null,null,null,null,null,null,null,null,null,null,null,null,null,null,null,null,null,null,65,"Bleu givré",null,128,208,208]
[null,null,null,null,null,null,null,null,null,null,null,null,null,null,null,null,null,null,null,null,null,null,null,null,null,null,null,null,null,66,"Bleu guède",null,86,115,154]
[null,null,null,null,null,null,null,null,null,null,null,null,null,null,null,null,null,null,null,null,null,null,null,null,null,null,null,null,null,67,"Bleu Klein",null,0,47,167]
[null,null,null,null,null,null,null,null,null,null,null,null,null,null,null,null,null,null,null,null,null,null,null,null,null,null,null,null,null,68,"Bleu Majorelle",null,96,80,220]
[null,null,null,null,null,null,null,null,null,null,null,null,null,null,null,null,null,null,null,null,null,null,null,null,null,null,null,null,null,69,"Bleu nuit",null,15,5,107]
[null,null,null,null,null,null,null,null,null,null,null,null,null,null,null,null,null,null,null,null,null,null,null,null,null,null,null,null,null,70,"Bleu outremer",null,27,1,155]
[null,null,null,null,null,null,null,null,null,null,null,null,null,null,null,null,null,null,null,null,null,null,null,null,null,null,null,null,null,71,"Bleu paon",null,6,119,144]
[null,null,null,null,null,null,null,null,null,null,null,null,null,null,null,null,null,null,null,null,null,null,null,null,null,null,null,null,null,72,"Bleu Persan",null,102,0,255]
[null,null,null,null,null,null,null,null,null,null,null,null,null,null,null,null,null,null,null,null,null,null,null,null,null,null,null,null,null,73,"Bleu pétrole",null,29,72,81]
[null,null,null,null,null,null,null,null,null,null,null,null,null,null,null,null,null,null,null,null,null,null,null,null,null,null,null,null,null,74,"Bleu primaire en synthèse additive",null,0,0,255]
[null,null,null,null,null,null,null,null,null,null,null,null,null,null,null,null,null,null,null,null,null,null,null,null,null,null,null,null,null,75,"Bleu roi ou de France",null,49,140,231]
[null,null,null,null,null,null,null,null,null,null,null,null,null,null,null,null,null,null,null,null,null,null,null,null,null,null,null,null,null,76,"Bleu turquin",null,66,91,138]
[null,null,null,null,null,null,null,null,null,null,null,null,null,null,null,null,null,null,null,null,null,null,null,null,null,null,null,null,null,78,"Blond (cheveux)",null,226,188,116]
[null,null,null,null,null,null,null,null,null,null,null,null,null,null,null,null,null,null,null,null,null,null,null,null,null,null,null,null,null,77,"Blond vénitien (cheveux)",null,231,168,84]
[null,null,null,null,null,null,null,null,null,null,null,null,null,null,null,null,null,null,null,null,null,null,null,null,null,null,null,null,null,79,"Bordeaux",null,109,7,26]
[null,null,null,null,null,null,null,null,null,null,null,null,null,null,null,null,null,null,null,null,null,null,null,null,null,null,null,null,null,80,"Bourgogne",null,107,13,13]
[null,null,null,null,null,null,null,null,null,null,null,null,null,null,null,null,null,null,null,null,null,null,null,null,null,null,null,null,null,81,"Bouton d'or",null,252,220,18]
[null,null,null,null,null,null,null,null,null,null,null,null,null,null,null,null,null,null,null,null,null,null,null,null,null,null,null,null,null,82,"Brique",null,132,46,27]
[null,null,null,null,null,null,null,null,null,null,null,null,null,null,null,null,null,null,null,null,null,null,null,null,null,null,null,null,null,83,"Bronze",null,97,78,26]
[null,null,null,null,null,null,null,null,null,null,null,null,null,null,null,null,null,null,null,null,null,null,null,null,null,null,null,null,null,84,"Brou de noix",null,63,34,4]
[null,null,null,null,null,null,null,null,null,null,null,null,null,null,null,null,null,null,null,null,null,null,null,null,null,null,null,null,null,85,"Brun (cheveux)",null,91,60,17]
[null,null,null,null,null,null,null,null,null,null,null,null,null,null,null,null,null,null,null,null,null,null,null,null,null,null,null,null,null,86,"Brun clair (cheveux)",null,205,133,63]
[null,null,null,null,null,null,null,null,null,null,null,null,null,null,null,null,null,null,null,null,null,null,null,null,null,null,null,null,null,87,"Bureau",null,107,87,49]
[null,null,null,null,null,null,null,null,null,null,null,null,null,null,null,null,null,null,null,null,null,null,null,null,null,null,null,null,null,88,"Byzantin",null,189,51,164]
[null,null,null,null,null,null,null,null,null,null,null,null,null,null,null,null,null,null,null,null,null,null,null,null,null,null,null,null,null,89,"Byzantium",null,112,41,99]
[null,null,null,null,null,null,null,null,null,null,null,null,null,null,null,null,null,null,null,null,null,null,null,null,null,null,null,null,null,90,"Caca d'oie",null,205,205,13]
[null,null,null,null,null,null,null,null,null,null,null,null,null,null,null,null,null,null,null,null,null,null,null,null,null,null,null,null,null,91,"Cacao",null,97,75,58]
[null,null,null,null,null,null,null,null,null,null,null,null,null,null,null,null,null,null,null,null,null,null,null,null,null,null,null,null,null,92,"Cachou",null,47,27,12]
[null,null,null,null,null,null,null,null,null,null,null,null,null,null,null,null,null,null,null,null,null,null,null,null,null,null,null,null,null,93,"Cæruléum",null,53,122,183]
[null,null,null,null,null,null,null,null,null,null,null,null,null,null,null,null,null,null,null,null,null,null,null,null,null,null,null,null,null,94,"Café",null,70,46,1]
[null,null,null,null,null,null,null,null,null,null,null,null,null,null,null,null,null,null,null,null,null,null,null,null,null,null,null,null,null,95,"Café au lait",null,120,94,47]
[null,null,null,null,null,null,null,null,null,null,null,null,null,null,null,null,null,null,null,null,null,null,null,null,null,null,null,null,null,96,"Cannelle",null,126,88,53]
[null,null,null,null,null,null,null,null,null,null,null,null,null,null,null,null,null,null,null,null,null,null,null,null,null,null,null,null,null,97,"Capucine",null,255,94,77]
[null,null,null,null,null,null,null,null,null,null,null,null,null,null,null,null,null,null,null,null,null,null,null,null,null,null,null,null,null,98,"Caramel",null,126,51,0]
[null,null,null,null,null,null,null,null,null,null,null,null,null,null,null,null,null,null,null,null,null,null,null,null,null,null,null,null,null,99,"Carmin",null,150,0,24]
[null,null,null,null,null,null,null,null,null,null,null,null,null,null,null,null,null,null,null,null,null,null,null,null,null,null,null,null,null,100,"Carnation (héraldique) ou Carné (botanique)",null,254,195,172]
[null,null,null,null,null,null,null,null,null,null,null,null,null,null,null,null,null,null,null,null,null,null,null,null,null,null,null,null,null,101,"Carotte",null,244,102,27]
[null,null,null,null,null,null,null,null,null,null,null,null,null,null,null,null,null,null,null,null,null,null,null,null,null,null,null,null,null,102,"Cassis",null,58,2,13]
[null,null,null,null,null,null,null,null,null,null,null,null,null,null,null,null,null,null,null,null,null,null,null,null,null,null,null,null,null,103,"Cerise",null,222,49,99]
[null,null,null,null,null,null,null,null,null,null,null,null,null,null,null,null,null,null,null,null,null,null,null,null,null,null,null,null,null,104,"Cerise Hollywood",null,244,0,161]
[null,null,null,null,null,null,null,null,null,null,null,null,null,null,null,null,null,null,null,null,null,null,null,null,null,null,null,null,null,105,"Cerise profonde",null,218,50,135]
[null,null,null,null,null,null,null,null,null,null,null,null,null,null,null,null,null,null,null,null,null,null,null,null,null,null,null,null,null,106,"Cerise rose",null,236,79,131]
[null,null,null,null,null,null,null,null,null,null,null,null,null,null,null,null,null,null,null,null,null,null,null,null,null,null,null,null,null,107,"Céruse (pigment)",null,254,254,254]
[null,null,null,null,null,null,null,null,null,null,null,null,null,null,null,null,null,null,null,null,null,null,null,null,null,null,null,null,null,108,"Chair",null,254,195,172]
[null,null,null,null,null,null,null,null,null,null,null,null,null,null,null,null,null,null,null,null,null,null,null,null,null,null,null,null,null,109,"Chamois",null,208,192,122]
[null,null,null,null,null,null,null,null,null,null,null,null,null,null,null,null,null,null,null,null,null,null,null,null,null,null,null,null,null,110,"Champagne",null,251,242,183]
[null,null,null,null,null,null,null,null,null,null,null,null,null,null,null,null,null,null,null,null,null,null,null,null,null,null,null,null,null,111,"Charbonneux",null,0,0,16]
[null,null,null,null,null,null,null,null,null,null,null,null,null,null,null,null,null,null,null,null,null,null,null,null,null,null,null,null,null,112,"Chartreuse",null,127,255,0]
[null,null,null,null,null,null,null,null,null,null,null,null,null,null,null,null,null,null,null,null,null,null,null,null,null,null,null,null,null,113,"Châtaigne",null,128,109,90]
[null,null,null,null,null,null,null,null,null,null,null,null,null,null,null,null,null,null,null,null,null,null,null,null,null,null,null,null,null,114,"Châtain (cheveux)",null,139,108,66]
[null,null,null,null,null,null,null,null,null,null,null,null,null,null,null,null,null,null,null,null,null,null,null,null,null,null,null,null,null,115,"Chaudron",null,133,83,15]
[null,null,null,null,null,null,null,null,null,null,null,null,null,null,null,null,null,null,null,null,null,null,null,null,null,null,null,null,null,116,"Chenu (cheveux)",null,254,254,254]
[null,null,null,null,null,null,null,null,null,null,null,null,null,null,null,null,null,null,null,null,null,null,null,null,null,null,null,null,null,117,"Chocolat",null,90,58,34]
[null,null,null,null,null,null,null,null,null,null,null,null,null,null,null,null,null,null,null,null,null,null,null,null,null,null,null,null,null,118,"Cinabre",null,219,23,2]
[null,null,null,null,null,null,null,null,null,null,null,null,null,null,null,null,null,null,null,null,null,null,null,null,null,null,null,null,null,119,"Citron",null,247,255,60]
[null,null,null,null,null,null,null,null,null,null,null,null,null,null,null,null,null,null,null,null,null,null,null,null,null,null,null,null,null,120,"Citrouille",null,223,109,20]
[null,null,null,null,null,null,null,null,null,null,null,null,null,null,null,null,null,null,null,null,null,null,null,null,null,null,null,null,null,121,"Clarissimo (cigare)",null,185,178,118]
[null,null,null,null,null,null,null,null,null,null,null,null,null,null,null,null,null,null,null,null,null,null,null,null,null,null,null,null,null,122,"Claro (cigare)",null,132,90,59]
[null,null,null,null,null,null,null,null,null,null,null,null,null,null,null,null,null,null,null,null,null,null,null,null,null,null,null,null,null,123,"Claro claro (cigare)",null,186,155,97]
[null,null,null,null,null,null,null,null,null,null,null,null,null,null,null,null,null,null,null,null,null,null,null,null,null,null,null,null,null,124,"Colombin (vieilli)",null,106,69,93]
[null,null,null,null,null,null,null,null,null,null,null,null,null,null,null,null,null,null,null,null,null,null,null,null,null,null,null,null,null,125,"Colorado (cigare)",null,112,53,22]
[null,null,null,null,null,null,null,null,null,null,null,null,null,null,null,null,null,null,null,null,null,null,null,null,null,null,null,null,null,126,"Colorado claro (cigare)",null,106,75,33]
[null,null,null,null,null,null,null,null,null,null,null,null,null,null,null,null,null,null,null,null,null,null,null,null,null,null,null,null,null,127,"Coquelicot",null,198,8,0]
[null,null,null,null,null,null,null,null,null,null,null,null,null,null,null,null,null,null,null,null,null,null,null,null,null,null,null,null,null,128,"Coquille d'œuf",null,253,233,224]
[null,null,null,null,null,null,null,null,null,null,null,null,null,null,null,null,null,null,null,null,null,null,null,null,null,null,null,null,null,129,"Corail",null,231,62,1]
[null,null,null,null,null,null,null,null,null,null,null,null,null,null,null,null,null,null,null,null,null,null,null,null,null,null,null,null,null,130,"Cramoisi",null,220,20,60]
[null,null,null,null,null,null,null,null,null,null,null,null,null,null,null,null,null,null,null,null,null,null,null,null,null,null,null,null,null,131,"Crème",null,253,241,184]
[null,null,null,null,null,null,null,null,null,null,null,null,null,null,null,null,null,null,null,null,null,null,null,null,null,null,null,null,null,132,"Cuisse de nymphe",null,254,231,240]
[null,null,null,null,null,null,null,null,null,null,null,null,null,null,null,null,null,null,null,null,null,null,null,null,null,null,null,null,null,133,"Cuisse de nymphe émue",null,255,105,180]
[null,null,null,null,null,null,null,null,null,null,null,null,null,null,null,null,null,null,null,null,null,null,null,null,null,null,null,null,null,134,"Cuivre",null,179,103,0]
[null,null,null,null,null,null,null,null,null,null,null,null,null,null,null,null,null,null,null,null,null,null,null,null,null,null,null,null,null,135,"Cyan",null,43,250,250]
[null,null,null,null,null,null,null,null,null,null,null,null,null,null,null,null,null,null,null,null,null,null,null,null,null,null,null,null,null,136,"Cyan primaire en synthèse soustractive",null,0,255,255]
[null,null,null,null,null,null,null,null,null,null,null,null,null,null,null,null,null,null,null,null,null,null,null,null,null,null,null,null,null,137,"Denim",null,21,96,189]
[null,null,null,null,null,null,null,null,null,null,null,null,null,null,null,null,null,null,null,null,null,null,null,null,null,null,null,null,null,138,"Dium (IPJ)",null,11,22,22]
[null,null,null,null,null,null,null,null,null,null,null,null,null,null,null,null,null,null,null,null,null,null,null,null,null,null,null,null,null,139,"Ébène",null,0,0,0]
[null,null,null,null,null,null,null,null,null,null,null,null,null,null,null,null,null,null,null,null,null,null,null,null,null,null,null,null,null,140,"Écarlate",null,237,0,0]
[null,null,null,null,null,null,null,null,null,null,null,null,null,null,null,null,null,null,null,null,null,null,null,null,null,null,null,null,null,141,"Écru",null,254,254,224]
[null,null,null,null,null,null,null,null,null,null,null,null,null,null,null,null,null,null,null,null,null,null,null,null,null,null,null,null,null,142,"Émeraude",null,1,215,88]
[null,null,null,null,null,null,null,null,null,null,null,null,null,null,null,null,null,null,null,null,null,null,null,null,null,null,null,null,null,143,"Étain oxydé",null,186,186,186]
[null,null,null,null,null,null,null,null,null,null,null,null,null,null,null,null,null,null,null,null,null,null,null,null,null,null,null,null,null,144,"Étain pur",null,237,237,237]
[null,null,null,null,null,null,null,null,null,null,null,null,null,null,null,null,null,null,null,null,null,null,null,null,null,null,null,null,null,145,"Fauve",null,173,79,9]
[null,null,null,null,null,null,null,null,null,null,null,null,null,null,null,null,null,null,null,null,null,null,null,null,null,null,null,null,null,146,"Fer",null,132,132,132]
[null,null,null,null,null,null,null,null,null,null,null,null,null,null,null,null,null,null,null,null,null,null,null,null,null,null,null,null,null,147,"Feu",null,255,73,1]
[null,null,null,null,null,null,null,null,null,null,null,null,null,null,null,null,null,null,null,null,null,null,null,null,null,null,null,null,null,148,"Feuille morte",null,153,81,43]
[null,null,null,null,null,null,null,null,null,null,null,null,null,null,null,null,null,null,null,null,null,null,null,null,null,null,null,null,null,149,"Flave",null,230,230,151]
[null,null,null,null,null,null,null,null,null,null,null,null,null,null,null,null,null,null,null,null,null,null,null,null,null,null,null,null,null,150,"Fraise",null,191,48,48]
[null,null,null,null,null,null,null,null,null,null,null,null,null,null,null,null,null,null,null,null,null,null,null,null,null,null,null,null,null,151,"Fraise écrasée",null,164,36,36]
[null,null,null,null,null,null,null,null,null,null,null,null,null,null,null,null,null,null,null,null,null,null,null,null,null,null,null,null,null,152,"Framboise",null,199,44,72]
[null,null,null,null,null,null,null,null,null,null,null,null,null,null,null,null,null,null,null,null,null,null,null,null,null,null,null,null,null,153,"Framboise rose",null,226,80,152]
[null,null,null,null,null,null,null,null,null,null,null,null,null,null,null,null,null,null,null,null,null,null,null,null,null,null,null,null,null,154,"Fuchsia",null,253,63,146]
[null,null,null,null,null,null,null,null,null,null,null,null,null,null,null,null,null,null,null,null,null,null,null,null,null,null,null,null,null,155,"Fuchsia de mode",null,244,0,161]
[null,null,null,null,null,null,null,null,null,null,null,null,null,null,null,null,null,null,null,null,null,null,null,null,null,null,null,null,null,156,"Fuchsia du web",null,255,0,255]
[null,null,null,null,null,null,null,null,null,null,null,null,null,null,null,null,null,null,null,null,null,null,null,null,null,null,null,null,null,157,"Fuchsia neon",null,254,89,194]
[null,null,null,null,null,null,null,null,null,null,null,null,null,null,null,null,null,null,null,null,null,null,null,null,null,null,null,null,null,158,"Fuchsia profonde",null,193,84,193]
[null,null,null,null,null,null,null,null,null,null,null,null,null,null,null,null,null,null,null,null,null,null,null,null,null,null,null,null,null,159,"Garance",null,238,16,16]
[null,null,null,null,null,null,null,null,null,null,null,null,null,null,null,null,null,null,null,null,null,null,null,null,null,null,null,null,null,160,"Glauque",null,100,155,136]
[null,null,null,null,null,null,null,null,null,null,null,null,null,null,null,null,null,null,null,null,null,null,null,null,null,null,null,null,null,161,"Glycine",null,201,160,220]
[null,null,null,null,null,null,null,null,null,null,null,null,null,null,null,null,null,null,null,null,null,null,null,null,null,null,null,null,null,162,"Grège",null,187,174,152]
[null,null,null,null,null,null,null,null,null,null,null,null,null,null,null,null,null,null,null,null,null,null,null,null,null,null,null,null,null,163,"Grenadine",null,233,56,63]
[null,null,null,null,null,null,null,null,null,null,null,null,null,null,null,null,null,null,null,null,null,null,null,null,null,null,null,null,null,164,"Grenat",null,110,11,20]
[null,null,null,null,null,null,null,null,null,null,null,null,null,null,null,null,null,null,null,null,null,null,null,null,null,null,null,null,null,165,"Gris",null,96,96,96]
[null,null,null,null,null,null,null,null,null,null,null,null,null,null,null,null,null,null,null,null,null,null,null,null,null,null,null,null,null,166,"Gris acier",null,175,175,175]
[null,null,null,null,null,null,null,null,null,null,null,null,null,null,null,null,null,null,null,null,null,null,null,null,null,null,null,null,null,167,"Gris de lin",null,210,202,236]
[null,null,null,null,null,null,null,null,null,null,null,null,null,null,null,null,null,null,null,null,null,null,null,null,null,null,null,null,null,168,"Gris de maure",null,104,94,67]
[null,null,null,null,null,null,null,null,null,null,null,null,null,null,null,null,null,null,null,null,null,null,null,null,null,null,null,null,null,169,"Gris de Payne",null,103,113,121]
[null,null,null,null,null,null,null,null,null,null,null,null,null,null,null,null,null,null,null,null,null,null,null,null,null,null,null,null,null,170,"Gris fer",null,127,127,127]
[null,null,null,null,null,null,null,null,null,null,null,null,null,null,null,null,null,null,null,null,null,null,null,null,null,null,null,null,null,171,"Gris perle",null,206,206,206]
[null,null,null,null,null,null,null,null,null,null,null,null,null,null,null,null,null,null,null,null,null,null,null,null,null,null,null,null,null,172,"Gris tourdille (chevaux)",null,193,191,177]
[null,null,null,null,null,null,null,null,null,null,null,null,null,null,null,null,null,null,null,null,null,null,null,null,null,null,null,null,null,173,"Groseille",null,207,10,29]
[null,null,null,null,null,null,null,null,null,null,null,null,null,null,null,null,null,null,null,null,null,null,null,null,null,null,null,null,null,174,"Gueules (héraldique)",null,226,19,19]
[null,null,null,null,null,null,null,null,null,null,null,null,null,null,null,null,null,null,null,null,null,null,null,null,null,null,null,null,null,175,"Havane",null,148,127,96]
[null,null,null,null,null,null,null,null,null,null,null,null,null,null,null,null,null,null,null,null,null,null,null,null,null,null,null,null,null,176,"Héliotrope",null,223,115,255]
[null,null,null,null,null,null,null,null,null,null,null,null,null,null,null,null,null,null,null,null,null,null,null,null,null,null,null,null,null,177,"Hoto",null,0,0,0]
[null,null,null,null,null,null,null,null,null,null,null,null,null,null,null,null,null,null,null,null,null,null,null,null,null,null,null,null,null,178,"Incarnadin",null,254,150,160]
[null,null,null,null,null,null,null,null,null,null,null,null,null,null,null,null,null,null,null,null,null,null,null,null,null,null,null,null,null,179,"Incarnat",null,255,111,125]
[null,null,null,null,null,null,null,null,null,null,null,null,null,null,null,null,null,null,null,null,null,null,null,null,null,null,null,null,null,183,"Indigo (teinture)",null,46,0,108]
[null,null,null,null,null,null,null,null,null,null,null,null,null,null,null,null,null,null,null,null,null,null,null,null,null,null,null,null,null,180,"Indigo chaud",null,121,28,248]
[null,null,null,null,null,null,null,null,null,null,null,null,null,null,null,null,null,null,null,null,null,null,null,null,null,null,null,null,null,181,"Indigo du web",null,75,0,130]
[null,null,null,null,null,null,null,null,null,null,null,null,null,null,null,null,null,null,null,null,null,null,null,null,null,null,null,null,null,182,"Indigo électrique",null,111,0,255]
[null,null,null,null,null,null,null,null,null,null,null,null,null,null,null,null,null,null,null,null,null,null,null,null,null,null,null,null,null,184,"Isabelle (chevaux)",null,120,94,47]
[null,null,null,null,null,null,null,null,null,null,null,null,null,null,null,null,null,null,null,null,null,null,null,null,null,null,null,null,null,185,"Ivoire",null,255,255,212]
[null,null,null,null,null,null,null,null,null,null,null,null,null,null,null,null,null,null,null,null,null,null,null,null,null,null,null,null,null,186,"Jade",null,135,233,144]
[null,null,null,null,null,null,null,null,null,null,null,null,null,null,null,null,null,null,null,null,null,null,null,null,null,null,null,null,null,187,"Jais",null,0,0,0]
[null,null,null,null,null,null,null,null,null,null,null,null,null,null,null,null,null,null,null,null,null,null,null,null,null,null,null,null,null,189,"Jaune auréolin",null,253,238,0]
[null,null,null,null,null,null,null,null,null,null,null,null,null,null,null,null,null,null,null,null,null,null,null,null,null,null,null,null,null,190,"Jaune bouton d’or",null,246,220,18]
[null,null,null,null,null,null,null,null,null,null,null,null,null,null,null,null,null,null,null,null,null,null,null,null,null,null,null,null,null,191,"Jaune canari",null,231,240,13]
[null,null,null,null,null,null,null,null,null,null,null,null,null,null,null,null,null,null,null,null,null,null,null,null,null,null,null,null,null,192,"Jaune chartreuse",null,223,255,0]
[null,null,null,null,null,null,null,null,null,null,null,null,null,null,null,null,null,null,null,null,null,null,null,null,null,null,null,null,null,194,"Jaune chrome (pigment)",null,237,255,12]
[null,null,null,null,null,null,null,null,null,null,null,null,null,null,null,null,null,null,null,null,null,null,null,null,null,null,null,null,null,195,"Jaune de Mars",null,238,209,83]
[null,null,null,null,null,null,null,null,null,null,null,null,null,null,null,null,null,null,null,null,null,null,null,null,null,null,null,null,null,196,"Jaune de Naples (pigment)",null,255,240,188]
[null,null,null,null,null,null,null,null,null,null,null,null,null,null,null,null,null,null,null,null,null,null,null,null,null,null,null,null,null,193,"Jaune d'or",null,239,216,7]
[null,null,null,null,null,null,null,null,null,null,null,null,null,null,null,null,null,null,null,null,null,null,null,null,null,null,null,null,null,197,"Jaune impérial",null,255,228,54]
[null,null,null,null,null,null,null,null,null,null,null,null,null,null,null,null,null,null,null,null,null,null,null,null,null,null,null,null,null,198,"Jaune mimosa",null,254,248,108]
[null,null,null,null,null,null,null,null,null,null,null,null,null,null,null,null,null,null,null,null,null,null,null,null,null,null,null,null,null,199,"Jaune poussin",null,247,227,95]
[null,null,null,null,null,null,null,null,null,null,null,null,null,null,null,null,null,null,null,null,null,null,null,null,null,null,null,null,null,188,"Jaune primaire en synthèse soustractive",null,255,255,0]
[null,null,null,null,null,null,null,null,null,null,null,null,null,null,null,null,null,null,null,null,null,null,null,null,null,null,null,null,null,200,"Kaki",null,148,129,43]
[null,null,null,null,null,null,null,null,null,null,null,null,null,null,null,null,null,null,null,null,null,null,null,null,null,null,null,null,null,201,"Lapis-lazuli",null,38,97,156]
[null,null,null,null,null,null,null,null,null,null,null,null,null,null,null,null,null,null,null,null,null,null,null,null,null,null,null,null,null,202,"Lavallière (reliure)",null,143,89,34]
[null,null,null,null,null,null,null,null,null,null,null,null,null,null,null,null,null,null,null,null,null,null,null,null,null,null,null,null,null,203,"Lavande",null,150,131,236]
[null,null,null,null,null,null,null,null,null,null,null,null,null,null,null,null,null,null,null,null,null,null,null,null,null,null,null,null,null,204,"Lie de vin",null,172,30,68]
[null,null,null,null,null,null,null,null,null,null,null,null,null,null,null,null,null,null,null,null,null,null,null,null,null,null,null,null,null,205,"Lilas",null,182,102,210]
[null,null,null,null,null,null,null,null,null,null,null,null,null,null,null,null,null,null,null,null,null,null,null,null,null,null,null,null,null,206,"Lin",null,250,240,230]
[null,null,null,null,null,null,null,null,null,null,null,null,null,null,null,null,null,null,null,null,null,null,null,null,null,null,null,null,null,207,"Maduro (cigare)",null,55,47,37]
[null,null,null,null,null,null,null,null,null,null,null,null,null,null,null,null,null,null,null,null,null,null,null,null,null,null,null,null,null,208,"Maduro colorado (cigare)",null,91,60,17]
[null,null,null,null,null,null,null,null,null,null,null,null,null,null,null,null,null,null,null,null,null,null,null,null,null,null,null,null,null,211,"Magenta foncé",null,128,0,128]
[null,null,null,null,null,null,null,null,null,null,null,null,null,null,null,null,null,null,null,null,null,null,null,null,null,null,null,null,null,209,"Magenta fuchsia (encre)",null,219,0,115]
[null,null,null,null,null,null,null,null,null,null,null,null,null,null,null,null,null,null,null,null,null,null,null,null,null,null,null,null,null,210,"Magenta primaire en synthèse soustractive",null,255,0,255]
[null,null,null,null,null,null,null,null,null,null,null,null,null,null,null,null,null,null,null,null,null,null,null,null,null,null,null,null,null,212,"Maïs",null,255,222,117]
[null,null,null,null,null,null,null,null,null,null,null,null,null,null,null,null,null,null,null,null,null,null,null,null,null,null,null,null,null,213,"Malachite",null,31,160,85]
[null,null,null,null,null,null,null,null,null,null,null,null,null,null,null,null,null,null,null,null,null,null,null,null,null,null,null,null,null,214,"Mandarine",null,254,163,71]
[null,null,null,null,null,null,null,null,null,null,null,null,null,null,null,null,null,null,null,null,null,null,null,null,null,null,null,null,null,215,"Marine",null,3,34,76]
[null,null,null,null,null,null,null,null,null,null,null,null,null,null,null,null,null,null,null,null,null,null,null,null,null,null,null,null,null,216,"Marron",null,88,41,0]
[null,null,null,null,null,null,null,null,null,null,null,null,null,null,null,null,null,null,null,null,null,null,null,null,null,null,null,null,null,217,"Mastic",null,179,177,145]
[null,null,null,null,null,null,null,null,null,null,null,null,null,null,null,null,null,null,null,null,null,null,null,null,null,null,null,null,null,218,"Mauve (couleur)",null,150,85,120]
[null,null,null,null,null,null,null,null,null,null,null,null,null,null,null,null,null,null,null,null,null,null,null,null,null,null,null,null,null,219,"Melon",null,222,152,22]
[null,null,null,null,null,null,null,null,null,null,null,null,null,null,null,null,null,null,null,null,null,null,null,null,null,null,null,null,null,220,"Menthe",null,22,184,78]
[null,null,null,null,null,null,null,null,null,null,null,null,null,null,null,null,null,null,null,null,null,null,null,null,null,null,null,null,null,221,"Menthe à l'eau",null,84,249,141]
[null,null,null,null,null,null,null,null,null,null,null,null,null,null,null,null,null,null,null,null,null,null,null,null,null,null,null,null,null,222,"Miel",null,218,179,10]
[null,null,null,null,null,null,null,null,null,null,null,null,null,null,null,null,null,null,null,null,null,null,null,null,null,null,null,null,null,223,"Mordoré",null,135,89,26]
[null,null,null,null,null,null,null,null,null,null,null,null,null,null,null,null,null,null,null,null,null,null,null,null,null,null,null,null,null,224,"Moreau (chevaux)",null,0,0,0]
[null,null,null,null,null,null,null,null,null,null,null,null,null,null,null,null,null,null,null,null,null,null,null,null,null,null,null,null,null,225,"Moutarde",null,199,207,0]
[null,null,null,null,null,null,null,null,null,null,null,null,null,null,null,null,null,null,null,null,null,null,null,null,null,null,null,null,null,226,"Nacarat",null,252,93,93]
[null,null,null,null,null,null,null,null,null,null,null,null,null,null,null,null,null,null,null,null,null,null,null,null,null,null,null,null,null,227,"Nankin",null,247,226,105]
[null,null,null,null,null,null,null,null,null,null,null,null,null,null,null,null,null,null,null,null,null,null,null,null,null,null,null,null,null,228,"Neige",null,254,254,254]
[null,null,null,null,null,null,null,null,null,null,null,null,null,null,null,null,null,null,null,null,null,null,null,null,null,null,null,null,null,229,"Noir",null,0,0,0]
[null,null,null,null,null,null,null,null,null,null,null,null,null,null,null,null,null,null,null,null,null,null,null,null,null,null,null,null,null,230,"Noir animal",null,0,0,0]
[null,null,null,null,null,null,null,null,null,null,null,null,null,null,null,null,null,null,null,null,null,null,null,null,null,null,null,null,null,231,"Noir charbon",null,0,0,16]
[null,null,null,null,null,null,null,null,null,null,null,null,null,null,null,null,null,null,null,null,null,null,null,null,null,null,null,null,null,232,"Noir d'aniline",null,18,13,22]
[null,null,null,null,null,null,null,null,null,null,null,null,null,null,null,null,null,null,null,null,null,null,null,null,null,null,null,null,null,235,"Noir de carbone (pigment)",null,19,14,10]
[null,null,null,null,null,null,null,null,null,null,null,null,null,null,null,null,null,null,null,null,null,null,null,null,null,null,null,null,null,236,"Noir de fumée (pigment)",null,19,14,10]
[null,null,null,null,null,null,null,null,null,null,null,null,null,null,null,null,null,null,null,null,null,null,null,null,null,null,null,null,null,237,"Noir de jais",null,0,0,0]
[null,null,null,null,null,null,null,null,null,null,null,null,null,null,null,null,null,null,null,null,null,null,null,null,null,null,null,null,null,233,"Noir d'encre",null,0,0,0]
[null,null,null,null,null,null,null,null,null,null,null,null,null,null,null,null,null,null,null,null,null,null,null,null,null,null,null,null,null,234,"Noir d'ivoire (pigment)",null,0,0,0]
[null,null,null,null,null,null,null,null,null,null,null,null,null,null,null,null,null,null,null,null,null,null,null,null,null,null,null,null,null,238,"Noiraud (teint, cheveux)",null,47,30,14]
[null,null,null,null,null,null,null,null,null,null,null,null,null,null,null,null,null,null,null,null,null,null,null,null,null,null,null,null,null,239,"Noisette",null,149,86,40]
[null,null,null,null,null,null,null,null,null,null,null,null,null,null,null,null,null,null,null,null,null,null,null,null,null,null,null,null,null,240,"Ocre jaune",null,223,175,44]
[null,null,null,null,null,null,null,null,null,null,null,null,null,null,null,null,null,null,null,null,null,null,null,null,null,null,null,null,null,241,"Ocre rouge",null,221,152,92]
[null,null,null,null,null,null,null,null,null,null,null,null,null,null,null,null,null,null,null,null,null,null,null,null,null,null,null,null,null,242,"Olive",null,112,141,35]
[null,null,null,null,null,null,null,null,null,null,null,null,null,null,null,null,null,null,null,null,null,null,null,null,null,null,null,null,null,243,"Opale",null,102,204,204]
[null,null,null,null,null,null,null,null,null,null,null,null,null,null,null,null,null,null,null,null,null,null,null,null,null,null,null,null,null,244,"Opalin",null,242,255,255]
[null,null,null,null,null,null,null,null,null,null,null,null,null,null,null,null,null,null,null,null,null,null,null,null,null,null,null,null,null,245,"Or",null,255,215,0]
[null,null,null,null,null,null,null,null,null,null,null,null,null,null,null,null,null,null,null,null,null,null,null,null,null,null,null,null,null,246,"Orange",null,255,127,0]
[null,null,null,null,null,null,null,null,null,null,null,null,null,null,null,null,null,null,null,null,null,null,null,null,null,null,null,null,null,1,"Orangé"]
[null,null,null,null,null,null,null,null,null,null,null,null,null,null,null,null,null,null,null,null,null,null,null,null,null,null,null,null,null,247,"Orange brûlée",null,204,85,0]
[null,null,null,null,null,null,null,null,null,null,null,null,null,null,null,null,null,null,null,null,null,null,null,null,null,null,null,null,null,248,"Orchidée",null,218,112,214]
[null,null,null,null,null,null,null,null,null,null,null,null,null,null,null,null,null,null,null,null,null,null,null,null,null,null,null,null,null,249,"Orpiment",null,252,210,28]
[null,null,null,null,null,null,null,null,null,null,null,null,null,null,null,null,null,null,null,null,null,null,null,null,null,null,null,null,null,250,"Orpin de Perse",null,252,210,28]
[null,null,null,null,null,null,null,null,null,null,null,null,null,null,null,null,null,null,null,null,null,null,null,null,null,null,null,null,null,251,"Oscuro (cigare)",null,41,33,7]
[null,null,null,null,null,null,null,null,null,null,null,null,null,null,null,null,null,null,null,null,null,null,null,null,null,null,null,null,null,252,"Paille",null,254,227,71]
[null,null,null,null,null,null,null,null,null,null,null,null,null,null,null,null,null,null,null,null,null,null,null,null,null,null,null,null,null,253,"Papaye",null,255,239,213]
[null,null,null,null,null,null,null,null,null,null,null,null,null,null,null,null,null,null,null,null,null,null,null,null,null,null,null,null,null,254,"Papier bulle",null,237,211,140]
[null,null,null,null,null,null,null,null,null,null,null,null,null,null,null,null,null,null,null,null,null,null,null,null,null,null,null,null,null,255,"Parme",null,207,160,233]
[null,null,null,null,null,null,null,null,null,null,null,null,null,null,null,null,null,null,null,null,null,null,null,null,null,null,null,null,null,256,"Passe-velours",null,145,40,59]
[null,null,null,null,null,null,null,null,null,null,null,null,null,null,null,null,null,null,null,null,null,null,null,null,null,null,null,null,null,257,"Pastel",null,86,115,154]
[null,null,null,null,null,null,null,null,null,null,null,null,null,null,null,null,null,null,null,null,null,null,null,null,null,null,null,null,null,258,"Pêche",null,253,191,183]
[null,null,null,null,null,null,null,null,null,null,null,null,null,null,null,null,null,null,null,null,null,null,null,null,null,null,null,null,null,259,"Pelure d'oignon (œnologie)",null,213,132,144]
[null,null,null,null,null,null,null,null,null,null,null,null,null,null,null,null,null,null,null,null,null,null,null,null,null,null,null,null,null,260,"Pervenche",null,204,204,255]
[null,null,null,null,null,null,null,null,null,null,null,null,null,null,null,null,null,null,null,null,null,null,null,null,null,null,null,null,null,261,"Pinchard (chevaux vieilli)",null,204,204,204]
[null,null,null,null,null,null,null,null,null,null,null,null,null,null,null,null,null,null,null,null,null,null,null,null,null,null,null,null,null,262,"Pistache",null,190,245,116]
[null,null,null,null,null,null,null,null,null,null,null,null,null,null,null,null,null,null,null,null,null,null,null,null,null,null,null,null,null,263,"Platine",null,250,240,197]
[null,null,null,null,null,null,null,null,null,null,null,null,null,null,null,null,null,null,null,null,null,null,null,null,null,null,null,null,null,264,"Plomb",null,121,128,129]
[null,null,null,null,null,null,null,null,null,null,null,null,null,null,null,null,null,null,null,null,null,null,null,null,null,null,null,null,null,265,"Poil de chameau",null,182,120,35]
[null,null,null,null,null,null,null,null,null,null,null,null,null,null,null,null,null,null,null,null,null,null,null,null,null,null,null,null,null,266,"Ponceau",null,198,8,0]
[null,null,null,null,null,null,null,null,null,null,null,null,null,null,null,null,null,null,null,null,null,null,null,null,null,null,null,null,null,267,"Pourpre (héraldique)",null,158,14,64]
[null,null,null,null,null,null,null,null,null,null,null,null,null,null,null,null,null,null,null,null,null,null,null,null,null,null,null,null,null,268,"Prasin",null,76,166,107]
[null,null,null,null,null,null,null,null,null,null,null,null,null,null,null,null,null,null,null,null,null,null,null,null,null,null,null,null,null,269,"Prune",null,129,20,83]
[null,null,null,null,null,null,null,null,null,null,null,null,null,null,null,null,null,null,null,null,null,null,null,null,null,null,null,null,null,270,"Puce",null,78,22,9]
[null,null,null,null,null,null,null,null,null,null,null,null,null,null,null,null,null,null,null,null,null,null,null,null,null,null,null,null,null,271,"Queue-de-renard",null,145,40,59]
[null,null,null,null,null,null,null,null,null,null,null,null,null,null,null,null,null,null,null,null,null,null,null,null,null,null,null,null,null,272,"Queue-de-vache clair",null,195,180,112]
[null,null,null,null,null,null,null,null,null,null,null,null,null,null,null,null,null,null,null,null,null,null,null,null,null,null,null,null,null,273,"Queue-de-vache foncé",null,168,152,116]
[null,null,null,null,null,null,null,null,null,null,null,null,null,null,null,null,null,null,null,null,null,null,null,null,null,null,null,null,null,274,"Réglisse",null,45,36,30]
[null,null,null,null,null,null,null,null,null,null,null,null,null,null,null,null,null,null,null,null,null,null,null,null,null,null,null,null,null,275,"Rose",null,253,108,158]
[null,null,null,null,null,null,null,null,null,null,null,null,null,null,null,null,null,null,null,null,null,null,null,null,null,null,null,null,null,276,"Rose balais (minéraux)",null,196,105,143]
[null,null,null,null,null,null,null,null,null,null,null,null,null,null,null,null,null,null,null,null,null,null,null,null,null,null,null,null,null,277,"Rose bonbon",null,249,66,158]
[null,null,null,null,null,null,null,null,null,null,null,null,null,null,null,null,null,null,null,null,null,null,null,null,null,null,null,null,null,278,"Rose brillant",null,255,85,163]
[null,null,null,null,null,null,null,null,null,null,null,null,null,null,null,null,null,null,null,null,null,null,null,null,null,null,null,null,null,279,"Rose chaud",null,255,105,180]
[null,null,null,null,null,null,null,null,null,null,null,null,null,null,null,null,null,null,null,null,null,null,null,null,null,null,null,null,null,280,"Rose dragée",null,254,191,210]
[null,null,null,null,null,null,null,null,null,null,null,null,null,null,null,null,null,null,null,null,null,null,null,null,null,null,null,null,null,281,"Rose du web",null,255,192,203]
[null,null,null,null,null,null,null,null,null,null,null,null,null,null,null,null,null,null,null,null,null,null,null,null,null,null,null,null,null,282,"Rose fuchsia",null,253,63,146]
[null,null,null,null,null,null,null,null,null,null,null,null,null,null,null,null,null,null,null,null,null,null,null,null,null,null,null,null,null,283,"Rose Mountbatten",null,153,122,141]
[null,null,null,null,null,null,null,null,null,null,null,null,null,null,null,null,null,null,null,null,null,null,null,null,null,null,null,null,null,284,"Rose Persan",null,247,127,190]
[null,null,null,null,null,null,null,null,null,null,null,null,null,null,null,null,null,null,null,null,null,null,null,null,null,null,null,null,null,285,"Rose Persan vif",null,254,40,162]
[null,null,null,null,null,null,null,null,null,null,null,null,null,null,null,null,null,null,null,null,null,null,null,null,null,null,null,null,null,286,"Rose profonde",null,255,20,147]
[null,null,null,null,null,null,null,null,null,null,null,null,null,null,null,null,null,null,null,null,null,null,null,null,null,null,null,null,null,287,"Rose razzle dazzle",null,255,51,204]
[null,null,null,null,null,null,null,null,null,null,null,null,null,null,null,null,null,null,null,null,null,null,null,null,null,null,null,null,null,288,"Rose shocking",null,252,15,192]
[null,null,null,null,null,null,null,null,null,null,null,null,null,null,null,null,null,null,null,null,null,null,null,null,null,null,null,null,null,289,"Rose thé",null,255,134,106]
[null,null,null,null,null,null,null,null,null,null,null,null,null,null,null,null,null,null,null,null,null,null,null,null,null,null,null,null,null,290,"Rose ultra",null,255,111,255]
[null,null,null,null,null,null,null,null,null,null,null,null,null,null,null,null,null,null,null,null,null,null,null,null,null,null,null,null,null,291,"Rose vif",null,255,0,127]
[null,null,null,null,null,null,null,null,null,null,null,null,null,null,null,null,null,null,null,null,null,null,null,null,null,null,null,null,null,293,"Rouge anglais",null,247,35,12]
[null,null,null,null,null,null,null,null,null,null,null,null,null,null,null,null,null,null,null,null,null,null,null,null,null,null,null,null,null,294,"Rouge Bismarck",null,165,38,10]
[null,null,null,null,null,null,null,null,null,null,null,null,null,null,null,null,null,null,null,null,null,null,null,null,null,null,null,null,null,295,"Rouge cardinal",null,184,32,16]
[null,null,null,null,null,null,null,null,null,null,null,null,null,null,null,null,null,null,null,null,null,null,null,null,null,null,null,null,null,296,"Rouge cerise",null,187,11,11]
[null,null,null,null,null,null,null,null,null,null,null,null,null,null,null,null,null,null,null,null,null,null,null,null,null,null,null,null,null,297,"Rouge d'alizarine (pigment)",null,227,38,54]
[null,null,null,null,null,null,null,null,null,null,null,null,null,null,null,null,null,null,null,null,null,null,null,null,null,null,null,null,null,298,"Rouge d'Andrinople",null,169,17,1]
[null,null,null,null,null,null,null,null,null,null,null,null,null,null,null,null,null,null,null,null,null,null,null,null,null,null,null,null,null,299,"Rouge d'aniline",null,237,0,0]
[null,null,null,null,null,null,null,null,null,null,null,null,null,null,null,null,null,null,null,null,null,null,null,null,null,null,null,null,null,300,"Rouge de Falun",null,128,24,24]
[null,null,null,null,null,null,null,null,null,null,null,null,null,null,null,null,null,null,null,null,null,null,null,null,null,null,null,null,null,301,"Rouge de Mars (pigment)",null,247,35,12]
[null,null,null,null,null,null,null,null,null,null,null,null,null,null,null,null,null,null,null,null,null,null,null,null,null,null,null,null,null,302,"Rouge écrevisse",null,188,32,1]
[null,null,null,null,null,null,null,null,null,null,null,null,null,null,null,null,null,null,null,null,null,null,null,null,null,null,null,null,null,303,"Rouge feu",null,254,27,0]
[null,null,null,null,null,null,null,null,null,null,null,null,null,null,null,null,null,null,null,null,null,null,null,null,null,null,null,null,null,292,"Rouge primaire en synthèse additive",null,255,0,0]
[null,null,null,null,null,null,null,null,null,null,null,null,null,null,null,null,null,null,null,null,null,null,null,null,null,null,null,null,null,306,"Rouge sang",null,133,6,6]
[null,null,null,null,null,null,null,null,null,null,null,null,null,null,null,null,null,null,null,null,null,null,null,null,null,null,null,null,null,304,"Rouge Sokai",null,146,0,23]
[null,null,null,null,null,null,null,null,null,null,null,null,null,null,null,null,null,null,null,null,null,null,null,null,null,null,null,null,null,307,"Rouge tomette",null,174,74,52]
[null,null,null,null,null,null,null,null,null,null,null,null,null,null,null,null,null,null,null,null,null,null,null,null,null,null,null,null,null,308,"Rouge turc",null,169,17,1]
[null,null,null,null,null,null,null,null,null,null,null,null,null,null,null,null,null,null,null,null,null,null,null,null,null,null,null,null,null,305,"Rouge-violet",null,199,21,133]
[null,null,null,null,null,null,null,null,null,null,null,null,null,null,null,null,null,null,null,null,null,null,null,null,null,null,null,null,null,309,"Rouille",null,152,87,23]
[null,null,null,null,null,null,null,null,null,null,null,null,null,null,null,null,null,null,null,null,null,null,null,null,null,null,null,null,null,310,"Roux",null,173,79,9]
[null,null,null,null,null,null,null,null,null,null,null,null,null,null,null,null,null,null,null,null,null,null,null,null,null,null,null,null,null,311,"Rubis",null,224,17,95]
[null,null,null,null,null,null,null,null,null,null,null,null,null,null,null,null,null,null,null,null,null,null,null,null,null,null,null,null,null,312,"Sable",null,224,205,169]
[null,null,null,null,null,null,null,null,null,null,null,null,null,null,null,null,null,null,null,null,null,null,null,null,null,null,null,null,null,313,"Sable (héraldique)",null,0,0,0]
[null,null,null,null,null,null,null,null,null,null,null,null,null,null,null,null,null,null,null,null,null,null,null,null,null,null,null,null,null,314,"Safran",null,243,214,23]
[null,null,null,null,null,null,null,null,null,null,null,null,null,null,null,null,null,null,null,null,null,null,null,null,null,null,null,null,null,315,"Safre",null,1,49,180]
[null,null,null,null,null,null,null,null,null,null,null,null,null,null,null,null,null,null,null,null,null,null,null,null,null,null,null,null,null,316,"Sang de bœuf",null,115,8,0]
[null,null,null,null,null,null,null,null,null,null,null,null,null,null,null,null,null,null,null,null,null,null,null,null,null,null,null,null,null,317,"Sanguine (héraldique)",null,133,6,6]
[null,null,null,null,null,null,null,null,null,null,null,null,null,null,null,null,null,null,null,null,null,null,null,null,null,null,null,null,null,318,"Saphir",null,1,49,180]
[null,null,null,null,null,null,null,null,null,null,null,null,null,null,null,null,null,null,null,null,null,null,null,null,null,null,null,null,null,319,"Sarcelle",null,0,142,142]
[null,null,null,null,null,null,null,null,null,null,null,null,null,null,null,null,null,null,null,null,null,null,null,null,null,null,null,null,null,320,"Saumon",null,248,142,85]
[null,null,null,null,null,null,null,null,null,null,null,null,null,null,null,null,null,null,null,null,null,null,null,null,null,null,null,null,null,321,"Saumon rose",null,255,145,164]
[null,null,null,null,null,null,null,null,null,null,null,null,null,null,null,null,null,null,null,null,null,null,null,null,null,null,null,null,null,322,"Senois (héraldique)",null,141,64,36]
[null,null,null,null,null,null,null,null,null,null,null,null,null,null,null,null,null,null,null,null,null,null,null,null,null,null,null,null,null,323,"Sépia",null,174,137,100]
[null,null,null,null,null,null,null,null,null,null,null,null,null,null,null,null,null,null,null,null,null,null,null,null,null,null,null,null,null,324,"Sinople (héraldique)",null,20,148,20]
[null,null,null,null,null,null,null,null,null,null,null,null,null,null,null,null,null,null,null,null,null,null,null,null,null,null,null,null,null,325,"Smalt",null,0,51,153]
[null,null,null,null,null,null,null,null,null,null,null,null,null,null,null,null,null,null,null,null,null,null,null,null,null,null,null,null,null,326,"Smaragdin",null,1,215,88]
[null,null,null,null,null,null,null,null,null,null,null,null,null,null,null,null,null,null,null,null,null,null,null,null,null,null,null,null,null,327,"Soufre",null,255,255,107]
[null,null,null,null,null,null,null,null,null,null,null,null,null,null,null,null,null,null,null,null,null,null,null,null,null,null,null,null,null,328,"Souris",null,158,158,158]
[null,null,null,null,null,null,null,null,null,null,null,null,null,null,null,null,null,null,null,null,null,null,null,null,null,null,null,null,null,329,"Tabac",null,159,85,30]
[null,null,null,null,null,null,null,null,null,null,null,null,null,null,null,null,null,null,null,null,null,null,null,null,null,null,null,null,null,330,"Tangerine (couleur)",null,255,127,0]
[null,null,null,null,null,null,null,null,null,null,null,null,null,null,null,null,null,null,null,null,null,null,null,null,null,null,null,null,null,331,"Tanné (héraldique)",null,167,85,2]
[null,null,null,null,null,null,null,null,null,null,null,null,null,null,null,null,null,null,null,null,null,null,null,null,null,null,null,null,null,332,"Taupe",null,70,63,50]
[null,null,null,null,null,null,null,null,null,null,null,null,null,null,null,null,null,null,null,null,null,null,null,null,null,null,null,null,null,334,"Terre de Sienne",null,138,51,36]
[null,null,null,null,null,null,null,null,null,null,null,null,null,null,null,null,null,null,null,null,null,null,null,null,null,null,null,null,null,335,"Terre de Sienne brûlée",null,233,116,81]
[null,null,null,null,null,null,null,null,null,null,null,null,null,null,null,null,null,null,null,null,null,null,null,null,null,null,null,null,null,333,"Terre d'ombre",null,146,109,39]
[null,null,null,null,null,null,null,null,null,null,null,null,null,null,null,null,null,null,null,null,null,null,null,null,null,null,null,null,null,336,"Tilleul",null,78,22,9]
[null,null,null,null,null,null,null,null,null,null,null,null,null,null,null,null,null,null,null,null,null,null,null,null,null,null,null,null,null,337,"Tomate",null,222,41,22]
[null,null,null,null,null,null,null,null,null,null,null,null,null,null,null,null,null,null,null,null,null,null,null,null,null,null,null,null,null,338,"Topaze",null,250,234,115]
[null,null,null,null,null,null,null,null,null,null,null,null,null,null,null,null,null,null,null,null,null,null,null,null,null,null,null,null,null,339,"Tourterelle",null,187,172,172]
[null,null,null,null,null,null,null,null,null,null,null,null,null,null,null,null,null,null,null,null,null,null,null,null,null,null,null,null,null,340,"Turquoise",null,37,253,233]
[null,null,null,null,null,null,null,null,null,null,null,null,null,null,null,null,null,null,null,null,null,null,null,null,null,null,null,null,null,341,"Vanille",null,225,206,154]
[null,null,null,null,null,null,null,null,null,null,null,null,null,null,null,null,null,null,null,null,null,null,null,null,null,null,null,null,null,342,"Ventre de biche",null,233,201,177]
[null,null,null,null,null,null,null,null,null,null,null,null,null,null,null,null,null,null,null,null,null,null,null,null,null,null,null,null,null,343,"Vermeil",null,255,9,33]
[null,null,null,null,null,null,null,null,null,null,null,null,null,null,null,null,null,null,null,null,null,null,null,null,null,null,null,null,null,344,"Vermillon",null,219,23,2]
[null,null,null,null,null,null,null,null,null,null,null,null,null,null,null,null,null,null,null,null,null,null,null,null,null,null,null,null,null,346,"Vert anis",null,159,232,85]
[null,null,null,null,null,null,null,null,null,null,null,null,null,null,null,null,null,null,null,null,null,null,null,null,null,null,null,null,null,347,"Vert bouteille",null,9,106,9]
[null,null,null,null,null,null,null,null,null,null,null,null,null,null,null,null,null,null,null,null,null,null,null,null,null,null,null,null,null,348,"Vert céladon",null,131,166,151]
[null,null,null,null,null,null,null,null,null,null,null,null,null,null,null,null,null,null,null,null,null,null,null,null,null,null,null,null,null,349,"Vert chartreuse",null,194,247,50]
[null,null,null,null,null,null,null,null,null,null,null,null,null,null,null,null,null,null,null,null,null,null,null,null,null,null,null,null,null,351,"Vert de chrome ou anglais (pigment)",null,24,57,30]
[null,null,null,null,null,null,null,null,null,null,null,null,null,null,null,null,null,null,null,null,null,null,null,null,null,null,null,null,null,353,"Vert de Hooker",null,27,79,8]
[null,null,null,null,null,null,null,null,null,null,null,null,null,null,null,null,null,null,null,null,null,null,null,null,null,null,null,null,null,354,"Vert de vessie",null,34,120,15]
[null,null,null,null,null,null,null,null,null,null,null,null,null,null,null,null,null,null,null,null,null,null,null,null,null,null,null,null,null,350,"Vert d'eau",null,176,242,182]
[null,null,null,null,null,null,null,null,null,null,null,null,null,null,null,null,null,null,null,null,null,null,null,null,null,null,null,null,null,355,"Vert épinard",null,23,87,50]
[null,null,null,null,null,null,null,null,null,null,null,null,null,null,null,null,null,null,null,null,null,null,null,null,null,null,null,null,null,356,"Vert gazon ou herbe",null,58,157,35]
[null,null,null,null,null,null,null,null,null,null,null,null,null,null,null,null,null,null,null,null,null,null,null,null,null,null,null,null,null,357,"Vert impérial",null,0,86,27]
[null,null,null,null,null,null,null,null,null,null,null,null,null,null,null,null,null,null,null,null,null,null,null,null,null,null,null,null,null,358,"Vert kaki",null,121,137,51]
[null,null,null,null,null,null,null,null,null,null,null,null,null,null,null,null,null,null,null,null,null,null,null,null,null,null,null,null,null,359,"Vert lichen",null,133,193,126]
[null,null,null,null,null,null,null,null,null,null,null,null,null,null,null,null,null,null,null,null,null,null,null,null,null,null,null,null,null,360,"Vert lime",null,158,253,56]
[null,null,null,null,null,null,null,null,null,null,null,null,null,null,null,null,null,null,null,null,null,null,null,null,null,null,null,null,null,361,"Vert mélèze",null,56,111,72]
[null,null,null,null,null,null,null,null,null,null,null,null,null,null,null,null,null,null,null,null,null,null,null,null,null,null,null,null,null,362,"Vert militaire",null,89,102,67]
[null,null,null,null,null,null,null,null,null,null,null,null,null,null,null,null,null,null,null,null,null,null,null,null,null,null,null,null,null,363,"Vert mousse",null,103,159,90]
[null,null,null,null,null,null,null,null,null,null,null,null,null,null,null,null,null,null,null,null,null,null,null,null,null,null,null,null,null,364,"Vert opaline",null,151,223,198]
[null,null,null,null,null,null,null,null,null,null,null,null,null,null,null,null,null,null,null,null,null,null,null,null,null,null,null,null,null,365,"Vert perroquet",null,58,242,75]
[null,null,null,null,null,null,null,null,null,null,null,null,null,null,null,null,null,null,null,null,null,null,null,null,null,null,null,null,null,366,"Vert pin",null,1,121,111]
[null,null,null,null,null,null,null,null,null,null,null,null,null,null,null,null,null,null,null,null,null,null,null,null,null,null,null,null,null,367,"Vert poireau",null,76,166,107]
[null,null,null,null,null,null,null,null,null,null,null,null,null,null,null,null,null,null,null,null,null,null,null,null,null,null,null,null,null,368,"Vert pomme",null,52,201,36]
[null,null,null,null,null,null,null,null,null,null,null,null,null,null,null,null,null,null,null,null,null,null,null,null,null,null,null,null,null,369,"Vert prairie",null,87,213,59]
[null,null,null,null,null,null,null,null,null,null,null,null,null,null,null,null,null,null,null,null,null,null,null,null,null,null,null,null,null,345,"Vert primaire en synthèse additive",null,0,255,0]
[null,null,null,null,null,null,null,null,null,null,null,null,null,null,null,null,null,null,null,null,null,null,null,null,null,null,null,null,null,370,"Vert printemps",null,0,255,127]
[null,null,null,null,null,null,null,null,null,null,null,null,null,null,null,null,null,null,null,null,null,null,null,null,null,null,null,null,null,371,"Vert sapin",null,9,82,40]
[null,null,null,null,null,null,null,null,null,null,null,null,null,null,null,null,null,null,null,null,null,null,null,null,null,null,null,null,null,372,"Vert sauge",null,104,157,113]
[null,null,null,null,null,null,null,null,null,null,null,null,null,null,null,null,null,null,null,null,null,null,null,null,null,null,null,null,null,373,"Vert tilleul",null,165,209,82]
[null,null,null,null,null,null,null,null,null,null,null,null,null,null,null,null,null,null,null,null,null,null,null,null,null,null,null,null,null,374,"Vert Véronèse (pigment)",null,90,101,33]
[null,null,null,null,null,null,null,null,null,null,null,null,null,null,null,null,null,null,null,null,null,null,null,null,null,null,null,null,null,352,"Vert-de-gris",null,149,165,149]
[null,null,null,null,null,null,null,null,null,null,null,null,null,null,null,null,null,null,null,null,null,null,null,null,null,null,null,null,null,375,"Violet",null,127,0,255]
[null,null,null,null,null,null,null,null,null,null,null,null,null,null,null,null,null,null,null,null,null,null,null,null,null,null,null,null,null,376,"Violet de Bayeux",null,104,34,69]
[null,null,null,null,null,null,null,null,null,null,null,null,null,null,null,null,null,null,null,null,null,null,null,null,null,null,null,null,null,377,"Violet d'évêque",null,114,62,100]
[null,null,null,null,null,null,null,null,null,null,null,null,null,null,null,null,null,null,null,null,null,null,null,null,null,null,null,null,null,378,"Violine",null,161,6,132]
[null,null,null,null,null,null,null,null,null,null,null,null,null,null,null,null,null,null,null,null,null,null,null,null,null,null,null,null,null,379,"Viride",null,64,130,109]
[null,null,null,null,null,null,null,null,null,null,null,null,null,null,null,null,null,null,null,null,null,null,null,null,null,null,null,null,null,380,"Zinzolin",null,108,2,119]